Workbook

Sheet Results
A1: This spreadsheet will calculate the height of a groundwater mound beneath a stormwater infiltration basin. More information can be found in the U.S. Geological Survey Scientific Investigations Report 2010-5102 "Simulation of groundwater mounding beneath hypothetical stormwater infiltration basins".
A2: The user must specify infiltration rate (R), specific yield (Sy), horizontal hydraulic conductivity (Kh), basin dimensions (x, y), duration of infiltration period (t), and the initial thickness of the saturated zone (hi(0), height of the water table if the bottom of the aquifer is the datum). For a square basin the half width equals the half length (x = y). For a rectangular basin, if the user wants the water-table changes perpendicular to the long side, specify x as the short dimension and y as the long dimension. Conversely, if the user wants the values perpendicular to the short side, specify y as the short dimension, x as the long dimension. All distances are from the center of the basin. Users can change the distances from the center of the basin at which water-table aquifer thickness are calculated.
A3: Cells highlighted in yellow are values that can be changed by the user. Cells highlighted in red are output values based on user-specified inputs. The user MUST click the blue "Re-Calculate Now" button each time ANY of the user-specified inputs are changed otherwise necessary iterations to converge on the correct solution will not be done and values shown will be incorrect. Use consistent units for all input values (for example, feet and days)
D5: use consistent units (e.g. feet & days or inches & hours) | J5: Conversion Table
A6: Input Values | J6: inch/hour | K6: feet/day
A7: 1.33 | B7: R | D7: Recharge (infiltration) rate (feet/day) | J7: 0.6665 | K7: =J7*24/12 -> 1.333
A8: 0.085 | B8: Sy | D8: Specific yield, Sy (dimensionless, between 0 and 1)
A9: 6 | B9: K | D9: Horizontal hydraulic conductivity, Kh (feet/day)* | J9: 2 | K9: =J9*24/12 -> 4 | L9: In the report accompanying this spreadsheet (USGS SIR 2010-5102), vertical soil permeability (ft/d) is assumed to be one-tenth horizontal hydraulic conductivity (ft/d).
A10: 33.63 | B10: x | D10: 1/2 length of basin (x direction, in feet)
A11: 33.63 | B11: y | D11: 1/2 width of basin (y direction, in feet) | J11: hours | K11: days
A12: 1.5 | B12: t | D12: duration of infiltration period (days) | J12: 36 | K12: =J12/24 -> 1.5
A13: 10 | B13: hi(0) | D13: initial thickness of saturated zone (feet)
A15: =Model!F67 -> 20.52983508 | B15: h(max) | D15: maximum thickness of saturated zone (beneath center of basin at end of infiltration period)
A16: =Model!F67-$A$13 -> 10.52983508 | B16: Δh(max) | D16: maximum groundwater mounding (beneath center of basin at end of infiltration period)
A17: Ground-water Mounding, in feet | B17: Distance from center of basin in x direction, in feet
A18: =Model!F57-$A$13 -> 10.52983508 | B18: 0
A19: =Model!F58-$A$13 -> 9.504059765 | B19: 20
A20: =Model!F59-$A$13 -> 5.998601061 | B20: 40
A21: =Model!F60-$A$13 -> 4.218525596 | B21: 50
A22: =Model!F61-$A$13 -> 2.835093995 | B22: 60
A23: =Model!F62-$A$13 -> 1.824169882 | B23: 70
A24: =Model!F63-$A$13 -> 1.128278726 | B24: 80
A25: =Model!F64-$A$13 -> 0.6742724307 | B25: 90
A26: =Model!F65-$A$13 -> 0.3911389366 | B26: 100
A27: =Model!F66-$A$13 -> 0.1228895523 | B27: 120
A34: Disclaimer
A35: This spreadsheet solving the Hantush (1967) equation for ground-water mounding beneath an infiltration basin is made available to the general public as a convenience for those wishing to replicate values documented in the USGS Scientific Investigations Report 2010-5102 "Groundwater mounding beneath hypothetical stormwater infiltration basins" or to calculate values based on user-specified site conditions. Any changes made to the spreadsheet (other than values identified as user-specified) after transmission from the USGS could have unintended, undesirable consequences. These consequences could include, but may not be limited to: erroneous output, numerical instabilities, and violations of underlying assumptions that are inherent in results presented in the accompanying USGS published report. The USGS assumes no responsibility for the consequences of any changes made to the spreadsheet. If changes are made to the spreadsheet, the user is responsible for documenting the changes and justifying the results and conclusions.

Sheet Model (hidden)
A1: Hantush's Solution for a rectangular infiltration basin to simulate mounding:
E12: ref: Hantush, M. ,1967, Growth and Decay of Groundwater Mounds in Response to Uniform Percolation,WRR v.3 no.1
G14: W = constant rate of percolation
G15: K = hydraulic conductivity
K17: =A27*G40/A26 -> 107.6470588
A24: Input Values
A25: =Results!A7 -> 1.33 | B25: w | D25: Percolation Rate (meters/day)
A26: =Results!A8 -> 0.085 | B26: Sy | D26: Specific Yield | I26: .02 < S < .3
A27: =Results!A9 -> 6 | B27: K | D27: Horizontal Hydraulic Conductivity (meters/day) | I27: K | J27: 10-1 - 10-3 | L27: silt, sandy silt, clayey sand
A28: =Results!A10 -> 33.63 | B28: l | D28: 1/2 length of basin (meters) | J28: 10-2 - 1 | L28: sily sand fine sand
A29: =Results!A11 -> 33.63 | B29: a | D29: 1/2 width of basin (meters) | J29: 1 - 100 | L29: well sorted sand
J30: 10 - 1000 | L30: gravel
A31: =0 -> 0 | B31: x | D31: x coordinate (meters)
A32: 0 | B32: y | D32: y coordinate (meters)
A33: =Results!A12 -> 1.5 | B33: t | D33: time (days)
A35: 3.05 | B35: hi(0) | D35: initial head (meters) | H35: h(te) - h
B36: h(te) | D36: head at end of simulation (meters) | H36: =A36-B47 -> -6.43572004
D38: constant of linearization
G40: =0.5*(A35+A36) -> 1.525
A41: Output
B42: Simpson | D42: Trapezoid | G42: note: for manual calculations (that do not employ the macros associated with the "Re-Calculate Now" button on the Results worksheet), one needs to iterate between solution given in cell b47 and the value for the head needed for linearization cell a36. Result only valid for X,Y obs point in G48, G49
A43: h2-hi2 = | B43: =((Model!$A$25/(2*Model!$A$27))*(Model!$K$17*Model!$A$33))*SUM(Model!B50:E50) -> 32.11599243 | C43: m2 | D43: =((Model!$A$25/(2*Model!$A$27))*(Model!$K$17*Model!$A$33))*SUM(Model!B51:E51) -> 32.11599138 | E43: m2
A45: h-hi= | B45: =SQRT(B43+(Model!$A$35)^2)-Model!$A$35 -> 3.38572004 | C45: m | D45: =SQRT(D43+(Model!$A$35)^2)-Model!$A$35 -> 3.385719958 | E45: m
A47: h= | B47: =B45+Model!A35 -> 6.43572004 | C47: m | D47: =D45+Model!A35 -> 6.435719958 | E47: m | G47: Constants and variables needed for calculation
A48: Integral evaluation: | C48: 0.001 | D48: dt | E48: fixed | G48: =Model!B67 -> 0 | H48: x | I48: Location of observation point, x direction, meters
B49: PS1 | C49: PS2 | D49: PS3 | E49: PS4 | G49: 0 | H49: y | I49: Location of observation point, y direction, meters
A50: Simpson | B50: ='pS1'!L1014 -> 0.4486395262 | C50: ='pS2'!L1014 -> 0.4486395262 | D50: ='ps3'!L1014 -> 0.4486395262 | E50: ='pS4'!L1014 -> 0.4486395262 | G50: =(Results!A9*(0.5*(Results!A13+Model!G51)))/Results!A8 -> 1077.523744 | H50: ν | I50: average linear velocity, used in integration
A51: Trapezoidal | B51: ='pS1'!H1013 -> 0.4486395115 | C51: ='pS2'!H1013 -> 0.4486395115 | D51: ='ps3'!H1013 -> 0.4486395115 | E51: ='pS4'!H1013 -> 0.4486395115 | G51: =Model!C67 -> 20.5298394 | H51: h(te) | I51: estimated head
G52: =((Results!$A$7/(2*Results!$A$9))*(Model!G50*Results!$A$12))*SUM(Model!B50:E50) -> 321.4741283 | H52: h2-hi2
A53: Calculations based on values input in Results worksheet are below | G53: =(SQRT(Model!$G$52+Results!$A$13^2))-Results!$A$13 -> 10.52983508 | H53: h-hi | I53: calculated head
G54: =G53+Results!A13 -> 20.52983508 | H54: h
C56: Hest | D56: Hcalc | E56: Hcalc - Hest | F56: Hfinal
B57: =Results!B18 -> 0 | C57: 20.5298394 | D57: =Model!$G$54 -> 20.52983508 | E57: =D57-C57 -> -4.32604174e-06 | F57: 20.52983508 | G57: 10.497 | H57: 20.497
B58: =Results!B19 -> 20 | C58: 19.50406744 | D58: =Model!$G$54 -> 20.52983508 | E58: =D58-C58 -> 1.02576764 | F58: 19.50405977 | G58: 10.173 | H58: 20.173
B59: =Results!B20 -> 40 | C59: 15.99859262 | D59: =Model!$G$54 -> 20.52983508 | E59: 4.531242461 | F59: 15.99860106
B60: =Results!B21 -> 50 | C60: 14.21851761 | D60: =Model!$G$54 -> 20.52983508 | E60: 6.311317469 | F60: 14.2185256
B61: =Results!B22 -> 60 | C61: 12.83507416 | D61: =Model!$G$54 -> 20.52983508 | E61: 7.694760915 | F61: 12.83509399
B62: =Results!B23 -> 70 | C62: 11.82497226 | D62: =Model!$G$54 -> 20.52983508 | E62: 8.704862814 | F62: 11.82416988
B63: =Results!B24 -> 80 | C63: 11.12827679 | D63: =Model!$G$54 -> 20.52983508 | E63: 9.401558288 | F63: 11.12827873
B64: =Results!B25 -> 90 | C64: 10.67403831 | D64: =Model!$G$54 -> 20.52983508 | E64: 9.855796767 | F64: 10.67427243
B65: =Results!B26 -> 100 | C65: 10.39104566 | D65: =Model!$G$54 -> 20.52983508 | E65: 10.13878941 | F65: 10.39113894
B66: =Results!B27 -> 120 | C66: 10.12288787 | D66: =Model!$G$54 -> 20.52983508 | E66: 10.4069472 | F66: 10.12288955
B67: 0 | C67: 20.5298394 | D67: =Model!$G$54 -> 20.52983508 | E67: =D67-C67 -> -4.32604174e-06 | F67: 20.52983508

Sheet pS1 (hidden)
A10: a | B10: =(Results!$A$10+Model!$G$48)/(SQRT(4*Model!$G$50*Results!A$12)) -> 0.4182517991
A11: b | B11: =(Results!$A$11+Model!$G$49)/(SQRT(4*Model!$G$50*Results!A$12)) -> 0.4182517991
A12: t | B12: erf(a/sqrt(t)) | D12: erf(b/sqrt(t)) | F12: integrand | H12: trapezoidal integral O(h^2) | I12: Simpson integral O(h^4) | J12: kount | L12: Simpson total Sum
A13: 0 | B13: 1 | D13: 1 | F13: =B13*D13 -> 1 | H13: 0 | I13: 0
A14: =Model!$C$48 -> 0.001 | B14: =ERF($B$10/SQRT(A14)) -> 1 | D14: =ERF($B$11/SQRT(A14)) -> 1 | F14: 1 | H14: =0.5*(F14+F13)*(A14-A13)+H13 -> 0.001 | J14: 1
A15: =A14+Model!$C$48 -> 0.002 | B15: =ERF($B$10/SQRT(A15)) -> 1 | D15: =ERF($B$11/SQRT(A15)) -> 1 | F15: 1 | H15: 0.002 | J15: =IF(J14=1,0,1) -> 0
A16: =A15+Model!$C$48 -> 0.003 | B16: =ERF($B$10/SQRT(A16)) -> 1 | D16: =ERF($B$11/SQRT(A16)) -> 1 | F16: 1 | H16: 0.003 | I16: =(I13+((A16-A15)/3)*(F13+4*F14+2*F15))*J16 -> 0.002333333333 | J16: 1 | L16: =IF(J16=1,I16,I15) -> 0.002333333333
A17: =A16+Model!$C$48 -> 0.004 | B17: 1 | D17: 1 | F17: 1 | H17: 0.004 | I17: =(I15+((A17-A16)/3)*(4*F15+2*F16))*J17 -> 0 | J17: 0 | L17: =IF(J17=1,I17,I16) -> 0.002333333333
A18: =A17+Model!$C$48 -> 0.005 | B18: 1 | D18: 1 | F18: 1 | H18: 0.005 | I18: 0.004333333333 | J18: 1 | L18: 0.004333333333
A19: =A18+Model!$C$48 -> 0.006 | B19: 1 | D19: 1 | F19: 1 | H19: 0.006 | I19: 0 | J19: 0 | L19: 0.004333333333
A20: =A19+Model!$C$48 -> 0.007 | B20: 1 | D20: 1 | F20: 1 | H20: 0.007 | I20: 0.006333333333 | J20: 1 | L20: 0.006333333333
A21: =A20+Model!$C$48 -> 0.008 | B21: 1 | D21: 1 | F21: 0.9999999999 | H21: 0.008 | I21: 0 | J21: 0 | L21: 0.006333333333
A22: =A21+Model!$C$48 -> 0.009 | B22: 0.9999999995 | D22: 0.9999999995 | F22: 0.9999999991 | H22: 0.008999999999 | I22: 0.008333333333 | J22: 1 | L22: 0.008333333333
A23: =A22+Model!$C$48 -> 0.01 | B23: 0.9999999967 | D23: 0.9999999967 | F23: 0.9999999934 | H23: 0.009999999996 | I23: 0 | J23: 0 | L23: 0.008333333333
A24: =A23+Model!$C$48 -> 0.011 | B24: 0.999999983 | D24: 0.999999983 | F24: 0.9999999659 | H24: 0.01099999998 | I24: 0.01033333333 | J24: 1 | L24: 0.01033333333
A25: =A24+Model!$C$48 -> 0.012 | B25: 0.9999999332 | D25: 0.9999999332 | F25: 0.9999998664 | H25: 0.01199999989 | I25: 0 | J25: 0 | L25: 0.01033333333
A26: =A25+Model!$C$48 -> 0.013 | B26: 0.9999997872 | D26: 0.9999997872 | F26: 0.9999995744 | H26: 0.01299999961 | I26: 0.01233333319 | J26: 1 | L26: 0.01233333319
A27: =A26+Model!$C$48 -> 0.014 | B27: 0.9999994239 | D27: 0.9999994239 | F27: 0.9999988478 | H27: 0.01399999882 | I27: 0 | J27: 0 | L27: 0.01233333319
A28: =A27+Model!$C$48 -> 0.015 | B28: 0.9999986316 | D28: 0.9999986316 | F28: 0.9999972632 | H28: 0.01499999688 | I28: 0.01433333186 | J28: 1 | L28: 0.01433333186
A29: =A28+Model!$C$48 -> 0.016 | B29: 0.9999970776 | D29: 0.9999970776 | F29: 0.9999941551 | H29: 0.01599999259 | I29: 0 | J29: 0 | L29: 0.01433333186
A30: =A29+Model!$C$48 -> 0.017 | B30: 0.9999942826 | D30: 0.9999942826 | F30: 0.9999885651 | H30: 0.01699998395 | I30: 0.01633332431 | J30: 1 | L30: 0.01633332431
A31: =A30+Model!$C$48 -> 0.018 | B31: 0.9999896036 | D31: 0.9999896036 | F31: 0.9999792074 | H31: 0.01799996783 | I31: 0 | J31: 0 | L31: 0.01633332431
A32: =A31+Model!$C$48 -> 0.019 | B32: 0.9999822268 | D32: 0.9999822268 | F32: 0.9999644539 | H32: 0.01899993966 | I32: 0.0183332952 | J32: 1 | L32: 0.0183332952
A33: =A32+Model!$C$48 -> 0.02 | B33: 0.9999711702 | D33: 0.9999711702 | F33: 0.9999423412 | H33: 0.01999989306 | I33: 0 | J33: 0 | L33: 0.0183332952
A34: =A33+Model!$C$48 -> 0.021 | B34: 0.9999552963 | D34: 0.9999552963 | F34: 0.9999105946 | H34: 0.02099981953 | I34: 0.02033320937 | J34: 1 | L34: 0.02033320937
A35: =A34+Model!$C$48 -> 0.022 | B35: 0.9999333321 | D35: 0.9999333321 | F35: 0.9998666686 | H35: 0.02199970816 | I35: 0 | J35: 0 | L35: 0.02033320937
A36: =A35+Model!$C$48 -> 0.023 | B36: 0.9999038939 | D36: 0.9999038939 | F36: 0.9998077971 | H36: 0.02299954539 | I36: 0.02233300127 | J36: 1 | L36: 0.02233300127
A37: =A36+Model!$C$48 -> 0.024 | B37: 0.9998655161 | D37: 0.9998655161 | F37: 0.9997310503 | H37: 0.02399931482 | I37: 0 | J37: 0 | L37: 0.02233300127
A38: =A37+Model!$C$48 -> 0.025 | B38: 0.9998166797 | D38: 0.9998166797 | F38: 0.999633393 | H38: 0.02499899704 | I38: 0.0243325657 | J38: 1 | L38: 0.0243325657
A39: =A38+Model!$C$48 -> 0.026 | B39: 0.9997558419 | D39: 0.9997558419 | F39: 0.9995117433 | H39: 0.02599856961 | I39: 0 | J39: 0 | L39: 0.0243325657
A40: =A39+Model!$C$48 -> 0.027 | B40: 0.9996814624 | D40: 0.9996814624 | F40: 0.9993630264 | H40: 0.02699800699 | I40: 0.02633175139 | J40: 1 | L40: 0.02633175139
A41: =A40+Model!$C$48 -> 0.028 | B41: 0.9995920286 | D41: 0.9995920286 | F41: 0.9991842237 | H41: 0.02799728062 | I41: 0 | J41: 0 | L41: 0.02633175139
A42: =A41+Model!$C$48 -> 0.029 | B42: 0.9994860761 | D42: 0.9994860761 | F42: 0.9989724163 | H42: 0.02899635894 | I42: 0.02833035824 | J42: 1 | L42: 0.02833035824
A43: =A42+Model!$C$48 -> 0.03 | B43: 0.9993622071 | D43: 0.9993622071 | F43: 0.998724821 | H43: 0.02999520756 | I43: 0 | J43: 0 | L43: 0.02833035824
A44: =A43+Model!$C$48 -> 0.031 | B44: 0.999219105 | D44: 0.999219105 | F44: 0.9984388197 | H44: 0.03099378938 | I44: 0.03032813801 | J44: 1 | L44: 0.03032813801
A45: =A44+Model!$C$48 -> 0.032 | B45: 0.9990555452 | D45: 0.9990555452 | F45: 0.9981119824 | H45: 0.03199206478 | I45: 0 | J45: 0 | L45: 0.03032813801
A46: =A45+Model!$C$48 -> 0.033 | B46: 0.998870404 | D46: 0.998870404 | F46: 0.997742084 | H46: 0.03298999181 | I46: 0.03232479776 | J46: 1 | L46: 0.03232479776
A47: =A46+Model!$C$48 -> 0.034 | B47: 0.9986626638 | D47: 0.9986626638 | F47: 0.997327116 | H47: 0.03398752641 | I47: 0 | J47: 0 | L47: 0.03232479776
A48: =A47+Model!$C$48 -> 0.035 | B48: 0.9984314161 | D48: 0.9984314161 | F48: 0.9968652927 | H48: 0.03498462262 | I48: 0.03432000528 | J48: 1 | L48: 0.03432000528
A49: =A48+Model!$C$48 -> 0.036 | B49: 0.9981758629 | D49: 0.9981758629 | F49: 0.9963550533 | H49: 0.03598123279 | I49: 0 | J49: 0 | L49: 0.03432000528
A50: =A49+Model!$C$48 -> 0.037 | B50: 0.9978953159 | D50: 0.9978953159 | F50: 0.9957950615 | H50: 0.03697730785 | I50: 0.03631339571 | J50: 1 | L50: 0.03631339571
A51: =A50+Model!$C$48 -> 0.038 | B51: 0.997589194 | D51: 0.997589194 | F51: 0.9951842001 | H51: 0.03797279748 | I51: 0 | J51: 0 | L51: 0.03631339571
A52: =A51+Model!$C$48 -> 0.039 | B52: 0.9972570209 | D52: 0.9972570209 | F52: 0.9945215656 | H52: 0.03896765036 | I52: 0.03830457859 | J52: 1 | L52: 0.03830457859
A53: =A52+Model!$C$48 -> 0.04 | B53: 0.99689842 | D53: 0.99689842 | F53: 0.9938064597 | H53: 0.03996181437 | I53: 0 | J53: 0 | L53: 0.03830457859
A54: =A53+Model!$C$48 -> 0.041 | B54: 0.9965131103 | D54: 0.9965131103 | F54: 0.993038379 | H54: 0.04095523679 | I54: 0.04029314498 | J54: 1 | L54: 0.04029314498
A55: =A54+Model!$C$48 -> 0.042 | B55: 0.9961009009 | D55: 0.9961009009 | F55: 0.9922170048 | H55: 0.04194786448 | I55: 0 | J55: 0 | L55: 0.04029314498
A56: =A55+Model!$C$48 -> 0.043 | B56: 0.9956616852 | D56: 0.9956616852 | F56: 0.9913421913 | H56: 0.04293964408 | I56: 0.04227867416 | J56: 1 | L56: 0.04227867416
A57: =A56+Model!$C$48 -> 0.044 | B57: 0.9951954352 | D57: 0.9951954352 | F57: 0.9904139542 | H57: 0.04393052215 | I57: 0 | J57: 0 | L57: 0.04227867416
A58: =A57+Model!$C$48 -> 0.045 | B58: 0.9947021958 | D58: 0.9947021958 | F58: 0.9894324583 | H58: 0.04492044536 | I58: 0.04426073972 | J58: 1 | L58: 0.04426073972
A59: =A58+Model!$C$48 -> 0.046 | B59: 0.9941820788 | D59: 0.9941820788 | F59: 0.9883980059 | H59: 0.04590936059 | I59: 0 | J59: 0 | L59: 0.04426073972
A60: =A59+Model!$C$48 -> 0.047 | B60: 0.9936352575 | D60: 0.9936352575 | F60: 0.9873110249 | H60: 0.04689721511 | I60: 0.046238915 | J60: 1 | L60: 0.046238915
A61: =A60+Model!$C$48 -> 0.048 | B61: 0.993061961 | D61: 0.993061961 | F61: 0.9861720583 | H61: 0.04788395665 | I61: 0 | J61: 0 | L61: 0.046238915
A62: =A61+Model!$C$48 -> 0.049 | B62: 0.9924624675 | D62: 0.9924624675 | F62: 0.9849817493 | H62: 0.04886953355 | I62: 0.04821277774 | J62: 1 | L62: 0.04821277774
A63: =A62+Model!$C$48 -> 0.05 | B63: 0.9918371017 | D63: 0.9918371017 | F63: 0.9837408363 | H63: 0.04985389485 | I63: 0 | J63: 0 | L63: 0.04821277774
A64: =A63+Model!$C$48 -> 0.051 | B64: 0.9911862282 | D64: 0.9911862282 | F64: 0.982450139 | H64: 0.05083699033 | I64: 0.05018191396 | J64: 1 | L64: 0.05018191396
A65: =A64+Model!$C$48 -> 0.052 | B65: 0.9905102474 | D65: 0.9905102474 | F65: 0.9811105502 | H65: 0.05181877068 | I65: 0 | J65: 0 | L65: 0.05018191396
A66: =A65+Model!$C$48 -> 0.053 | B66: 0.9898095909 | D66: 0.9898095909 | F66: 0.9797230263 | H66: 0.05279918747 | I66: 0.05214592118 | J66: 1 | L66: 0.05214592118
A67: =A66+Model!$C$48 -> 0.054 | B67: 0.9890847178 | D67: 0.9890847178 | F67: 0.978288579 | H67: 0.05377819327 | I67: 0 | J67: 0 | L67: 0.05214592118
A68: =A67+Model!$C$48 -> 0.055 | B68: 0.9883361108 | D68: 0.9883361108 | F68: 0.9768082678 | H68: 0.05475574169 | I68: 0.05410441093 | J68: 1 | L68: 0.05410441093
A69: =A68+Model!$C$48 -> 0.056 | B69: 0.9875642724 | D69: 0.9875642724 | F69: 0.9752831922 | H69: 0.05573178742 | I69: 0 | J69: 0 | L69: 0.05410441093
A70: =A69+Model!$C$48 -> 0.057 | B70: 0.9867697224 | D70: 0.9867697224 | F70: 0.973714485 | H70: 0.05670628626 | I70: 0.05605701075 | J70: 1 | L70: 0.05605701075
A71: =A70+Model!$C$48 -> 0.058 | B71: 0.9859529941 | D71: 0.9859529941 | F71: 0.9721033066 | H71: 0.05767919516 | I71: 0 | J71: 0 | L71: 0.05605701075
A72: =A71+Model!$C$48 -> 0.059 | B72: 0.9851146336 | D72: 0.9851146336 | F72: 0.9704508414 | H72: 0.05865047223 | I72: 0.0580033656 | J72: 1 | L72: 0.0580033656
A73: =A72+Model!$C$48 -> 0.06 | B73: 0.9842551916 | D73: 0.9842551916 | F73: 0.9687582821 | H73: 0.05962007679 | I73: 0 | J73: 0 | L73: 0.0580033656
A74: =A73+Model!$C$48 -> 0.061 | B74: 0.9833752288 | D74: 0.9833752288 | F74: 0.9670268406 | H74: 0.06058796935 | I74: 0.05994313891 | J74: 1 | L74: 0.05994313891
A75: =A74+Model!$C$48 -> 0.062 | B75: 0.9824753093 | D75: 0.9824753093 | F75: 0.9652577333 | H75: 0.06155411164 | I75: 0 | J75: 0 | L75: 0.05994313891
A76: =A75+Model!$C$48 -> 0.063 | B76: 0.9815559994 | D76: 0.9815559994 | F76: 0.96345218 | H76: 0.0625184666 | I76: 0.06187601319 | J76: 1 | L76: 0.06187601319
A77: =A76+Model!$C$48 -> 0.064 | B77: 0.9806178664 | D77: 0.9806178664 | F77: =B77*D77 -> 0.9616113998 | H77: 0.06348099839 | I77: 0 | J77: 0 | L77: 0.06187601319
A78: =A77+Model!$C$48 -> 0.065 | B78: 0.9796614765 | D78: 0.9796614765 | F78: 0.9597366084 | H78: =0.5*(F78+F77)*(A78-A77)+H77 -> 0.06444167239 | I78: 0.06380169036 | J78: 1 | L78: 0.06380169036
A79: =A78+Model!$C$48 -> 0.066 | B79: 0.9786873939 | D79: 0.9786873939 | F79: 0.9578290151 | H79: 0.0654004552 | I79: 0 | J79: =IF(J78=1,0,1) -> 0 | L79: 0.06380169036
A80: =A79+Model!$C$48 -> 0.067 | B80: =ERF($B$10/SQRT(A80)) -> 0.9776961797 | D80: =ERF($B$11/SQRT(A80)) -> 0.9776961797 | F80: 0.9558898198 | H80: 0.06635731462 | I80: 0.06571989185 | J80: 1 | L80: 0.06571989185
A81: =A80+Model!$C$48 -> 0.068 | B81: 0.9766883901 | D81: 0.9766883901 | F81: 0.9539202114 | H81: 0.06731221964 | I81: =(I79+((A81-A80)/3)*(4*F79+2*F80))*J81 -> 0 | J81: 0 | L81: =IF(J81=1,I81,I80) -> 0.06571989185
A82: =A81+Model!$C$48 -> 0.069 | B82: 0.9756645763 | D82: 0.9756645763 | F82: 0.9519213654 | H82: 0.06826514043 | I82: 0.06763035842 | J82: 1 | L82: 0.06763035842
A83: =A82+Model!$C$48 -> 0.07 | B83: 0.9746252855 | D83: 0.9746252855 | F83: 0.9498944472 | H83: 0.06921604833 | I83: 0 | J83: 0 | L83: 0.06763035842
A84: =A83+Model!$C$48 -> 0.071 | B84: 0.9735710507 | D84: 0.9735710507 | F84: 0.9478405908 | H84: 0.07016491585 | I84: 0.06953284987 | J84: 1 | L84: 0.06953284987
A85: =A84+Model!$C$48 -> 0.072 | B85: 0.9725024044 | D85: 0.9725024044 | F85: 0.9457609265 | H85: 0.07111171661 | I85: 0 | J85: 0 | L85: 0.06953284987
A86: =A85+Model!$C$48 -> 0.073 | B86: 0.9714198683 | D86: 0.9714198683 | F86: 0.9436565606 | H86: 0.07205642535 | I86: 0.07142714461 | J86: 1 | L86: 0.07142714461
A87: =A86+Model!$C$48 -> 0.074 | B87: 0.9703239559 | D87: 0.9703239559 | F87: 0.9415285794 | H87: 0.07299901792 | I87: 0 | J87: 0 | L87: 0.07142714461
A88: =A87+Model!$C$48 -> 0.075 | B88: 0.9692151713 | D88: 0.9692151713 | F88: 0.9393780483 | H88: 0.07393947124 | I88: 0.07331303908 | J88: 1 | L88: 0.07331303908
A89: =A88+Model!$C$48 -> 0.076 | B89: 0.9680940094 | D89: 0.9680940094 | F89: 0.937206011 | H89: 0.07487776327 | I89: 0 | J89: 0 | L89: 0.07331303908
A90: =A89+Model!$C$48 -> 0.077 | B90: 0.9669609551 | D90: 0.9669609551 | F90: 0.9350134887 | H90: 0.07581387302 | I90: 0.07519034715 | J90: 1 | L90: 0.07519034715
A91: =A90+Model!$C$48 -> 0.078 | B91: 0.9658164838 | D91: 0.9658164838 | F91: 0.9328014804 | H91: 0.0767477805 | I91: 0 | J91: 0 | L91: 0.07519034715
A92: =A91+Model!$C$48 -> 0.079 | B92: 0.9646610605 | D92: 0.9646610605 | F92: 0.9305709617 | H92: 0.07767946672 | I92: 0.07705889945 | J92: 1 | L92: 0.07705889945
A93: =A92+Model!$C$48 -> 0.08 | B93: 0.9634951402 | D93: 0.9634951402 | F93: 0.9283228852 | H93: 0.07860891365 | I93: 0 | J93: 0 | L93: 0.07705889945
A94: =A93+Model!$C$48 -> 0.081 | B94: 0.9623191674 | D94: 0.9623191674 | F94: 0.92605818 | H94: 0.07953610418 | I94: 0.07891854266 | J94: 1 | L94: 0.07891854266
A95: =A94+Model!$C$48 -> 0.082 | B95: 0.9611335813 | D95: 0.9611335813 | F95: 0.9237777611 | H95: 0.08046102215 | I95: 0 | J95: 0 | L95: 0.07891854266
A96: =A95+Model!$C$48 -> 0.083 | B96: 0.9599387968 | D96: 0.9599387968 | F96: 0.9214824935 | H96: 0.08138365228 | I96: 0.08076913874 | J96: 1 | L96: 0.08076913874
A97: =A96+Model!$C$48 -> 0.084 | B97: 0.9587352316 | D97: 0.9587352316 | F97: 0.9191732444 | H97: 0.08230398014 | I97: 0 | J97: 0 | L97: 0.08076913874
A98: =A97+Model!$C$48 -> 0.085 | B98: 0.9575232892 | D98: 0.9575232892 | F98: 0.9168508493 | H98: 0.08322199219 | I98: 0.08261056423 | J98: 1 | L98: 0.08261056423
A99: =A98+Model!$C$48 -> 0.086 | B99: 0.9563033624 | D99: 0.9563033624 | F99: 0.9145161209 | H99: 0.08413767568 | I99: 0 | J99: 0 | L99: 0.08261056423
A100: =A99+Model!$C$48 -> 0.087 | B100: 0.955075834 | D100: 0.955075834 | F100: 0.9121698487 | H100: 0.08505101866 | I100: 0.08444270944 | J100: 1 | L100: 0.08444270944
A101: =A100+Model!$C$48 -> 0.088 | B101: 0.9538410769 | D101: 0.9538410769 | F101: 0.9098127999 | H101: 0.08596200999 | I101: 0 | J101: 0 | L101: 0.08444270944
A102: =A101+Model!$C$48 -> 0.089 | B102: 0.9525994537 | D102: 0.9525994537 | F102: 0.9074457191 | H102: 0.08687063924 | I102: 0.08626547777 | J102: 1 | L102: 0.08626547777
A103: =A102+Model!$C$48 -> 0.09 | B103: 0.9513513173 | D103: 0.9513513173 | F103: 0.905069329 | H103: 0.08777689677 | I103: 0 | J103: 0 | L103: 0.08626547777
A104: =A103+Model!$C$48 -> 0.091 | B104: 0.9500970111 | D104: 0.9500970111 | F104: 0.9026843305 | H104: 0.0886807736 | I104: 0.08807878495 | J104: 1 | L104: 0.08807878495
A105: =A104+Model!$C$48 -> 0.092 | B105: 0.9488368686 | D105: 0.9488368686 | F105: 0.9002914032 | H105: 0.08958226147 | I105: 0 | J105: 0 | L105: 0.08807878495
A106: =A105+Model!$C$48 -> 0.093 | B106: 0.947571214 | D106: 0.947571214 | F106: 0.8978912056 | H106: 0.09048135277 | I106: 0.08988255833 | J106: 1 | L106: 0.08988255833
A107: =A106+Model!$C$48 -> 0.094 | B107: 0.9463003696 | D107: 0.9463003696 | F107: 0.8954843895 | H107: 0.09137804057 | I107: 0 | J107: 0 | L107: 0.08988255833
A108: =A107+Model!$C$48 -> 0.095 | B108: 0.9450246276 | D108: 0.9450246276 | F108: 0.8930715467 | H108: 0.09227231854 | I108: 0.09167673619 | J108: 1 | L108: 0.09167673619
A109: =A108+Model!$C$48 -> 0.096 | B109: 0.9437442915 | D109: 0.9437442915 | F109: 0.8906532878 | H109: 0.09316418095 | I109: 0 | J109: 0 | L109: 0.09167673619
A110: =A109+Model!$C$48 -> 0.097 | B110: 0.9424596497 | D110: 0.9424596497 | F110: 0.8882301913 | H110: 0.09405362269 | I110: 0.09346126711 | J110: 1 | L110: 0.09346126711
A111: =A110+Model!$C$48 -> 0.098 | B111: 0.9411709819 | D111: 0.9411709819 | F111: 0.8858028172 | H111: 0.0949406392 | I111: 0 | J111: 0 | L111: 0.09346126711
A112: =A111+Model!$C$48 -> 0.099 | B112: 0.9398785595 | D112: 0.9398785595 | F112: 0.8833717065 | H112: 0.09582522646 | I112: 0.09523610925 | J112: 1 | L112: 0.09523610925
A113: =A112+Model!$C$48 -> 0.1 | B113: 0.9385826456 | D113: 0.9385826456 | F113: 0.8809373827 | H113: 0.096707381 | I113: 0 | J113: 0 | L113: 0.09523610925
A114: =A113+Model!$C$48 -> 0.101 | B114: 0.9372834956 | D114: 0.9372834956 | F114: 0.8785003512 | H114: 0.09758709987 | I114: 0.09700122978 | J114: 1 | L114: 0.09700122978
A115: =A114+Model!$C$48 -> 0.102 | B115: 0.9359813568 | D115: 0.9359813568 | F115: 0.8760611004 | H115: 0.0984643806 | I115: 0 | J115: 0 | L115: 0.09700122978
A116: =A115+Model!$C$48 -> 0.103 | B116: 0.9346764691 | D116: 0.9346764691 | F116: 0.8736201019 | H116: 0.0993392212 | I116: 0.09875660431 | J116: 1 | L116: 0.09875660431
A117: =A116+Model!$C$48 -> 0.104 | B117: 0.9333690647 | D117: 0.9333690647 | F117: 0.871177811 | H117: 0.1002116202 | I117: 0 | J117: 0 | L117: 0.09875660431
A118: =A117+Model!$C$48 -> 0.105 | B118: 0.9320593688 | D118: 0.9320593688 | F118: 0.8687346671 | H118: 0.1010815764 | I118: 0.1005022163 | J118: 1 | L118: 0.1005022163
A119: =A118+Model!$C$48 -> 0.106 | B119: 0.9307476093 | D119: 0.9307476093 | F119: 0.8662911122 | H119: 0.1019490893 | I119: 0 | J119: 0 | L119: 0.1005022163
A120: =A119+Model!$C$48 -> 0.107 | B120: 0.9294339784 | D120: 0.9294339784 | F120: 0.8638475202 | H120: 0.1028141586 | I120: 0.1022380566 | J120: 1 | L120: 0.1022380566
A121: =A120+Model!$C$48 -> 0.108 | B121: 0.9281186896 | D121: 0.9281186896 | F121: 0.861404302 | H121: 0.1036767845 | I121: 0 | J121: 0 | L121: 0.1022380566
A122: =A121+Model!$C$48 -> 0.109 | B122: 0.9268019408 | D122: 0.9268019408 | F122: 0.8589618375 | H122: 0.1045369676 | I122: 0.1039641228 | J122: 1 | L122: 0.1039641228
A123: =A122+Model!$C$48 -> 0.11 | B123: 0.9254839235 | D123: 0.9254839235 | F123: 0.8565204927 | H123: 0.1053947087 | I123: 0 | J123: 0 | L123: 0.1039641228
A124: =A123+Model!$C$48 -> 0.111 | B124: 0.924164823 | D124: 0.924164823 | F124: 0.8540806201 | H124: 0.1062500093 | I124: 0.105680419 | J124: 1 | L124: 0.105680419
A125: =A124+Model!$C$48 -> 0.112 | B125: 0.9228448186 | D125: 0.9228448186 | F125: 0.8516425592 | H125: 0.1071028709 | I125: 0 | J125: 0 | L125: 0.105680419
A126: =A125+Model!$C$48 -> 0.113 | B126: 0.9215240836 | D126: 0.9215240836 | F126: 0.8492066367 | H126: 0.1079532955 | I126: 0.1073869548 | J126: 1 | L126: 0.1073869548
A127: =A126+Model!$C$48 -> 0.114 | B127: 0.9202027859 | D127: 0.9202027859 | F127: 0.8467731672 | H127: 0.1088012854 | I127: 0 | J127: 0 | L127: 0.1073869548
A128: =A127+Model!$C$48 -> 0.115 | B128: 0.9188810875 | D128: 0.9188810875 | F128: 0.8443424529 | H128: 0.1096468432 | I128: 0.1090837458 | J128: 1 | L128: 0.1090837458
A129: =A128+Model!$C$48 -> 0.116 | B129: 0.9175591452 | D129: 0.9175591452 | F129: 0.8419147849 | H129: 0.1104899718 | I129: 0 | J129: 0 | L129: 0.1090837458
A130: =A129+Model!$C$48 -> 0.117 | B130: 0.9162371106 | D130: 0.9162371106 | F130: 0.8394904428 | H130: 0.1113306744 | I130: 0.1107708122 | J130: 1 | L130: 0.1107708122
A131: =A130+Model!$C$48 -> 0.118 | B131: 0.91491513 | D131: 0.91491513 | F131: 0.8370696951 | H131: 0.1121689545 | I131: 0 | J131: 0 | L131: 0.1107708122
A132: =A131+Model!$C$48 -> 0.119 | B132: 0.9135933584 | D132: 0.9135933584 | F132: 0.8346528246 | H132: 0.1130048158 | I132: 0.1124481793 | J132: 1 | L132: 0.1124481793
A133: =A132+Model!$C$48 -> 0.12 | B133: 0.9122719067 | D133: 0.9122719067 | F133: 0.8322400317 | H133: 0.1138382622 | I133: 0 | J133: 0 | L133: 0.1124481793
A134: =A133+Model!$C$48 -> 0.121 | B134: 0.9109509192 | D134: 0.9109509192 | F134: 0.8298315772 | H134: 0.114669298 | I134: 0.1141158764 | J134: 1 | L134: 0.1141158764
A135: =A134+Model!$C$48 -> 0.122 | B135: 0.9096305235 | D135: 0.9096305235 | F135: 0.8274276893 | H135: 0.1154979276 | I135: 0 | J135: 0 | L135: 0.1141158764
A136: =A135+Model!$C$48 -> 0.123 | B136: 0.9083108427 | D136: 0.9083108427 | F136: 0.825028587 | H136: 0.1163241558 | I136: 0.115773937 | J136: 1 | L136: 0.115773937
A137: =A136+Model!$C$48 -> 0.124 | B137: 0.9069919956 | D137: 0.9069919956 | F137: 0.8226344801 | H137: 0.1171479873 | I137: 0 | J137: 0 | L137: 0.115773937
A138: =A137+Model!$C$48 -> 0.125 | B138: 0.9056740968 | D138: 0.9056740968 | F138: 0.8202455697 | H138: 0.1179694273 | I138: 0.1174223981 | J138: 1 | L138: 0.1174223981
A139: =A138+Model!$C$48 -> 0.126 | B139: 0.9043572571 | D139: 0.9043572571 | F139: 0.8178620484 | H139: 0.1187884811 | I139: 0 | J139: 0 | L139: 0.1174223981
A140: =A139+Model!$C$48 -> 0.127 | B140: 0.903041583 | D140: 0.903041583 | F140: 0.8154841006 | H140: 0.1196051542 | I140: 0.1190613002 | J140: 1 | L140: 0.1190613002
A141: =A140+Model!$C$48 -> 0.128 | B141: 0.9017271776 | D141: 0.9017271776 | F141: =B141*D141 -> 0.8131119029 | H141: 0.1204194522 | I141: 0 | J141: 0 | L141: 0.1190613002
A142: =A141+Model!$C$48 -> 0.129 | B142: 0.9004141402 | D142: 0.9004141402 | F142: 0.8107456239 | H142: =0.5*(F142+F141)*(A142-A141)+H141 -> 0.121231381 | I142: 0.1206906869 | J142: 1 | L142: 0.1206906869
A143: =A142+Model!$C$48 -> 0.13 | B143: 0.8991025665 | D143: 0.8991025665 | F143: 0.808385425 | H143: 0.1220409465 | I143: 0 | J143: =IF(J142=1,0,1) -> 0 | L143: 0.1206906869
A144: =A143+Model!$C$48 -> 0.131 | B144: =ERF($B$10/SQRT(A144)) -> 0.8977925486 | D144: =ERF($B$11/SQRT(A144)) -> 0.8977925486 | F144: 0.8060314604 | H144: 0.1228481549 | I144: 0.1223106047 | J144: 1 | L144: 0.1223106047
A145: =A144+Model!$C$48 -> 0.132 | B145: 0.8964841929 | D145: 0.8964841929 | F145: 0.8036839082 | H145: 0.1236530126 | I145: =(I143+((A145-A144)/3)*(4*F143+2*F144))*J145 -> 0 | J145: 0 | L145: =IF(J145=1,I145,I144) -> 0.1223106047
A146: =A145+Model!$C$48 -> 0.133 | B146: 0.8951775515 | D146: 0.8951775515 | F146: 0.8013428487 | H146: 0.124455526 | I146: 0.1239211026 | J146: 1 | L146: 0.1239211026
A147: =A146+Model!$C$48 -> 0.134 | B147: 0.8938727231 | D147: 0.8938727231 | F147: 0.7990084451 | H147: 0.1252557016 | I147: 0 | J147: 0 | L147: 0.1239211026
A148: =A147+Model!$C$48 -> 0.135 | B148: 0.8925697871 | D148: 0.8925697871 | F148: 0.7966808248 | H148: 0.1260535463 | I148: 0.125522232 | J148: 1 | L148: 0.125522232
A149: =A148+Model!$C$48 -> 0.136 | B149: 0.89126882 | D149: 0.89126882 | F149: 0.7943601094 | H149: 0.1268490668 | I149: 0 | J149: 0 | L149: 0.125522232
A150: =A149+Model!$C$48 -> 0.137 | B150: 0.8899698953 | D150: 0.8899698953 | F150: 0.7920464145 | H150: 0.12764227 | I150: 0.1271140465 | J150: 1 | L150: 0.1271140465
A151: =A150+Model!$C$48 -> 0.138 | B151: 0.8886730839 | D151: 0.8886730839 | F151: 0.7897398501 | H151: 0.1284331631 | I151: 0 | J151: 0 | L151: 0.1271140465
A152: =A151+Model!$C$48 -> 0.139 | B152: 0.8873784539 | D152: 0.8873784539 | F152: 0.7874405204 | H152: 0.1292217533 | I152: 0.1286966017 | J152: 1 | L152: 0.1286966017
A153: =A152+Model!$C$48 -> 0.14 | B153: 0.8860860707 | D153: 0.8860860707 | F153: 0.7851485247 | H153: 0.1300080479 | I153: 0 | J153: 0 | L153: 0.1286966017
A154: =A153+Model!$C$48 -> 0.141 | B154: 0.8847959972 | D154: 0.8847959972 | F154: 0.7828639567 | H154: 0.1307920541 | I154: 0.1302699547 | J154: 1 | L154: 0.1302699547
A155: =A154+Model!$C$48 -> 0.142 | B155: 0.883508294 | D155: 0.883508294 | F155: 0.7805869056 | H155: 0.1315737795 | I155: 0 | J155: 0 | L155: 0.1302699547
A156: =A155+Model!$C$48 -> 0.143 | B156: 0.8822230191 | D156: 0.8822230191 | F156: 0.7783174555 | H156: 0.1323532317 | I156: 0.1318341646 | J156: 1 | L156: 0.1318341646
A157: =A156+Model!$C$48 -> 0.144 | B157: 0.8809402483 | D157: 0.8809402483 | F157: 0.776055721 | H157: 0.1331304183 | I157: 0 | J157: 0 | L157: 0.1318341646
A158: =A157+Model!$C$48 -> 0.145 | B158: 0.8796599962 | D158: 0.8796599962 | F158: 0.773801709 | H158: 0.133905347 | I158: 0.1333892917 | J158: 1 | L158: 0.1333892917
A159: =A158+Model!$C$48 -> 0.146 | B159: 0.8783823332 | D159: 0.8783823332 | F159: 0.7715555233 | H159: 0.1346780256 | I159: 0 | J159: 0 | L159: 0.1333892917
A160: =A159+Model!$C$48 -> 0.147 | B160: 0.8771073085 | D160: 0.8771073085 | F160: 0.7693172305 | H160: 0.135448462 | I160: 0.1349353976 | J160: 1 | L160: 0.1349353976
A161: =A160+Model!$C$48 -> 0.148 | B161: 0.8758349692 | D161: 0.8758349692 | F161: 0.7670868932 | H161: 0.1362166641 | I161: 0 | J161: 0 | L161: 0.1349353976
A162: =A161+Model!$C$48 -> 0.149 | B162: 0.8745653606 | D162: 0.8745653606 | F162: 0.7648645699 | H162: 0.1369826398 | I162: 0.1364725452 | J162: 1 | L162: 0.1364725452
A163: =A162+Model!$C$48 -> 0.15 | B163: 0.873298526 | D163: 0.873298526 | F163: 0.7626503155 | H163: 0.1377463972 | I163: 0 | J163: 0 | L163: 0.1364725452
A164: =A163+Model!$C$48 -> 0.151 | B164: 0.8720345069 | D164: 0.8720345069 | F164: 0.7604441813 | H164: 0.1385079445 | I164: 0.1380007982 | J164: 1 | L164: 0.1380007982
A165: =A164+Model!$C$48 -> 0.152 | B165: 0.870773343 | D165: 0.870773343 | F165: 0.7582462148 | H165: 0.1392672897 | I165: 0 | J165: 0 | L165: 0.1380007982
A166: =A165+Model!$C$48 -> 0.153 | B166: 0.8695150721 | D166: 0.8695150721 | F166: 0.7560564606 | H166: 0.140024441 | I166: 0.1395202212 | J166: 1 | L166: 0.1395202212
A167: =A166+Model!$C$48 -> 0.154 | B167: 0.8682597305 | D167: 0.8682597305 | F167: 0.7538749597 | H167: 0.1407794067 | I167: 0 | J167: 0 | L167: 0.1395202212
A168: =A167+Model!$C$48 -> 0.155 | B168: 0.8670073529 | D168: 0.8670073529 | F168: 0.75170175 | H168: 0.1415321951 | I168: 0.1410308798 | J168: 1 | L168: 0.1410308798
A169: =A168+Model!$C$48 -> 0.156 | B169: 0.8657579721 | D169: 0.8657579721 | F169: 0.7495368663 | H169: 0.1422828144 | I169: 0 | J169: 0 | L169: 0.1410308798
A170: =A169+Model!$C$48 -> 0.157 | B170: 0.8645116435 | D170: 0.8645116435 | F170: 0.7473803818 | H170: 0.143031273 | I170: 0.1425328401 | J170: 1 | L170: 0.1425328401
A171: =A170+Model!$C$48 -> 0.158 | B171: 0.8632683509 | D171: 0.8632683509 | F171: 0.7452322456 | H171: 0.1437775793 | I171: 0 | J171: 0 | L171: 0.1425328401
A172: =A171+Model!$C$48 -> 0.159 | B172: 0.8620281453 | D172: 0.8620281453 | F172: 0.7430925232 | H172: 0.1445217417 | I172: 0.1440261687 | J172: 1 | L172: 0.1440261687
A173: =A172+Model!$C$48 -> 0.16 | B173: 0.8607910538 | D173: 0.8607910538 | F173: 0.7409612383 | H173: 0.1452637686 | I173: 0 | J173: 0 | L173: 0.1440261687
A174: =A173+Model!$C$48 -> 0.161 | B174: 0.8595571024 | D174: 0.8595571024 | F174: 0.7388384123 | H174: 0.1460036684 | I174: 0.1455109329 | J174: 1 | L174: 0.1455109329
A175: =A174+Model!$C$48 -> 0.162 | B175: 0.8583263155 | D175: 0.8583263155 | F175: 0.7367240639 | H175: 0.1467414497 | I175: 0 | J175: 0 | L175: 0.1455109329
A176: =A175+Model!$C$48 -> 0.163 | B176: 0.8570987164 | D176: 0.8570987164 | F176: 0.7346182097 | H176: 0.1474771208 | I176: 0.1469872002 | J176: 1 | L176: 0.1469872002
A177: =A176+Model!$C$48 -> 0.164 | B177: 0.8558743271 | D177: 0.8558743271 | F177: 0.7325208638 | H177: 0.1482106903 | I177: 0 | J177: 0 | L177: 0.1469872002
A178: =A177+Model!$C$48 -> 0.165 | B178: 0.8546531684 | D178: 0.8546531684 | F178: 0.7304320382 | H178: 0.1489421668 | I178: 0.1484550384 | J178: 1 | L178: 0.1484550384
A179: =A178+Model!$C$48 -> 0.166 | B179: 0.85343526 | D179: 0.85343526 | F179: 0.728351743 | H179: 0.1496715587 | I179: 0 | J179: 0 | L179: 0.1484550384
A180: =A179+Model!$C$48 -> 0.167 | B180: 0.8522206205 | D180: 0.8522206205 | F180: 0.7262799861 | H180: 0.1503988745 | I180: 0.1499145156 | J180: 1 | L180: 0.1499145156
A181: =A180+Model!$C$48 -> 0.168 | B181: 0.8510092675 | D181: 0.8510092675 | F181: 0.7242167733 | H181: 0.1511241229 | I181: 0 | J181: 0 | L181: 0.1499145156
A182: =A181+Model!$C$48 -> 0.169 | B182: 0.8498012172 | D182: 0.8498012172 | F182: 0.7221621088 | H182: 0.1518473124 | I182: 0.1513657001 | J182: 1 | L182: 0.1513657001
A183: =A182+Model!$C$48 -> 0.17 | B183: 0.8485964853 | D183: 0.8485964853 | F183: 0.7201159949 | H183: 0.1525684514 | I183: 0 | J183: 0 | L183: 0.1513657001
A184: =A183+Model!$C$48 -> 0.171 | B184: 0.8473951147 | D184: 0.8473951147 | F184: 0.7180784805 | H184: 0.1532875487 | I184: 0.1528086602 | J184: 1 | L184: 0.1528086602
A185: =A184+Model!$C$48 -> 0.172 | B185: 0.8461970633 | D185: 0.8461970633 | F185: 0.7160494699 | H185: 0.1540046126 | I185: 0 | J185: 0 | L185: 0.1528086602
A186: =A185+Model!$C$48 -> 0.173 | B186: 0.8450023708 | D186: 0.8450023708 | F186: 0.7140290067 | H186: 0.1547196519 | I186: 0.1542434645 | J186: 1 | L186: 0.1542434645
A187: =A186+Model!$C$48 -> 0.174 | B187: 0.843811049 | D187: 0.843811049 | F187: 0.7120170864 | H187: 0.1554326749 | I187: 0 | J187: 0 | L187: 0.1542434645
A188: =A187+Model!$C$48 -> 0.175 | B188: 0.8426231088 | D188: 0.8426231088 | F188: 0.7100137035 | H188: 0.1561436903 | I188: 0.1556701812 | J188: 1 | L188: 0.1556701812
A189: =A188+Model!$C$48 -> 0.176 | B189: 0.8414385602 | D189: 0.8414385602 | F189: 0.7080188506 | H189: 0.1568527066 | I189: 0 | J189: 0 | L189: 0.1556701812
A190: =A189+Model!$C$48 -> 0.177 | B190: 0.8402574125 | D190: 0.8402574125 | F190: 0.7060325192 | H190: 0.1575597323 | I190: 0.1570888788 | J190: 1 | L190: 0.1570888788
A191: =A190+Model!$C$48 -> 0.178 | B191: 0.839079674 | D191: 0.839079674 | F191: 0.7040546994 | H191: 0.1582647759 | I191: 0 | J191: 0 | L191: 0.1570888788
A192: =A191+Model!$C$48 -> 0.179 | B192: 0.8379053527 | D192: 0.8379053527 | F192: 0.70208538 | H192: 0.1589678459 | I192: 0.1584996252 | J192: 1 | L192: 0.1584996252
A193: =A192+Model!$C$48 -> 0.18 | B193: 0.8367344553 | D193: 0.8367344553 | F193: 0.7001245487 | H193: 0.1596689509 | I193: 0 | J193: 0 | L193: 0.1584996252
A194: =A193+Model!$C$48 -> 0.181 | B194: 0.8355669883 | D194: 0.8355669883 | F194: 0.6981721919 | H194: 0.1603680993 | I194: 0.1599024888 | J194: 1 | L194: 0.1599024888
A195: =A194+Model!$C$48 -> 0.182 | B195: 0.8344029571 | D195: 0.8344029571 | F195: 0.6962282949 | H195: 0.1610652995 | I195: 0 | J195: 0 | L195: 0.1599024888
A196: =A195+Model!$C$48 -> 0.183 | B196: 0.8332423669 | D196: 0.8332423669 | F196: 0.694292842 | H196: 0.1617605601 | I196: 0.1612975372 | J196: 1 | L196: 0.1612975372
A197: =A196+Model!$C$48 -> 0.184 | B197: 0.8320852538 | D197: 0.8320852538 | F197: 0.6923658697 | H197: 0.1624538894 | I197: 0 | J197: 0 | L197: 0.1612975372
A198: =A197+Model!$C$48 -> 0.185 | B198: 0.8309315591 | D198: 0.8309315591 | F198: 0.6904472559 | H198: 0.163145296 | I198: 0.1626848383 | J198: 1 | L198: 0.1626848383
A199: =A198+Model!$C$48 -> 0.186 | B199: 0.8297813164 | D199: 0.8297813164 | F199: 0.6885370331 | H199: 0.1638347881 | I199: 0 | J199: 0 | L199: 0.1626848383
A200: =A199+Model!$C$48 -> 0.187 | B200: 0.8286345284 | D200: 0.8286345284 | F200: 0.6866351816 | H200: 0.1645223742 | I200: 0.1640644593 | J200: 1 | L200: 0.1640644593
A201: =A200+Model!$C$48 -> 0.188 | B201: 0.8274911969 | D201: 0.8274911969 | F201: 0.6847416809 | H201: 0.1652080627 | I201: 0 | J201: 0 | L201: 0.1640644593
A202: =A201+Model!$C$48 -> 0.189 | B202: 0.8263513234 | D202: 0.8263513234 | F202: 0.6828565096 | H202: 0.1658918618 | I202: 0.1654364673 | J202: 1 | L202: 0.1654364673
A203: =A202+Model!$C$48 -> 0.19 | B203: 0.8252149088 | D203: 0.8252149088 | F203: 0.6809796457 | H203: 0.1665737798 | I203: 0 | J203: 0 | L203: 0.1654364673
A204: =A203+Model!$C$48 -> 0.191 | B204: 0.8240819536 | D204: 0.8240819536 | F204: 0.6791110663 | H204: 0.1672538252 | I204: 0.1668009291 | J204: 1 | L204: 0.1668009291
A205: =A204+Model!$C$48 -> 0.192 | B205: 0.8229524578 | D205: 0.8229524578 | F205: =B205*D205 -> 0.6772507477 | H205: 0.1679320061 | I205: 0 | J205: 0 | L205: 0.1668009291
A206: =A205+Model!$C$48 -> 0.193 | B206: 0.8218264207 | D206: 0.8218264207 | F206: 0.6753986657 | H206: =0.5*(F206+F205)*(A206-A205)+H205 -> 0.1686083308 | I206: 0.168157911 | J206: 1 | L206: 0.168157911
A207: =A206+Model!$C$48 -> 0.194 | B207: 0.8207038414 | D207: 0.8207038414 | F207: 0.6735547953 | H207: 0.1692828075 | I207: 0 | J207: =IF(J206=1,0,1) -> 0 | L207: 0.168157911
A208: =A207+Model!$C$48 -> 0.195 | B208: =ERF($B$10/SQRT(A208)) -> 0.8195847185 | D208: =ERF($B$11/SQRT(A208)) -> 0.8195847185 | F208: 0.6717191108 | H208: 0.1699554445 | I208: 0.1695074791 | J208: 1 | L208: 0.1695074791
A209: =A208+Model!$C$48 -> 0.196 | B209: 0.8184690502 | D209: 0.8184690502 | F209: 0.6698915861 | H209: 0.1706262498 | I209: =(I207+((A209-A208)/3)*(4*F207+2*F208))*J209 -> 0 | J209: 0 | L209: =IF(J209=1,I209,I208) -> 0.1695074791
... 805 more rows

Sheet pS2 (hidden)
A10: a | B10: =(Results!$A$10+Model!$G$48)/(SQRT(4*Model!$G$50*Results!A$12)) -> 0.4182517991
A11: b | B11: =(Results!$A$11-Model!$G$49)/(SQRT(4*Model!$G$50*Results!A$12)) -> 0.4182517991
A12: t | B12: erf(a/sqrt(t)) | D12: erf(b/sqrt(t)) | F12: integrand | H12: trapezoidal integral O(h^2) | I12: Simpson integral O(h^4) | J12: kount | L12: Simpson total Sum
A13: 0 | B13: 1 | D13: 1 | F13: =B13*D13 -> 1 | H13: 0 | I13: 0
A14: =Model!$C$48 -> 0.001 | B14: =ERF($B$10/SQRT(A14)) -> 1 | D14: =IF($B$11>0,ERF($B$11/SQRT(A14)),-ERF(-$B$11/SQRT(A14))) -> 1 | F14: 1 | H14: =0.5*(F14+F13)*(A14-A13)+H13 -> 0.001 | J14: 1
A15: =A14+Model!$C$48 -> 0.002 | B15: 1 | D15: 1 | F15: 1 | H15: 0.002 | J15: =IF(J14=1,0,1) -> 0
A16: =A15+Model!$C$48 -> 0.003 | B16: 1 | D16: 1 | F16: 1 | H16: 0.003 | I16: =(I13+((A16-A15)/3)*(F13+4*F14+2*F15))*J16 -> 0.002333333333 | J16: 1 | L16: =IF(J16=1,I16,I15) -> 0.002333333333
A17: =A16+Model!$C$48 -> 0.004 | B17: 1 | D17: 1 | F17: 1 | H17: 0.004 | I17: =(I15+((A17-A16)/3)*(4*F15+2*F16))*J17 -> 0 | J17: 0 | L17: =IF(J17=1,I17,I16) -> 0.002333333333
A18: =A17+Model!$C$48 -> 0.005 | B18: 1 | D18: 1 | F18: 1 | H18: 0.005 | I18: 0.004333333333 | J18: 1 | L18: 0.004333333333
A19: =A18+Model!$C$48 -> 0.006 | B19: 1 | D19: 1 | F19: 1 | H19: 0.006 | I19: 0 | J19: 0 | L19: 0.004333333333
A20: =A19+Model!$C$48 -> 0.007 | B20: 1 | D20: 1 | F20: 1 | H20: 0.007 | I20: 0.006333333333 | J20: 1 | L20: 0.006333333333
A21: =A20+Model!$C$48 -> 0.008 | B21: 1 | D21: 1 | F21: 0.9999999999 | H21: 0.008 | I21: 0 | J21: 0 | L21: 0.006333333333
A22: =A21+Model!$C$48 -> 0.009 | B22: 0.9999999995 | D22: 0.9999999995 | F22: 0.9999999991 | H22: 0.008999999999 | I22: 0.008333333333 | J22: 1 | L22: 0.008333333333
A23: =A22+Model!$C$48 -> 0.01 | B23: 0.9999999967 | D23: 0.9999999967 | F23: 0.9999999934 | H23: 0.009999999996 | I23: 0 | J23: 0 | L23: 0.008333333333
A24: =A23+Model!$C$48 -> 0.011 | B24: 0.999999983 | D24: 0.999999983 | F24: 0.9999999659 | H24: 0.01099999998 | I24: 0.01033333333 | J24: 1 | L24: 0.01033333333
A25: =A24+Model!$C$48 -> 0.012 | B25: 0.9999999332 | D25: 0.9999999332 | F25: 0.9999998664 | H25: 0.01199999989 | I25: 0 | J25: 0 | L25: 0.01033333333
A26: =A25+Model!$C$48 -> 0.013 | B26: 0.9999997872 | D26: 0.9999997872 | F26: 0.9999995744 | H26: 0.01299999961 | I26: 0.01233333319 | J26: 1 | L26: 0.01233333319
A27: =A26+Model!$C$48 -> 0.014 | B27: 0.9999994239 | D27: 0.9999994239 | F27: 0.9999988478 | H27: 0.01399999882 | I27: 0 | J27: 0 | L27: 0.01233333319
A28: =A27+Model!$C$48 -> 0.015 | B28: 0.9999986316 | D28: 0.9999986316 | F28: 0.9999972632 | H28: 0.01499999688 | I28: 0.01433333186 | J28: 1 | L28: 0.01433333186
A29: =A28+Model!$C$48 -> 0.016 | B29: 0.9999970776 | D29: 0.9999970776 | F29: 0.9999941551 | H29: 0.01599999259 | I29: 0 | J29: 0 | L29: 0.01433333186
A30: =A29+Model!$C$48 -> 0.017 | B30: 0.9999942826 | D30: 0.9999942826 | F30: 0.9999885651 | H30: 0.01699998395 | I30: 0.01633332431 | J30: 1 | L30: 0.01633332431
A31: =A30+Model!$C$48 -> 0.018 | B31: 0.9999896036 | D31: 0.9999896036 | F31: 0.9999792074 | H31: 0.01799996783 | I31: 0 | J31: 0 | L31: 0.01633332431
A32: =A31+Model!$C$48 -> 0.019 | B32: 0.9999822268 | D32: 0.9999822268 | F32: 0.9999644539 | H32: 0.01899993966 | I32: 0.0183332952 | J32: 1 | L32: 0.0183332952
A33: =A32+Model!$C$48 -> 0.02 | B33: 0.9999711702 | D33: 0.9999711702 | F33: 0.9999423412 | H33: 0.01999989306 | I33: 0 | J33: 0 | L33: 0.0183332952
A34: =A33+Model!$C$48 -> 0.021 | B34: 0.9999552963 | D34: 0.9999552963 | F34: 0.9999105946 | H34: 0.02099981953 | I34: 0.02033320937 | J34: 1 | L34: 0.02033320937
A35: =A34+Model!$C$48 -> 0.022 | B35: 0.9999333321 | D35: 0.9999333321 | F35: 0.9998666686 | H35: 0.02199970816 | I35: 0 | J35: 0 | L35: 0.02033320937
A36: =A35+Model!$C$48 -> 0.023 | B36: 0.9999038939 | D36: 0.9999038939 | F36: 0.9998077971 | H36: 0.02299954539 | I36: 0.02233300127 | J36: 1 | L36: 0.02233300127
A37: =A36+Model!$C$48 -> 0.024 | B37: 0.9998655161 | D37: 0.9998655161 | F37: 0.9997310503 | H37: 0.02399931482 | I37: 0 | J37: 0 | L37: 0.02233300127
A38: =A37+Model!$C$48 -> 0.025 | B38: 0.9998166797 | D38: 0.9998166797 | F38: 0.999633393 | H38: 0.02499899704 | I38: 0.0243325657 | J38: 1 | L38: 0.0243325657
A39: =A38+Model!$C$48 -> 0.026 | B39: 0.9997558419 | D39: 0.9997558419 | F39: 0.9995117433 | H39: 0.02599856961 | I39: 0 | J39: 0 | L39: 0.0243325657
A40: =A39+Model!$C$48 -> 0.027 | B40: 0.9996814624 | D40: 0.9996814624 | F40: 0.9993630264 | H40: 0.02699800699 | I40: 0.02633175139 | J40: 1 | L40: 0.02633175139
A41: =A40+Model!$C$48 -> 0.028 | B41: 0.9995920286 | D41: 0.9995920286 | F41: 0.9991842237 | H41: 0.02799728062 | I41: 0 | J41: 0 | L41: 0.02633175139
A42: =A41+Model!$C$48 -> 0.029 | B42: 0.9994860761 | D42: 0.9994860761 | F42: 0.9989724163 | H42: 0.02899635894 | I42: 0.02833035824 | J42: 1 | L42: 0.02833035824
A43: =A42+Model!$C$48 -> 0.03 | B43: 0.9993622071 | D43: 0.9993622071 | F43: 0.998724821 | H43: 0.02999520756 | I43: 0 | J43: 0 | L43: 0.02833035824
A44: =A43+Model!$C$48 -> 0.031 | B44: 0.999219105 | D44: 0.999219105 | F44: 0.9984388197 | H44: 0.03099378938 | I44: 0.03032813801 | J44: 1 | L44: 0.03032813801
A45: =A44+Model!$C$48 -> 0.032 | B45: 0.9990555452 | D45: 0.9990555452 | F45: 0.9981119824 | H45: 0.03199206478 | I45: 0 | J45: 0 | L45: 0.03032813801
A46: =A45+Model!$C$48 -> 0.033 | B46: 0.998870404 | D46: 0.998870404 | F46: 0.997742084 | H46: 0.03298999181 | I46: 0.03232479776 | J46: 1 | L46: 0.03232479776
A47: =A46+Model!$C$48 -> 0.034 | B47: 0.9986626638 | D47: 0.9986626638 | F47: 0.997327116 | H47: 0.03398752641 | I47: 0 | J47: 0 | L47: 0.03232479776
A48: =A47+Model!$C$48 -> 0.035 | B48: 0.9984314161 | D48: 0.9984314161 | F48: 0.9968652927 | H48: 0.03498462262 | I48: 0.03432000528 | J48: 1 | L48: 0.03432000528
A49: =A48+Model!$C$48 -> 0.036 | B49: 0.9981758629 | D49: 0.9981758629 | F49: 0.9963550533 | H49: 0.03598123279 | I49: 0 | J49: 0 | L49: 0.03432000528
A50: =A49+Model!$C$48 -> 0.037 | B50: 0.9978953159 | D50: 0.9978953159 | F50: 0.9957950615 | H50: 0.03697730785 | I50: 0.03631339571 | J50: 1 | L50: 0.03631339571
A51: =A50+Model!$C$48 -> 0.038 | B51: 0.997589194 | D51: 0.997589194 | F51: 0.9951842001 | H51: 0.03797279748 | I51: 0 | J51: 0 | L51: 0.03631339571
A52: =A51+Model!$C$48 -> 0.039 | B52: 0.9972570209 | D52: 0.9972570209 | F52: 0.9945215656 | H52: 0.03896765036 | I52: 0.03830457859 | J52: 1 | L52: 0.03830457859
A53: =A52+Model!$C$48 -> 0.04 | B53: 0.99689842 | D53: 0.99689842 | F53: 0.9938064597 | H53: 0.03996181437 | I53: 0 | J53: 0 | L53: 0.03830457859
A54: =A53+Model!$C$48 -> 0.041 | B54: 0.9965131103 | D54: 0.9965131103 | F54: 0.993038379 | H54: 0.04095523679 | I54: 0.04029314498 | J54: 1 | L54: 0.04029314498
A55: =A54+Model!$C$48 -> 0.042 | B55: 0.9961009009 | D55: 0.9961009009 | F55: 0.9922170048 | H55: 0.04194786448 | I55: 0 | J55: 0 | L55: 0.04029314498
A56: =A55+Model!$C$48 -> 0.043 | B56: 0.9956616852 | D56: 0.9956616852 | F56: 0.9913421913 | H56: 0.04293964408 | I56: 0.04227867416 | J56: 1 | L56: 0.04227867416
A57: =A56+Model!$C$48 -> 0.044 | B57: 0.9951954352 | D57: 0.9951954352 | F57: 0.9904139542 | H57: 0.04393052215 | I57: 0 | J57: 0 | L57: 0.04227867416
A58: =A57+Model!$C$48 -> 0.045 | B58: 0.9947021958 | D58: 0.9947021958 | F58: 0.9894324583 | H58: 0.04492044536 | I58: 0.04426073972 | J58: 1 | L58: 0.04426073972
A59: =A58+Model!$C$48 -> 0.046 | B59: 0.9941820788 | D59: 0.9941820788 | F59: 0.9883980059 | H59: 0.04590936059 | I59: 0 | J59: 0 | L59: 0.04426073972
A60: =A59+Model!$C$48 -> 0.047 | B60: 0.9936352575 | D60: 0.9936352575 | F60: 0.9873110249 | H60: 0.04689721511 | I60: 0.046238915 | J60: 1 | L60: 0.046238915
A61: =A60+Model!$C$48 -> 0.048 | B61: 0.993061961 | D61: 0.993061961 | F61: 0.9861720583 | H61: 0.04788395665 | I61: 0 | J61: 0 | L61: 0.046238915
A62: =A61+Model!$C$48 -> 0.049 | B62: 0.9924624675 | D62: 0.9924624675 | F62: 0.9849817493 | H62: 0.04886953355 | I62: 0.04821277774 | J62: 1 | L62: 0.04821277774
A63: =A62+Model!$C$48 -> 0.05 | B63: 0.9918371017 | D63: 0.9918371017 | F63: 0.9837408363 | H63: 0.04985389485 | I63: 0 | J63: 0 | L63: 0.04821277774
A64: =A63+Model!$C$48 -> 0.051 | B64: 0.9911862282 | D64: 0.9911862282 | F64: 0.982450139 | H64: 0.05083699033 | I64: 0.05018191396 | J64: 1 | L64: 0.05018191396
A65: =A64+Model!$C$48 -> 0.052 | B65: 0.9905102474 | D65: 0.9905102474 | F65: 0.9811105502 | H65: 0.05181877068 | I65: 0 | J65: 0 | L65: 0.05018191396
A66: =A65+Model!$C$48 -> 0.053 | B66: 0.9898095909 | D66: 0.9898095909 | F66: 0.9797230263 | H66: 0.05279918747 | I66: 0.05214592118 | J66: 1 | L66: 0.05214592118
A67: =A66+Model!$C$48 -> 0.054 | B67: 0.9890847178 | D67: 0.9890847178 | F67: 0.978288579 | H67: 0.05377819327 | I67: 0 | J67: 0 | L67: 0.05214592118
A68: =A67+Model!$C$48 -> 0.055 | B68: 0.9883361108 | D68: 0.9883361108 | F68: 0.9768082678 | H68: 0.05475574169 | I68: 0.05410441093 | J68: 1 | L68: 0.05410441093
A69: =A68+Model!$C$48 -> 0.056 | B69: 0.9875642724 | D69: 0.9875642724 | F69: 0.9752831922 | H69: 0.05573178742 | I69: 0 | J69: 0 | L69: 0.05410441093
A70: =A69+Model!$C$48 -> 0.057 | B70: 0.9867697224 | D70: 0.9867697224 | F70: 0.973714485 | H70: 0.05670628626 | I70: 0.05605701075 | J70: 1 | L70: 0.05605701075
A71: =A70+Model!$C$48 -> 0.058 | B71: 0.9859529941 | D71: 0.9859529941 | F71: 0.9721033066 | H71: 0.05767919516 | I71: 0 | J71: 0 | L71: 0.05605701075
A72: =A71+Model!$C$48 -> 0.059 | B72: 0.9851146336 | D72: 0.9851146336 | F72: 0.9704508414 | H72: 0.05865047223 | I72: 0.0580033656 | J72: 1 | L72: 0.0580033656
A73: =A72+Model!$C$48 -> 0.06 | B73: 0.9842551916 | D73: 0.9842551916 | F73: 0.9687582821 | H73: 0.05962007679 | I73: 0 | J73: 0 | L73: 0.0580033656
A74: =A73+Model!$C$48 -> 0.061 | B74: 0.9833752288 | D74: 0.9833752288 | F74: 0.9670268406 | H74: 0.06058796935 | I74: 0.05994313891 | J74: 1 | L74: 0.05994313891
A75: =A74+Model!$C$48 -> 0.062 | B75: 0.9824753093 | D75: 0.9824753093 | F75: 0.9652577333 | H75: 0.06155411164 | I75: 0 | J75: 0 | L75: 0.05994313891
A76: =A75+Model!$C$48 -> 0.063 | B76: 0.9815559994 | D76: 0.9815559994 | F76: 0.96345218 | H76: 0.0625184666 | I76: 0.06187601319 | J76: 1 | L76: 0.06187601319
A77: =A76+Model!$C$48 -> 0.064 | B77: 0.9806178664 | D77: 0.9806178664 | F77: =B77*D77 -> 0.9616113998 | H77: 0.06348099839 | I77: 0 | J77: 0 | L77: 0.06187601319
A78: =A77+Model!$C$48 -> 0.065 | B78: =ERF($B$10/SQRT(A78)) -> 0.9796614765 | D78: =IF($B$11>0,ERF($B$11/SQRT(A78)),-ERF(-$B$11/SQRT(A78))) -> 0.9796614765 | F78: 0.9597366084 | H78: =0.5*(F78+F77)*(A78-A77)+H77 -> 0.06444167239 | I78: 0.06380169036 | J78: 1 | L78: 0.06380169036
A79: =A78+Model!$C$48 -> 0.066 | B79: 0.9786873939 | D79: 0.9786873939 | F79: 0.9578290151 | H79: 0.0654004552 | I79: 0 | J79: =IF(J78=1,0,1) -> 0 | L79: 0.06380169036
A80: =A79+Model!$C$48 -> 0.067 | B80: 0.9776961797 | D80: 0.9776961797 | F80: 0.9558898198 | H80: 0.06635731462 | I80: 0.06571989185 | J80: 1 | L80: 0.06571989185
A81: =A80+Model!$C$48 -> 0.068 | B81: 0.9766883901 | D81: 0.9766883901 | F81: 0.9539202114 | H81: 0.06731221964 | I81: =(I79+((A81-A80)/3)*(4*F79+2*F80))*J81 -> 0 | J81: 0 | L81: =IF(J81=1,I81,I80) -> 0.06571989185
A82: =A81+Model!$C$48 -> 0.069 | B82: 0.9756645763 | D82: 0.9756645763 | F82: 0.9519213654 | H82: 0.06826514043 | I82: 0.06763035842 | J82: 1 | L82: 0.06763035842
A83: =A82+Model!$C$48 -> 0.07 | B83: 0.9746252855 | D83: 0.9746252855 | F83: 0.9498944472 | H83: 0.06921604833 | I83: 0 | J83: 0 | L83: 0.06763035842
A84: =A83+Model!$C$48 -> 0.071 | B84: 0.9735710507 | D84: 0.9735710507 | F84: 0.9478405908 | H84: 0.07016491585 | I84: 0.06953284987 | J84: 1 | L84: 0.06953284987
A85: =A84+Model!$C$48 -> 0.072 | B85: 0.9725024044 | D85: 0.9725024044 | F85: 0.9457609265 | H85: 0.07111171661 | I85: 0 | J85: 0 | L85: 0.06953284987
A86: =A85+Model!$C$48 -> 0.073 | B86: 0.9714198683 | D86: 0.9714198683 | F86: 0.9436565606 | H86: 0.07205642535 | I86: 0.07142714461 | J86: 1 | L86: 0.07142714461
A87: =A86+Model!$C$48 -> 0.074 | B87: 0.9703239559 | D87: 0.9703239559 | F87: 0.9415285794 | H87: 0.07299901792 | I87: 0 | J87: 0 | L87: 0.07142714461
A88: =A87+Model!$C$48 -> 0.075 | B88: 0.9692151713 | D88: 0.9692151713 | F88: 0.9393780483 | H88: 0.07393947124 | I88: 0.07331303908 | J88: 1 | L88: 0.07331303908
A89: =A88+Model!$C$48 -> 0.076 | B89: 0.9680940094 | D89: 0.9680940094 | F89: 0.937206011 | H89: 0.07487776327 | I89: 0 | J89: 0 | L89: 0.07331303908
A90: =A89+Model!$C$48 -> 0.077 | B90: 0.9669609551 | D90: 0.9669609551 | F90: 0.9350134887 | H90: 0.07581387302 | I90: 0.07519034715 | J90: 1 | L90: 0.07519034715
A91: =A90+Model!$C$48 -> 0.078 | B91: 0.9658164838 | D91: 0.9658164838 | F91: 0.9328014804 | H91: 0.0767477805 | I91: 0 | J91: 0 | L91: 0.07519034715
A92: =A91+Model!$C$48 -> 0.079 | B92: 0.9646610605 | D92: 0.9646610605 | F92: 0.9305709617 | H92: 0.07767946672 | I92: 0.07705889945 | J92: 1 | L92: 0.07705889945
A93: =A92+Model!$C$48 -> 0.08 | B93: 0.9634951402 | D93: 0.9634951402 | F93: 0.9283228852 | H93: 0.07860891365 | I93: 0 | J93: 0 | L93: 0.07705889945
A94: =A93+Model!$C$48 -> 0.081 | B94: 0.9623191674 | D94: 0.9623191674 | F94: 0.92605818 | H94: 0.07953610418 | I94: 0.07891854266 | J94: 1 | L94: 0.07891854266
A95: =A94+Model!$C$48 -> 0.082 | B95: 0.9611335813 | D95: 0.9611335813 | F95: 0.9237777611 | H95: 0.08046102215 | I95: 0 | J95: 0 | L95: 0.07891854266
A96: =A95+Model!$C$48 -> 0.083 | B96: 0.9599387968 | D96: 0.9599387968 | F96: 0.9214824935 | H96: 0.08138365228 | I96: 0.08076913874 | J96: 1 | L96: 0.08076913874
A97: =A96+Model!$C$48 -> 0.084 | B97: 0.9587352316 | D97: 0.9587352316 | F97: 0.9191732444 | H97: 0.08230398014 | I97: 0 | J97: 0 | L97: 0.08076913874
A98: =A97+Model!$C$48 -> 0.085 | B98: 0.9575232892 | D98: 0.9575232892 | F98: 0.9168508493 | H98: 0.08322199219 | I98: 0.08261056423 | J98: 1 | L98: 0.08261056423
A99: =A98+Model!$C$48 -> 0.086 | B99: 0.9563033624 | D99: 0.9563033624 | F99: 0.9145161209 | H99: 0.08413767568 | I99: 0 | J99: 0 | L99: 0.08261056423
A100: =A99+Model!$C$48 -> 0.087 | B100: 0.955075834 | D100: 0.955075834 | F100: 0.9121698487 | H100: 0.08505101866 | I100: 0.08444270944 | J100: 1 | L100: 0.08444270944
A101: =A100+Model!$C$48 -> 0.088 | B101: 0.9538410769 | D101: 0.9538410769 | F101: 0.9098127999 | H101: 0.08596200999 | I101: 0 | J101: 0 | L101: 0.08444270944
A102: =A101+Model!$C$48 -> 0.089 | B102: 0.9525994537 | D102: 0.9525994537 | F102: 0.9074457191 | H102: 0.08687063924 | I102: 0.08626547777 | J102: 1 | L102: 0.08626547777
A103: =A102+Model!$C$48 -> 0.09 | B103: 0.9513513173 | D103: 0.9513513173 | F103: 0.905069329 | H103: 0.08777689677 | I103: 0 | J103: 0 | L103: 0.08626547777
A104: =A103+Model!$C$48 -> 0.091 | B104: 0.9500970111 | D104: 0.9500970111 | F104: 0.9026843305 | H104: 0.0886807736 | I104: 0.08807878495 | J104: 1 | L104: 0.08807878495
A105: =A104+Model!$C$48 -> 0.092 | B105: 0.9488368686 | D105: 0.9488368686 | F105: 0.9002914032 | H105: 0.08958226147 | I105: 0 | J105: 0 | L105: 0.08807878495
A106: =A105+Model!$C$48 -> 0.093 | B106: 0.947571214 | D106: 0.947571214 | F106: 0.8978912056 | H106: 0.09048135277 | I106: 0.08988255833 | J106: 1 | L106: 0.08988255833
A107: =A106+Model!$C$48 -> 0.094 | B107: 0.9463003696 | D107: 0.9463003696 | F107: 0.8954843895 | H107: 0.09137804057 | I107: 0 | J107: 0 | L107: 0.08988255833
A108: =A107+Model!$C$48 -> 0.095 | B108: 0.9450246276 | D108: 0.9450246276 | F108: 0.8930715467 | H108: 0.09227231854 | I108: 0.09167673619 | J108: 1 | L108: 0.09167673619
A109: =A108+Model!$C$48 -> 0.096 | B109: 0.9437442915 | D109: 0.9437442915 | F109: 0.8906532878 | H109: 0.09316418095 | I109: 0 | J109: 0 | L109: 0.09167673619
A110: =A109+Model!$C$48 -> 0.097 | B110: 0.9424596497 | D110: 0.9424596497 | F110: 0.8882301913 | H110: 0.09405362269 | I110: 0.09346126711 | J110: 1 | L110: 0.09346126711
A111: =A110+Model!$C$48 -> 0.098 | B111: 0.9411709819 | D111: 0.9411709819 | F111: 0.8858028172 | H111: 0.0949406392 | I111: 0 | J111: 0 | L111: 0.09346126711
A112: =A111+Model!$C$48 -> 0.099 | B112: 0.9398785595 | D112: 0.9398785595 | F112: 0.8833717065 | H112: 0.09582522646 | I112: 0.09523610925 | J112: 1 | L112: 0.09523610925
A113: =A112+Model!$C$48 -> 0.1 | B113: 0.9385826456 | D113: 0.9385826456 | F113: 0.8809373827 | H113: 0.096707381 | I113: 0 | J113: 0 | L113: 0.09523610925
A114: =A113+Model!$C$48 -> 0.101 | B114: 0.9372834956 | D114: 0.9372834956 | F114: 0.8785003512 | H114: 0.09758709987 | I114: 0.09700122978 | J114: 1 | L114: 0.09700122978
A115: =A114+Model!$C$48 -> 0.102 | B115: 0.9359813568 | D115: 0.9359813568 | F115: 0.8760611004 | H115: 0.0984643806 | I115: 0 | J115: 0 | L115: 0.09700122978
A116: =A115+Model!$C$48 -> 0.103 | B116: 0.9346764691 | D116: 0.9346764691 | F116: 0.8736201019 | H116: 0.0993392212 | I116: 0.09875660431 | J116: 1 | L116: 0.09875660431
A117: =A116+Model!$C$48 -> 0.104 | B117: 0.9333690647 | D117: 0.9333690647 | F117: 0.871177811 | H117: 0.1002116202 | I117: 0 | J117: 0 | L117: 0.09875660431
A118: =A117+Model!$C$48 -> 0.105 | B118: 0.9320593688 | D118: 0.9320593688 | F118: 0.8687346671 | H118: 0.1010815764 | I118: 0.1005022163 | J118: 1 | L118: 0.1005022163
A119: =A118+Model!$C$48 -> 0.106 | B119: 0.9307476093 | D119: 0.9307476093 | F119: 0.8662911122 | H119: 0.1019490893 | I119: 0 | J119: 0 | L119: 0.1005022163
A120: =A119+Model!$C$48 -> 0.107 | B120: 0.9294339784 | D120: 0.9294339784 | F120: 0.8638475202 | H120: 0.1028141586 | I120: 0.1022380566 | J120: 1 | L120: 0.1022380566
A121: =A120+Model!$C$48 -> 0.108 | B121: 0.9281186896 | D121: 0.9281186896 | F121: 0.861404302 | H121: 0.1036767845 | I121: 0 | J121: 0 | L121: 0.1022380566
A122: =A121+Model!$C$48 -> 0.109 | B122: 0.9268019408 | D122: 0.9268019408 | F122: 0.8589618375 | H122: 0.1045369676 | I122: 0.1039641228 | J122: 1 | L122: 0.1039641228
A123: =A122+Model!$C$48 -> 0.11 | B123: 0.9254839235 | D123: 0.9254839235 | F123: 0.8565204927 | H123: 0.1053947087 | I123: 0 | J123: 0 | L123: 0.1039641228
A124: =A123+Model!$C$48 -> 0.111 | B124: 0.924164823 | D124: 0.924164823 | F124: 0.8540806201 | H124: 0.1062500093 | I124: 0.105680419 | J124: 1 | L124: 0.105680419
A125: =A124+Model!$C$48 -> 0.112 | B125: 0.9228448186 | D125: 0.9228448186 | F125: 0.8516425592 | H125: 0.1071028709 | I125: 0 | J125: 0 | L125: 0.105680419
A126: =A125+Model!$C$48 -> 0.113 | B126: 0.9215240836 | D126: 0.9215240836 | F126: 0.8492066367 | H126: 0.1079532955 | I126: 0.1073869548 | J126: 1 | L126: 0.1073869548
A127: =A126+Model!$C$48 -> 0.114 | B127: 0.9202027859 | D127: 0.9202027859 | F127: 0.8467731672 | H127: 0.1088012854 | I127: 0 | J127: 0 | L127: 0.1073869548
A128: =A127+Model!$C$48 -> 0.115 | B128: 0.9188810875 | D128: 0.9188810875 | F128: 0.8443424529 | H128: 0.1096468432 | I128: 0.1090837458 | J128: 1 | L128: 0.1090837458
A129: =A128+Model!$C$48 -> 0.116 | B129: 0.9175591452 | D129: 0.9175591452 | F129: 0.8419147849 | H129: 0.1104899718 | I129: 0 | J129: 0 | L129: 0.1090837458
A130: =A129+Model!$C$48 -> 0.117 | B130: 0.9162371106 | D130: 0.9162371106 | F130: 0.8394904428 | H130: 0.1113306744 | I130: 0.1107708122 | J130: 1 | L130: 0.1107708122
A131: =A130+Model!$C$48 -> 0.118 | B131: 0.91491513 | D131: 0.91491513 | F131: 0.8370696951 | H131: 0.1121689545 | I131: 0 | J131: 0 | L131: 0.1107708122
A132: =A131+Model!$C$48 -> 0.119 | B132: 0.9135933584 | D132: 0.9135933584 | F132: 0.8346528246 | H132: 0.1130048158 | I132: 0.1124481793 | J132: 1 | L132: 0.1124481793
A133: =A132+Model!$C$48 -> 0.12 | B133: 0.9122719067 | D133: 0.9122719067 | F133: 0.8322400317 | H133: 0.1138382622 | I133: 0 | J133: 0 | L133: 0.1124481793
A134: =A133+Model!$C$48 -> 0.121 | B134: 0.9109509192 | D134: 0.9109509192 | F134: 0.8298315772 | H134: 0.114669298 | I134: 0.1141158764 | J134: 1 | L134: 0.1141158764
A135: =A134+Model!$C$48 -> 0.122 | B135: 0.9096305235 | D135: 0.9096305235 | F135: 0.8274276893 | H135: 0.1154979276 | I135: 0 | J135: 0 | L135: 0.1141158764
A136: =A135+Model!$C$48 -> 0.123 | B136: 0.9083108427 | D136: 0.9083108427 | F136: 0.825028587 | H136: 0.1163241558 | I136: 0.115773937 | J136: 1 | L136: 0.115773937
A137: =A136+Model!$C$48 -> 0.124 | B137: 0.9069919956 | D137: 0.9069919956 | F137: 0.8226344801 | H137: 0.1171479873 | I137: 0 | J137: 0 | L137: 0.115773937
A138: =A137+Model!$C$48 -> 0.125 | B138: 0.9056740968 | D138: 0.9056740968 | F138: 0.8202455697 | H138: 0.1179694273 | I138: 0.1174223981 | J138: 1 | L138: 0.1174223981
A139: =A138+Model!$C$48 -> 0.126 | B139: 0.9043572571 | D139: 0.9043572571 | F139: 0.8178620484 | H139: 0.1187884811 | I139: 0 | J139: 0 | L139: 0.1174223981
A140: =A139+Model!$C$48 -> 0.127 | B140: 0.903041583 | D140: 0.903041583 | F140: 0.8154841006 | H140: 0.1196051542 | I140: 0.1190613002 | J140: 1 | L140: 0.1190613002
A141: =A140+Model!$C$48 -> 0.128 | B141: 0.9017271776 | D141: 0.9017271776 | F141: =B141*D141 -> 0.8131119029 | H141: 0.1204194522 | I141: 0 | J141: 0 | L141: 0.1190613002
A142: =A141+Model!$C$48 -> 0.129 | B142: =ERF($B$10/SQRT(A142)) -> 0.9004141402 | D142: =IF($B$11>0,ERF($B$11/SQRT(A142)),-ERF(-$B$11/SQRT(A142))) -> 0.9004141402 | F142: 0.8107456239 | H142: =0.5*(F142+F141)*(A142-A141)+H141 -> 0.121231381 | I142: 0.1206906869 | J142: 1 | L142: 0.1206906869
A143: =A142+Model!$C$48 -> 0.13 | B143: 0.8991025665 | D143: 0.8991025665 | F143: 0.808385425 | H143: 0.1220409465 | I143: 0 | J143: =IF(J142=1,0,1) -> 0 | L143: 0.1206906869
A144: =A143+Model!$C$48 -> 0.131 | B144: 0.8977925486 | D144: 0.8977925486 | F144: 0.8060314604 | H144: 0.1228481549 | I144: 0.1223106047 | J144: 1 | L144: 0.1223106047
A145: =A144+Model!$C$48 -> 0.132 | B145: 0.8964841929 | D145: 0.8964841929 | F145: 0.8036839082 | H145: 0.1236530126 | I145: =(I143+((A145-A144)/3)*(4*F143+2*F144))*J145 -> 0 | J145: 0 | L145: =IF(J145=1,I145,I144) -> 0.1223106047
A146: =A145+Model!$C$48 -> 0.133 | B146: 0.8951775515 | D146: 0.8951775515 | F146: 0.8013428487 | H146: 0.124455526 | I146: 0.1239211026 | J146: 1 | L146: 0.1239211026
A147: =A146+Model!$C$48 -> 0.134 | B147: 0.8938727231 | D147: 0.8938727231 | F147: 0.7990084451 | H147: 0.1252557016 | I147: 0 | J147: 0 | L147: 0.1239211026
A148: =A147+Model!$C$48 -> 0.135 | B148: 0.8925697871 | D148: 0.8925697871 | F148: 0.7966808248 | H148: 0.1260535463 | I148: 0.125522232 | J148: 1 | L148: 0.125522232
A149: =A148+Model!$C$48 -> 0.136 | B149: 0.89126882 | D149: 0.89126882 | F149: 0.7943601094 | H149: 0.1268490668 | I149: 0 | J149: 0 | L149: 0.125522232
A150: =A149+Model!$C$48 -> 0.137 | B150: 0.8899698953 | D150: 0.8899698953 | F150: 0.7920464145 | H150: 0.12764227 | I150: 0.1271140465 | J150: 1 | L150: 0.1271140465
A151: =A150+Model!$C$48 -> 0.138 | B151: 0.8886730839 | D151: 0.8886730839 | F151: 0.7897398501 | H151: 0.1284331631 | I151: 0 | J151: 0 | L151: 0.1271140465
A152: =A151+Model!$C$48 -> 0.139 | B152: 0.8873784539 | D152: 0.8873784539 | F152: 0.7874405204 | H152: 0.1292217533 | I152: 0.1286966017 | J152: 1 | L152: 0.1286966017
A153: =A152+Model!$C$48 -> 0.14 | B153: 0.8860860707 | D153: 0.8860860707 | F153: 0.7851485247 | H153: 0.1300080479 | I153: 0 | J153: 0 | L153: 0.1286966017
A154: =A153+Model!$C$48 -> 0.141 | B154: 0.8847959972 | D154: 0.8847959972 | F154: 0.7828639567 | H154: 0.1307920541 | I154: 0.1302699547 | J154: 1 | L154: 0.1302699547
A155: =A154+Model!$C$48 -> 0.142 | B155: 0.883508294 | D155: 0.883508294 | F155: 0.7805869056 | H155: 0.1315737795 | I155: 0 | J155: 0 | L155: 0.1302699547
A156: =A155+Model!$C$48 -> 0.143 | B156: 0.8822230191 | D156: 0.8822230191 | F156: 0.7783174555 | H156: 0.1323532317 | I156: 0.1318341646 | J156: 1 | L156: 0.1318341646
A157: =A156+Model!$C$48 -> 0.144 | B157: 0.8809402483 | D157: 0.8809402483 | F157: 0.776055721 | H157: 0.1331304183 | I157: 0 | J157: 0 | L157: 0.1318341646
A158: =A157+Model!$C$48 -> 0.145 | B158: 0.8796599962 | D158: 0.8796599962 | F158: 0.773801709 | H158: 0.133905347 | I158: 0.1333892917 | J158: 1 | L158: 0.1333892917
A159: =A158+Model!$C$48 -> 0.146 | B159: 0.8783823332 | D159: 0.8783823332 | F159: 0.7715555233 | H159: 0.1346780256 | I159: 0 | J159: 0 | L159: 0.1333892917
A160: =A159+Model!$C$48 -> 0.147 | B160: 0.8771073085 | D160: 0.8771073085 | F160: 0.7693172305 | H160: 0.135448462 | I160: 0.1349353976 | J160: 1 | L160: 0.1349353976
A161: =A160+Model!$C$48 -> 0.148 | B161: 0.8758349692 | D161: 0.8758349692 | F161: 0.7670868932 | H161: 0.1362166641 | I161: 0 | J161: 0 | L161: 0.1349353976
A162: =A161+Model!$C$48 -> 0.149 | B162: 0.8745653606 | D162: 0.8745653606 | F162: 0.7648645699 | H162: 0.1369826398 | I162: 0.1364725452 | J162: 1 | L162: 0.1364725452
A163: =A162+Model!$C$48 -> 0.15 | B163: 0.873298526 | D163: 0.873298526 | F163: 0.7626503155 | H163: 0.1377463972 | I163: 0 | J163: 0 | L163: 0.1364725452
A164: =A163+Model!$C$48 -> 0.151 | B164: 0.8720345069 | D164: 0.8720345069 | F164: 0.7604441813 | H164: 0.1385079445 | I164: 0.1380007982 | J164: 1 | L164: 0.1380007982
A165: =A164+Model!$C$48 -> 0.152 | B165: 0.870773343 | D165: 0.870773343 | F165: 0.7582462148 | H165: 0.1392672897 | I165: 0 | J165: 0 | L165: 0.1380007982
A166: =A165+Model!$C$48 -> 0.153 | B166: 0.8695150721 | D166: 0.8695150721 | F166: 0.7560564606 | H166: 0.140024441 | I166: 0.1395202212 | J166: 1 | L166: 0.1395202212
A167: =A166+Model!$C$48 -> 0.154 | B167: 0.8682597305 | D167: 0.8682597305 | F167: 0.7538749597 | H167: 0.1407794067 | I167: 0 | J167: 0 | L167: 0.1395202212
A168: =A167+Model!$C$48 -> 0.155 | B168: 0.8670073529 | D168: 0.8670073529 | F168: 0.75170175 | H168: 0.1415321951 | I168: 0.1410308798 | J168: 1 | L168: 0.1410308798
A169: =A168+Model!$C$48 -> 0.156 | B169: 0.8657579721 | D169: 0.8657579721 | F169: 0.7495368663 | H169: 0.1422828144 | I169: 0 | J169: 0 | L169: 0.1410308798
A170: =A169+Model!$C$48 -> 0.157 | B170: 0.8645116435 | D170: 0.8645116435 | F170: 0.7473803818 | H170: 0.143031273 | I170: 0.1425328401 | J170: 1 | L170: 0.1425328401
A171: =A170+Model!$C$48 -> 0.158 | B171: 0.8632683509 | D171: 0.8632683509 | F171: 0.7452322456 | H171: 0.1437775793 | I171: 0 | J171: 0 | L171: 0.1425328401
A172: =A171+Model!$C$48 -> 0.159 | B172: 0.8620281453 | D172: 0.8620281453 | F172: 0.7430925232 | H172: 0.1445217417 | I172: 0.1440261687 | J172: 1 | L172: 0.1440261687
A173: =A172+Model!$C$48 -> 0.16 | B173: 0.8607910538 | D173: 0.8607910538 | F173: 0.7409612383 | H173: 0.1452637686 | I173: 0 | J173: 0 | L173: 0.1440261687
A174: =A173+Model!$C$48 -> 0.161 | B174: 0.8595571024 | D174: 0.8595571024 | F174: 0.7388384123 | H174: 0.1460036684 | I174: 0.1455109329 | J174: 1 | L174: 0.1455109329
A175: =A174+Model!$C$48 -> 0.162 | B175: 0.8583263155 | D175: 0.8583263155 | F175: 0.7367240639 | H175: 0.1467414497 | I175: 0 | J175: 0 | L175: 0.1455109329
A176: =A175+Model!$C$48 -> 0.163 | B176: 0.8570987164 | D176: 0.8570987164 | F176: 0.7346182097 | H176: 0.1474771208 | I176: 0.1469872002 | J176: 1 | L176: 0.1469872002
A177: =A176+Model!$C$48 -> 0.164 | B177: 0.8558743271 | D177: 0.8558743271 | F177: 0.7325208638 | H177: 0.1482106903 | I177: 0 | J177: 0 | L177: 0.1469872002
A178: =A177+Model!$C$48 -> 0.165 | B178: 0.8546531684 | D178: 0.8546531684 | F178: 0.7304320382 | H178: 0.1489421668 | I178: 0.1484550384 | J178: 1 | L178: 0.1484550384
A179: =A178+Model!$C$48 -> 0.166 | B179: 0.85343526 | D179: 0.85343526 | F179: 0.728351743 | H179: 0.1496715587 | I179: 0 | J179: 0 | L179: 0.1484550384
A180: =A179+Model!$C$48 -> 0.167 | B180: 0.8522206205 | D180: 0.8522206205 | F180: 0.7262799861 | H180: 0.1503988745 | I180: 0.1499145156 | J180: 1 | L180: 0.1499145156
A181: =A180+Model!$C$48 -> 0.168 | B181: 0.8510092675 | D181: 0.8510092675 | F181: 0.7242167733 | H181: 0.1511241229 | I181: 0 | J181: 0 | L181: 0.1499145156
A182: =A181+Model!$C$48 -> 0.169 | B182: 0.8498012172 | D182: 0.8498012172 | F182: 0.7221621088 | H182: 0.1518473124 | I182: 0.1513657001 | J182: 1 | L182: 0.1513657001
A183: =A182+Model!$C$48 -> 0.17 | B183: 0.8485964853 | D183: 0.8485964853 | F183: 0.7201159949 | H183: 0.1525684514 | I183: 0 | J183: 0 | L183: 0.1513657001
A184: =A183+Model!$C$48 -> 0.171 | B184: 0.8473951147 | D184: 0.8473951147 | F184: 0.7180784805 | H184: 0.1532875487 | I184: 0.1528086602 | J184: 1 | L184: 0.1528086602
A185: =A184+Model!$C$48 -> 0.172 | B185: 0.8461970633 | D185: 0.8461970633 | F185: 0.7160494699 | H185: 0.1540046126 | I185: 0 | J185: 0 | L185: 0.1528086602
A186: =A185+Model!$C$48 -> 0.173 | B186: 0.8450023708 | D186: 0.8450023708 | F186: 0.7140290067 | H186: 0.1547196519 | I186: 0.1542434645 | J186: 1 | L186: 0.1542434645
A187: =A186+Model!$C$48 -> 0.174 | B187: 0.843811049 | D187: 0.843811049 | F187: 0.7120170864 | H187: 0.1554326749 | I187: 0 | J187: 0 | L187: 0.1542434645
A188: =A187+Model!$C$48 -> 0.175 | B188: 0.8426231088 | D188: 0.8426231088 | F188: 0.7100137035 | H188: 0.1561436903 | I188: 0.1556701812 | J188: 1 | L188: 0.1556701812
A189: =A188+Model!$C$48 -> 0.176 | B189: 0.8414385602 | D189: 0.8414385602 | F189: 0.7080188506 | H189: 0.1568527066 | I189: 0 | J189: 0 | L189: 0.1556701812
A190: =A189+Model!$C$48 -> 0.177 | B190: 0.8402574125 | D190: 0.8402574125 | F190: 0.7060325192 | H190: 0.1575597323 | I190: 0.1570888788 | J190: 1 | L190: 0.1570888788
A191: =A190+Model!$C$48 -> 0.178 | B191: 0.839079674 | D191: 0.839079674 | F191: 0.7040546994 | H191: 0.1582647759 | I191: 0 | J191: 0 | L191: 0.1570888788
A192: =A191+Model!$C$48 -> 0.179 | B192: 0.8379053527 | D192: 0.8379053527 | F192: 0.70208538 | H192: 0.1589678459 | I192: 0.1584996252 | J192: 1 | L192: 0.1584996252
A193: =A192+Model!$C$48 -> 0.18 | B193: 0.8367344553 | D193: 0.8367344553 | F193: 0.7001245487 | H193: 0.1596689509 | I193: 0 | J193: 0 | L193: 0.1584996252
A194: =A193+Model!$C$48 -> 0.181 | B194: 0.8355669883 | D194: 0.8355669883 | F194: 0.6981721919 | H194: 0.1603680993 | I194: 0.1599024888 | J194: 1 | L194: 0.1599024888
A195: =A194+Model!$C$48 -> 0.182 | B195: 0.8344029571 | D195: 0.8344029571 | F195: 0.6962282949 | H195: 0.1610652995 | I195: 0 | J195: 0 | L195: 0.1599024888
A196: =A195+Model!$C$48 -> 0.183 | B196: 0.8332423669 | D196: 0.8332423669 | F196: 0.694292842 | H196: 0.1617605601 | I196: 0.1612975372 | J196: 1 | L196: 0.1612975372
A197: =A196+Model!$C$48 -> 0.184 | B197: 0.8320852538 | D197: 0.8320852538 | F197: 0.6923658697 | H197: 0.1624538894 | I197: 0 | J197: 0 | L197: 0.1612975372
A198: =A197+Model!$C$48 -> 0.185 | B198: 0.8309315591 | D198: 0.8309315591 | F198: 0.6904472559 | H198: 0.163145296 | I198: 0.1626848383 | J198: 1 | L198: 0.1626848383
A199: =A198+Model!$C$48 -> 0.186 | B199: 0.8297813164 | D199: 0.8297813164 | F199: 0.6885370331 | H199: 0.1638347881 | I199: 0 | J199: 0 | L199: 0.1626848383
A200: =A199+Model!$C$48 -> 0.187 | B200: 0.8286345284 | D200: 0.8286345284 | F200: 0.6866351816 | H200: 0.1645223742 | I200: 0.1640644593 | J200: 1 | L200: 0.1640644593
A201: =A200+Model!$C$48 -> 0.188 | B201: 0.8274911969 | D201: 0.8274911969 | F201: 0.6847416809 | H201: 0.1652080627 | I201: 0 | J201: 0 | L201: 0.1640644593
A202: =A201+Model!$C$48 -> 0.189 | B202: 0.8263513234 | D202: 0.8263513234 | F202: 0.6828565096 | H202: 0.1658918618 | I202: 0.1654364673 | J202: 1 | L202: 0.1654364673
A203: =A202+Model!$C$48 -> 0.19 | B203: 0.8252149088 | D203: 0.8252149088 | F203: 0.6809796457 | H203: 0.1665737798 | I203: 0 | J203: 0 | L203: 0.1654364673
A204: =A203+Model!$C$48 -> 0.191 | B204: 0.8240819536 | D204: 0.8240819536 | F204: 0.6791110663 | H204: 0.1672538252 | I204: 0.1668009291 | J204: 1 | L204: 0.1668009291
A205: =A204+Model!$C$48 -> 0.192 | B205: 0.8229524578 | D205: 0.8229524578 | F205: =B205*D205 -> 0.6772507477 | H205: 0.1679320061 | I205: 0 | J205: 0 | L205: 0.1668009291
A206: =A205+Model!$C$48 -> 0.193 | B206: =ERF($B$10/SQRT(A206)) -> 0.8218264207 | D206: =IF($B$11>0,ERF($B$11/SQRT(A206)),-ERF(-$B$11/SQRT(A206))) -> 0.8218264207 | F206: 0.6753986657 | H206: =0.5*(F206+F205)*(A206-A205)+H205 -> 0.1686083308 | I206: 0.168157911 | J206: 1 | L206: 0.168157911
A207: =A206+Model!$C$48 -> 0.194 | B207: 0.8207038414 | D207: 0.8207038414 | F207: 0.6735547953 | H207: 0.1692828075 | I207: 0 | J207: =IF(J206=1,0,1) -> 0 | L207: 0.168157911
A208: =A207+Model!$C$48 -> 0.195 | B208: 0.8195847185 | D208: 0.8195847185 | F208: 0.6717191108 | H208: 0.1699554445 | I208: 0.1695074791 | J208: 1 | L208: 0.1695074791
A209: =A208+Model!$C$48 -> 0.196 | B209: 0.8184690502 | D209: 0.8184690502 | F209: 0.6698915861 | H209: 0.1706262498 | I209: =(I207+((A209-A208)/3)*(4*F207+2*F208))*J209 -> 0 | J209: 0 | L209: =IF(J209=1,I209,I208) -> 0.1695074791
... 805 more rows

Sheet ps3 (hidden)
A10: a | B10: =(Results!$A$10-Model!$G$48)/(SQRT(4*Model!$G$50*Results!A$12)) -> 0.4182517991
A11: b | B11: =(Results!$A$11+Model!$G$49)/(SQRT(4*Model!$G$50*Results!A$12)) -> 0.4182517991
A12: t | B12: erf(a/sqrt(t)) | D12: erf(b/sqrt(t)) | F12: integrand | H12: trapezoidal integral O(h^2) | I12: Simpson integral O(h^4) | J12: kount | L12: Simpson total Sum
A13: 0 | B13: 1 | D13: 1 | F13: =B13*D13 -> 1 | H13: 0 | I13: 0
A14: =Model!$C$48 -> 0.001 | B14: =IF($B$10>0,ERF($B$10/SQRT(A14)),-ERF(-$B$10/SQRT(A14))) -> 1 | D14: =ERF($B$11/SQRT(A14)) -> 1 | F14: 1 | H14: =0.5*(F14+F13)*(A14-A13)+H13 -> 0.001 | J14: 1
A15: =A14+Model!$C$48 -> 0.002 | B15: 1 | D15: 1 | F15: 1 | H15: 0.002 | J15: =IF(J14=1,0,1) -> 0
A16: =A15+Model!$C$48 -> 0.003 | B16: 1 | D16: 1 | F16: 1 | H16: 0.003 | I16: =(I13+((A16-A15)/3)*(F13+4*F14+2*F15))*J16 -> 0.002333333333 | J16: 1 | L16: =IF(J16=1,I16,I15) -> 0.002333333333
A17: =A16+Model!$C$48 -> 0.004 | B17: 1 | D17: 1 | F17: 1 | H17: 0.004 | I17: =(I15+((A17-A16)/3)*(4*F15+2*F16))*J17 -> 0 | J17: 0 | L17: =IF(J17=1,I17,I16) -> 0.002333333333
A18: =A17+Model!$C$48 -> 0.005 | B18: 1 | D18: 1 | F18: 1 | H18: 0.005 | I18: 0.004333333333 | J18: 1 | L18: 0.004333333333
A19: =A18+Model!$C$48 -> 0.006 | B19: 1 | D19: 1 | F19: 1 | H19: 0.006 | I19: 0 | J19: 0 | L19: 0.004333333333
A20: =A19+Model!$C$48 -> 0.007 | B20: 1 | D20: 1 | F20: 1 | H20: 0.007 | I20: 0.006333333333 | J20: 1 | L20: 0.006333333333
A21: =A20+Model!$C$48 -> 0.008 | B21: 1 | D21: 1 | F21: 0.9999999999 | H21: 0.008 | I21: 0 | J21: 0 | L21: 0.006333333333
A22: =A21+Model!$C$48 -> 0.009 | B22: 0.9999999995 | D22: 0.9999999995 | F22: 0.9999999991 | H22: 0.008999999999 | I22: 0.008333333333 | J22: 1 | L22: 0.008333333333
A23: =A22+Model!$C$48 -> 0.01 | B23: 0.9999999967 | D23: 0.9999999967 | F23: 0.9999999934 | H23: 0.009999999996 | I23: 0 | J23: 0 | L23: 0.008333333333
A24: =A23+Model!$C$48 -> 0.011 | B24: 0.999999983 | D24: 0.999999983 | F24: 0.9999999659 | H24: 0.01099999998 | I24: 0.01033333333 | J24: 1 | L24: 0.01033333333
A25: =A24+Model!$C$48 -> 0.012 | B25: 0.9999999332 | D25: 0.9999999332 | F25: 0.9999998664 | H25: 0.01199999989 | I25: 0 | J25: 0 | L25: 0.01033333333
A26: =A25+Model!$C$48 -> 0.013 | B26: 0.9999997872 | D26: 0.9999997872 | F26: 0.9999995744 | H26: 0.01299999961 | I26: 0.01233333319 | J26: 1 | L26: 0.01233333319
A27: =A26+Model!$C$48 -> 0.014 | B27: 0.9999994239 | D27: 0.9999994239 | F27: 0.9999988478 | H27: 0.01399999882 | I27: 0 | J27: 0 | L27: 0.01233333319
A28: =A27+Model!$C$48 -> 0.015 | B28: 0.9999986316 | D28: 0.9999986316 | F28: 0.9999972632 | H28: 0.01499999688 | I28: 0.01433333186 | J28: 1 | L28: 0.01433333186
A29: =A28+Model!$C$48 -> 0.016 | B29: 0.9999970776 | D29: 0.9999970776 | F29: 0.9999941551 | H29: 0.01599999259 | I29: 0 | J29: 0 | L29: 0.01433333186
A30: =A29+Model!$C$48 -> 0.017 | B30: 0.9999942826 | D30: 0.9999942826 | F30: 0.9999885651 | H30: 0.01699998395 | I30: 0.01633332431 | J30: 1 | L30: 0.01633332431
A31: =A30+Model!$C$48 -> 0.018 | B31: 0.9999896036 | D31: 0.9999896036 | F31: 0.9999792074 | H31: 0.01799996783 | I31: 0 | J31: 0 | L31: 0.01633332431
A32: =A31+Model!$C$48 -> 0.019 | B32: 0.9999822268 | D32: 0.9999822268 | F32: 0.9999644539 | H32: 0.01899993966 | I32: 0.0183332952 | J32: 1 | L32: 0.0183332952
A33: =A32+Model!$C$48 -> 0.02 | B33: 0.9999711702 | D33: 0.9999711702 | F33: 0.9999423412 | H33: 0.01999989306 | I33: 0 | J33: 0 | L33: 0.0183332952
A34: =A33+Model!$C$48 -> 0.021 | B34: 0.9999552963 | D34: 0.9999552963 | F34: 0.9999105946 | H34: 0.02099981953 | I34: 0.02033320937 | J34: 1 | L34: 0.02033320937
A35: =A34+Model!$C$48 -> 0.022 | B35: 0.9999333321 | D35: 0.9999333321 | F35: 0.9998666686 | H35: 0.02199970816 | I35: 0 | J35: 0 | L35: 0.02033320937
A36: =A35+Model!$C$48 -> 0.023 | B36: 0.9999038939 | D36: 0.9999038939 | F36: 0.9998077971 | H36: 0.02299954539 | I36: 0.02233300127 | J36: 1 | L36: 0.02233300127
A37: =A36+Model!$C$48 -> 0.024 | B37: 0.9998655161 | D37: 0.9998655161 | F37: 0.9997310503 | H37: 0.02399931482 | I37: 0 | J37: 0 | L37: 0.02233300127
A38: =A37+Model!$C$48 -> 0.025 | B38: 0.9998166797 | D38: 0.9998166797 | F38: 0.999633393 | H38: 0.02499899704 | I38: 0.0243325657 | J38: 1 | L38: 0.0243325657
A39: =A38+Model!$C$48 -> 0.026 | B39: 0.9997558419 | D39: 0.9997558419 | F39: 0.9995117433 | H39: 0.02599856961 | I39: 0 | J39: 0 | L39: 0.0243325657
A40: =A39+Model!$C$48 -> 0.027 | B40: 0.9996814624 | D40: 0.9996814624 | F40: 0.9993630264 | H40: 0.02699800699 | I40: 0.02633175139 | J40: 1 | L40: 0.02633175139
A41: =A40+Model!$C$48 -> 0.028 | B41: 0.9995920286 | D41: 0.9995920286 | F41: 0.9991842237 | H41: 0.02799728062 | I41: 0 | J41: 0 | L41: 0.02633175139
A42: =A41+Model!$C$48 -> 0.029 | B42: 0.9994860761 | D42: 0.9994860761 | F42: 0.9989724163 | H42: 0.02899635894 | I42: 0.02833035824 | J42: 1 | L42: 0.02833035824
A43: =A42+Model!$C$48 -> 0.03 | B43: 0.9993622071 | D43: 0.9993622071 | F43: 0.998724821 | H43: 0.02999520756 | I43: 0 | J43: 0 | L43: 0.02833035824
A44: =A43+Model!$C$48 -> 0.031 | B44: 0.999219105 | D44: 0.999219105 | F44: 0.9984388197 | H44: 0.03099378938 | I44: 0.03032813801 | J44: 1 | L44: 0.03032813801
A45: =A44+Model!$C$48 -> 0.032 | B45: 0.9990555452 | D45: 0.9990555452 | F45: 0.9981119824 | H45: 0.03199206478 | I45: 0 | J45: 0 | L45: 0.03032813801
A46: =A45+Model!$C$48 -> 0.033 | B46: 0.998870404 | D46: 0.998870404 | F46: 0.997742084 | H46: 0.03298999181 | I46: 0.03232479776 | J46: 1 | L46: 0.03232479776
A47: =A46+Model!$C$48 -> 0.034 | B47: 0.9986626638 | D47: 0.9986626638 | F47: 0.997327116 | H47: 0.03398752641 | I47: 0 | J47: 0 | L47: 0.03232479776
A48: =A47+Model!$C$48 -> 0.035 | B48: 0.9984314161 | D48: 0.9984314161 | F48: 0.9968652927 | H48: 0.03498462262 | I48: 0.03432000528 | J48: 1 | L48: 0.03432000528
A49: =A48+Model!$C$48 -> 0.036 | B49: 0.9981758629 | D49: 0.9981758629 | F49: 0.9963550533 | H49: 0.03598123279 | I49: 0 | J49: 0 | L49: 0.03432000528
A50: =A49+Model!$C$48 -> 0.037 | B50: 0.9978953159 | D50: 0.9978953159 | F50: 0.9957950615 | H50: 0.03697730785 | I50: 0.03631339571 | J50: 1 | L50: 0.03631339571
A51: =A50+Model!$C$48 -> 0.038 | B51: 0.997589194 | D51: 0.997589194 | F51: 0.9951842001 | H51: 0.03797279748 | I51: 0 | J51: 0 | L51: 0.03631339571
A52: =A51+Model!$C$48 -> 0.039 | B52: 0.9972570209 | D52: 0.9972570209 | F52: 0.9945215656 | H52: 0.03896765036 | I52: 0.03830457859 | J52: 1 | L52: 0.03830457859
A53: =A52+Model!$C$48 -> 0.04 | B53: 0.99689842 | D53: 0.99689842 | F53: 0.9938064597 | H53: 0.03996181437 | I53: 0 | J53: 0 | L53: 0.03830457859
A54: =A53+Model!$C$48 -> 0.041 | B54: 0.9965131103 | D54: 0.9965131103 | F54: 0.993038379 | H54: 0.04095523679 | I54: 0.04029314498 | J54: 1 | L54: 0.04029314498
A55: =A54+Model!$C$48 -> 0.042 | B55: 0.9961009009 | D55: 0.9961009009 | F55: 0.9922170048 | H55: 0.04194786448 | I55: 0 | J55: 0 | L55: 0.04029314498
A56: =A55+Model!$C$48 -> 0.043 | B56: 0.9956616852 | D56: 0.9956616852 | F56: 0.9913421913 | H56: 0.04293964408 | I56: 0.04227867416 | J56: 1 | L56: 0.04227867416
A57: =A56+Model!$C$48 -> 0.044 | B57: 0.9951954352 | D57: 0.9951954352 | F57: 0.9904139542 | H57: 0.04393052215 | I57: 0 | J57: 0 | L57: 0.04227867416
A58: =A57+Model!$C$48 -> 0.045 | B58: 0.9947021958 | D58: 0.9947021958 | F58: 0.9894324583 | H58: 0.04492044536 | I58: 0.04426073972 | J58: 1 | L58: 0.04426073972
A59: =A58+Model!$C$48 -> 0.046 | B59: 0.9941820788 | D59: 0.9941820788 | F59: 0.9883980059 | H59: 0.04590936059 | I59: 0 | J59: 0 | L59: 0.04426073972
A60: =A59+Model!$C$48 -> 0.047 | B60: 0.9936352575 | D60: 0.9936352575 | F60: 0.9873110249 | H60: 0.04689721511 | I60: 0.046238915 | J60: 1 | L60: 0.046238915
A61: =A60+Model!$C$48 -> 0.048 | B61: 0.993061961 | D61: 0.993061961 | F61: 0.9861720583 | H61: 0.04788395665 | I61: 0 | J61: 0 | L61: 0.046238915
A62: =A61+Model!$C$48 -> 0.049 | B62: 0.9924624675 | D62: 0.9924624675 | F62: 0.9849817493 | H62: 0.04886953355 | I62: 0.04821277774 | J62: 1 | L62: 0.04821277774
A63: =A62+Model!$C$48 -> 0.05 | B63: 0.9918371017 | D63: 0.9918371017 | F63: 0.9837408363 | H63: 0.04985389485 | I63: 0 | J63: 0 | L63: 0.04821277774
A64: =A63+Model!$C$48 -> 0.051 | B64: 0.9911862282 | D64: 0.9911862282 | F64: 0.982450139 | H64: 0.05083699033 | I64: 0.05018191396 | J64: 1 | L64: 0.05018191396
A65: =A64+Model!$C$48 -> 0.052 | B65: 0.9905102474 | D65: 0.9905102474 | F65: 0.9811105502 | H65: 0.05181877068 | I65: 0 | J65: 0 | L65: 0.05018191396
A66: =A65+Model!$C$48 -> 0.053 | B66: 0.9898095909 | D66: 0.9898095909 | F66: 0.9797230263 | H66: 0.05279918747 | I66: 0.05214592118 | J66: 1 | L66: 0.05214592118
A67: =A66+Model!$C$48 -> 0.054 | B67: 0.9890847178 | D67: 0.9890847178 | F67: 0.978288579 | H67: 0.05377819327 | I67: 0 | J67: 0 | L67: 0.05214592118
A68: =A67+Model!$C$48 -> 0.055 | B68: 0.9883361108 | D68: 0.9883361108 | F68: 0.9768082678 | H68: 0.05475574169 | I68: 0.05410441093 | J68: 1 | L68: 0.05410441093
A69: =A68+Model!$C$48 -> 0.056 | B69: 0.9875642724 | D69: 0.9875642724 | F69: 0.9752831922 | H69: 0.05573178742 | I69: 0 | J69: 0 | L69: 0.05410441093
A70: =A69+Model!$C$48 -> 0.057 | B70: 0.9867697224 | D70: 0.9867697224 | F70: 0.973714485 | H70: 0.05670628626 | I70: 0.05605701075 | J70: 1 | L70: 0.05605701075
A71: =A70+Model!$C$48 -> 0.058 | B71: 0.9859529941 | D71: 0.9859529941 | F71: 0.9721033066 | H71: 0.05767919516 | I71: 0 | J71: 0 | L71: 0.05605701075
A72: =A71+Model!$C$48 -> 0.059 | B72: 0.9851146336 | D72: 0.9851146336 | F72: 0.9704508414 | H72: 0.05865047223 | I72: 0.0580033656 | J72: 1 | L72: 0.0580033656
A73: =A72+Model!$C$48 -> 0.06 | B73: 0.9842551916 | D73: 0.9842551916 | F73: 0.9687582821 | H73: 0.05962007679 | I73: 0 | J73: 0 | L73: 0.0580033656
A74: =A73+Model!$C$48 -> 0.061 | B74: 0.9833752288 | D74: 0.9833752288 | F74: 0.9670268406 | H74: 0.06058796935 | I74: 0.05994313891 | J74: 1 | L74: 0.05994313891
A75: =A74+Model!$C$48 -> 0.062 | B75: 0.9824753093 | D75: 0.9824753093 | F75: 0.9652577333 | H75: 0.06155411164 | I75: 0 | J75: 0 | L75: 0.05994313891
A76: =A75+Model!$C$48 -> 0.063 | B76: 0.9815559994 | D76: 0.9815559994 | F76: 0.96345218 | H76: 0.0625184666 | I76: 0.06187601319 | J76: 1 | L76: 0.06187601319
A77: =A76+Model!$C$48 -> 0.064 | B77: 0.9806178664 | D77: 0.9806178664 | F77: =B77*D77 -> 0.9616113998 | H77: 0.06348099839 | I77: 0 | J77: 0 | L77: 0.06187601319
A78: =A77+Model!$C$48 -> 0.065 | B78: =IF($B$10>0,ERF($B$10/SQRT(A78)),-ERF(-$B$10/SQRT(A78))) -> 0.9796614765 | D78: =ERF($B$11/SQRT(A78)) -> 0.9796614765 | F78: 0.9597366084 | H78: =0.5*(F78+F77)*(A78-A77)+H77 -> 0.06444167239 | I78: 0.06380169036 | J78: 1 | L78: 0.06380169036
A79: =A78+Model!$C$48 -> 0.066 | B79: 0.9786873939 | D79: 0.9786873939 | F79: 0.9578290151 | H79: 0.0654004552 | I79: 0 | J79: =IF(J78=1,0,1) -> 0 | L79: 0.06380169036
A80: =A79+Model!$C$48 -> 0.067 | B80: 0.9776961797 | D80: 0.9776961797 | F80: 0.9558898198 | H80: 0.06635731462 | I80: 0.06571989185 | J80: 1 | L80: 0.06571989185
A81: =A80+Model!$C$48 -> 0.068 | B81: 0.9766883901 | D81: 0.9766883901 | F81: 0.9539202114 | H81: 0.06731221964 | I81: =(I79+((A81-A80)/3)*(4*F79+2*F80))*J81 -> 0 | J81: 0 | L81: =IF(J81=1,I81,I80) -> 0.06571989185
A82: =A81+Model!$C$48 -> 0.069 | B82: 0.9756645763 | D82: 0.9756645763 | F82: 0.9519213654 | H82: 0.06826514043 | I82: 0.06763035842 | J82: 1 | L82: 0.06763035842
A83: =A82+Model!$C$48 -> 0.07 | B83: 0.9746252855 | D83: 0.9746252855 | F83: 0.9498944472 | H83: 0.06921604833 | I83: 0 | J83: 0 | L83: 0.06763035842
A84: =A83+Model!$C$48 -> 0.071 | B84: 0.9735710507 | D84: 0.9735710507 | F84: 0.9478405908 | H84: 0.07016491585 | I84: 0.06953284987 | J84: 1 | L84: 0.06953284987
A85: =A84+Model!$C$48 -> 0.072 | B85: 0.9725024044 | D85: 0.9725024044 | F85: 0.9457609265 | H85: 0.07111171661 | I85: 0 | J85: 0 | L85: 0.06953284987
A86: =A85+Model!$C$48 -> 0.073 | B86: 0.9714198683 | D86: 0.9714198683 | F86: 0.9436565606 | H86: 0.07205642535 | I86: 0.07142714461 | J86: 1 | L86: 0.07142714461
A87: =A86+Model!$C$48 -> 0.074 | B87: 0.9703239559 | D87: 0.9703239559 | F87: 0.9415285794 | H87: 0.07299901792 | I87: 0 | J87: 0 | L87: 0.07142714461
A88: =A87+Model!$C$48 -> 0.075 | B88: 0.9692151713 | D88: 0.9692151713 | F88: 0.9393780483 | H88: 0.07393947124 | I88: 0.07331303908 | J88: 1 | L88: 0.07331303908
A89: =A88+Model!$C$48 -> 0.076 | B89: 0.9680940094 | D89: 0.9680940094 | F89: 0.937206011 | H89: 0.07487776327 | I89: 0 | J89: 0 | L89: 0.07331303908
A90: =A89+Model!$C$48 -> 0.077 | B90: 0.9669609551 | D90: 0.9669609551 | F90: 0.9350134887 | H90: 0.07581387302 | I90: 0.07519034715 | J90: 1 | L90: 0.07519034715
A91: =A90+Model!$C$48 -> 0.078 | B91: 0.9658164838 | D91: 0.9658164838 | F91: 0.9328014804 | H91: 0.0767477805 | I91: 0 | J91: 0 | L91: 0.07519034715
A92: =A91+Model!$C$48 -> 0.079 | B92: 0.9646610605 | D92: 0.9646610605 | F92: 0.9305709617 | H92: 0.07767946672 | I92: 0.07705889945 | J92: 1 | L92: 0.07705889945
A93: =A92+Model!$C$48 -> 0.08 | B93: 0.9634951402 | D93: 0.9634951402 | F93: 0.9283228852 | H93: 0.07860891365 | I93: 0 | J93: 0 | L93: 0.07705889945
A94: =A93+Model!$C$48 -> 0.081 | B94: 0.9623191674 | D94: 0.9623191674 | F94: 0.92605818 | H94: 0.07953610418 | I94: 0.07891854266 | J94: 1 | L94: 0.07891854266
A95: =A94+Model!$C$48 -> 0.082 | B95: 0.9611335813 | D95: 0.9611335813 | F95: 0.9237777611 | H95: 0.08046102215 | I95: 0 | J95: 0 | L95: 0.07891854266
A96: =A95+Model!$C$48 -> 0.083 | B96: 0.9599387968 | D96: 0.9599387968 | F96: 0.9214824935 | H96: 0.08138365228 | I96: 0.08076913874 | J96: 1 | L96: 0.08076913874
A97: =A96+Model!$C$48 -> 0.084 | B97: 0.9587352316 | D97: 0.9587352316 | F97: 0.9191732444 | H97: 0.08230398014 | I97: 0 | J97: 0 | L97: 0.08076913874
A98: =A97+Model!$C$48 -> 0.085 | B98: 0.9575232892 | D98: 0.9575232892 | F98: 0.9168508493 | H98: 0.08322199219 | I98: 0.08261056423 | J98: 1 | L98: 0.08261056423
A99: =A98+Model!$C$48 -> 0.086 | B99: 0.9563033624 | D99: 0.9563033624 | F99: 0.9145161209 | H99: 0.08413767568 | I99: 0 | J99: 0 | L99: 0.08261056423
A100: =A99+Model!$C$48 -> 0.087 | B100: 0.955075834 | D100: 0.955075834 | F100: 0.9121698487 | H100: 0.08505101866 | I100: 0.08444270944 | J100: 1 | L100: 0.08444270944
A101: =A100+Model!$C$48 -> 0.088 | B101: 0.9538410769 | D101: 0.9538410769 | F101: 0.9098127999 | H101: 0.08596200999 | I101: 0 | J101: 0 | L101: 0.08444270944
A102: =A101+Model!$C$48 -> 0.089 | B102: 0.9525994537 | D102: 0.9525994537 | F102: 0.9074457191 | H102: 0.08687063924 | I102: 0.08626547777 | J102: 1 | L102: 0.08626547777
A103: =A102+Model!$C$48 -> 0.09 | B103: 0.9513513173 | D103: 0.9513513173 | F103: 0.905069329 | H103: 0.08777689677 | I103: 0 | J103: 0 | L103: 0.08626547777
A104: =A103+Model!$C$48 -> 0.091 | B104: 0.9500970111 | D104: 0.9500970111 | F104: 0.9026843305 | H104: 0.0886807736 | I104: 0.08807878495 | J104: 1 | L104: 0.08807878495
A105: =A104+Model!$C$48 -> 0.092 | B105: 0.9488368686 | D105: 0.9488368686 | F105: 0.9002914032 | H105: 0.08958226147 | I105: 0 | J105: 0 | L105: 0.08807878495
A106: =A105+Model!$C$48 -> 0.093 | B106: 0.947571214 | D106: 0.947571214 | F106: 0.8978912056 | H106: 0.09048135277 | I106: 0.08988255833 | J106: 1 | L106: 0.08988255833
A107: =A106+Model!$C$48 -> 0.094 | B107: 0.9463003696 | D107: 0.9463003696 | F107: 0.8954843895 | H107: 0.09137804057 | I107: 0 | J107: 0 | L107: 0.08988255833
A108: =A107+Model!$C$48 -> 0.095 | B108: 0.9450246276 | D108: 0.9450246276 | F108: 0.8930715467 | H108: 0.09227231854 | I108: 0.09167673619 | J108: 1 | L108: 0.09167673619
A109: =A108+Model!$C$48 -> 0.096 | B109: 0.9437442915 | D109: 0.9437442915 | F109: 0.8906532878 | H109: 0.09316418095 | I109: 0 | J109: 0 | L109: 0.09167673619
A110: =A109+Model!$C$48 -> 0.097 | B110: 0.9424596497 | D110: 0.9424596497 | F110: 0.8882301913 | H110: 0.09405362269 | I110: 0.09346126711 | J110: 1 | L110: 0.09346126711
A111: =A110+Model!$C$48 -> 0.098 | B111: 0.9411709819 | D111: 0.9411709819 | F111: 0.8858028172 | H111: 0.0949406392 | I111: 0 | J111: 0 | L111: 0.09346126711
A112: =A111+Model!$C$48 -> 0.099 | B112: 0.9398785595 | D112: 0.9398785595 | F112: 0.8833717065 | H112: 0.09582522646 | I112: 0.09523610925 | J112: 1 | L112: 0.09523610925
A113: =A112+Model!$C$48 -> 0.1 | B113: 0.9385826456 | D113: 0.9385826456 | F113: 0.8809373827 | H113: 0.096707381 | I113: 0 | J113: 0 | L113: 0.09523610925
A114: =A113+Model!$C$48 -> 0.101 | B114: 0.9372834956 | D114: 0.9372834956 | F114: 0.8785003512 | H114: 0.09758709987 | I114: 0.09700122978 | J114: 1 | L114: 0.09700122978
A115: =A114+Model!$C$48 -> 0.102 | B115: 0.9359813568 | D115: 0.9359813568 | F115: 0.8760611004 | H115: 0.0984643806 | I115: 0 | J115: 0 | L115: 0.09700122978
A116: =A115+Model!$C$48 -> 0.103 | B116: 0.9346764691 | D116: 0.9346764691 | F116: 0.8736201019 | H116: 0.0993392212 | I116: 0.09875660431 | J116: 1 | L116: 0.09875660431
A117: =A116+Model!$C$48 -> 0.104 | B117: 0.9333690647 | D117: 0.9333690647 | F117: 0.871177811 | H117: 0.1002116202 | I117: 0 | J117: 0 | L117: 0.09875660431
A118: =A117+Model!$C$48 -> 0.105 | B118: 0.9320593688 | D118: 0.9320593688 | F118: 0.8687346671 | H118: 0.1010815764 | I118: 0.1005022163 | J118: 1 | L118: 0.1005022163
A119: =A118+Model!$C$48 -> 0.106 | B119: 0.9307476093 | D119: 0.9307476093 | F119: 0.8662911122 | H119: 0.1019490893 | I119: 0 | J119: 0 | L119: 0.1005022163
A120: =A119+Model!$C$48 -> 0.107 | B120: 0.9294339784 | D120: 0.9294339784 | F120: 0.8638475202 | H120: 0.1028141586 | I120: 0.1022380566 | J120: 1 | L120: 0.1022380566
A121: =A120+Model!$C$48 -> 0.108 | B121: 0.9281186896 | D121: 0.9281186896 | F121: 0.861404302 | H121: 0.1036767845 | I121: 0 | J121: 0 | L121: 0.1022380566
A122: =A121+Model!$C$48 -> 0.109 | B122: 0.9268019408 | D122: 0.9268019408 | F122: 0.8589618375 | H122: 0.1045369676 | I122: 0.1039641228 | J122: 1 | L122: 0.1039641228
A123: =A122+Model!$C$48 -> 0.11 | B123: 0.9254839235 | D123: 0.9254839235 | F123: 0.8565204927 | H123: 0.1053947087 | I123: 0 | J123: 0 | L123: 0.1039641228
A124: =A123+Model!$C$48 -> 0.111 | B124: 0.924164823 | D124: 0.924164823 | F124: 0.8540806201 | H124: 0.1062500093 | I124: 0.105680419 | J124: 1 | L124: 0.105680419
A125: =A124+Model!$C$48 -> 0.112 | B125: 0.9228448186 | D125: 0.9228448186 | F125: 0.8516425592 | H125: 0.1071028709 | I125: 0 | J125: 0 | L125: 0.105680419
A126: =A125+Model!$C$48 -> 0.113 | B126: 0.9215240836 | D126: 0.9215240836 | F126: 0.8492066367 | H126: 0.1079532955 | I126: 0.1073869548 | J126: 1 | L126: 0.1073869548
A127: =A126+Model!$C$48 -> 0.114 | B127: 0.9202027859 | D127: 0.9202027859 | F127: 0.8467731672 | H127: 0.1088012854 | I127: 0 | J127: 0 | L127: 0.1073869548
A128: =A127+Model!$C$48 -> 0.115 | B128: 0.9188810875 | D128: 0.9188810875 | F128: 0.8443424529 | H128: 0.1096468432 | I128: 0.1090837458 | J128: 1 | L128: 0.1090837458
A129: =A128+Model!$C$48 -> 0.116 | B129: 0.9175591452 | D129: 0.9175591452 | F129: 0.8419147849 | H129: 0.1104899718 | I129: 0 | J129: 0 | L129: 0.1090837458
A130: =A129+Model!$C$48 -> 0.117 | B130: 0.9162371106 | D130: 0.9162371106 | F130: 0.8394904428 | H130: 0.1113306744 | I130: 0.1107708122 | J130: 1 | L130: 0.1107708122
A131: =A130+Model!$C$48 -> 0.118 | B131: 0.91491513 | D131: 0.91491513 | F131: 0.8370696951 | H131: 0.1121689545 | I131: 0 | J131: 0 | L131: 0.1107708122
A132: =A131+Model!$C$48 -> 0.119 | B132: 0.9135933584 | D132: 0.9135933584 | F132: 0.8346528246 | H132: 0.1130048158 | I132: 0.1124481793 | J132: 1 | L132: 0.1124481793
A133: =A132+Model!$C$48 -> 0.12 | B133: 0.9122719067 | D133: 0.9122719067 | F133: 0.8322400317 | H133: 0.1138382622 | I133: 0 | J133: 0 | L133: 0.1124481793
A134: =A133+Model!$C$48 -> 0.121 | B134: 0.9109509192 | D134: 0.9109509192 | F134: 0.8298315772 | H134: 0.114669298 | I134: 0.1141158764 | J134: 1 | L134: 0.1141158764
A135: =A134+Model!$C$48 -> 0.122 | B135: 0.9096305235 | D135: 0.9096305235 | F135: 0.8274276893 | H135: 0.1154979276 | I135: 0 | J135: 0 | L135: 0.1141158764
A136: =A135+Model!$C$48 -> 0.123 | B136: 0.9083108427 | D136: 0.9083108427 | F136: 0.825028587 | H136: 0.1163241558 | I136: 0.115773937 | J136: 1 | L136: 0.115773937
A137: =A136+Model!$C$48 -> 0.124 | B137: 0.9069919956 | D137: 0.9069919956 | F137: 0.8226344801 | H137: 0.1171479873 | I137: 0 | J137: 0 | L137: 0.115773937
A138: =A137+Model!$C$48 -> 0.125 | B138: 0.9056740968 | D138: 0.9056740968 | F138: 0.8202455697 | H138: 0.1179694273 | I138: 0.1174223981 | J138: 1 | L138: 0.1174223981
A139: =A138+Model!$C$48 -> 0.126 | B139: 0.9043572571 | D139: 0.9043572571 | F139: 0.8178620484 | H139: 0.1187884811 | I139: 0 | J139: 0 | L139: 0.1174223981
A140: =A139+Model!$C$48 -> 0.127 | B140: 0.903041583 | D140: 0.903041583 | F140: 0.8154841006 | H140: 0.1196051542 | I140: 0.1190613002 | J140: 1 | L140: 0.1190613002
A141: =A140+Model!$C$48 -> 0.128 | B141: 0.9017271776 | D141: 0.9017271776 | F141: =B141*D141 -> 0.8131119029 | H141: 0.1204194522 | I141: 0 | J141: 0 | L141: 0.1190613002
A142: =A141+Model!$C$48 -> 0.129 | B142: =IF($B$10>0,ERF($B$10/SQRT(A142)),-ERF(-$B$10/SQRT(A142))) -> 0.9004141402 | D142: =ERF($B$11/SQRT(A142)) -> 0.9004141402 | F142: 0.8107456239 | H142: =0.5*(F142+F141)*(A142-A141)+H141 -> 0.121231381 | I142: 0.1206906869 | J142: 1 | L142: 0.1206906869
A143: =A142+Model!$C$48 -> 0.13 | B143: 0.8991025665 | D143: 0.8991025665 | F143: 0.808385425 | H143: 0.1220409465 | I143: 0 | J143: =IF(J142=1,0,1) -> 0 | L143: 0.1206906869
A144: =A143+Model!$C$48 -> 0.131 | B144: 0.8977925486 | D144: 0.8977925486 | F144: 0.8060314604 | H144: 0.1228481549 | I144: 0.1223106047 | J144: 1 | L144: 0.1223106047
A145: =A144+Model!$C$48 -> 0.132 | B145: 0.8964841929 | D145: 0.8964841929 | F145: 0.8036839082 | H145: 0.1236530126 | I145: =(I143+((A145-A144)/3)*(4*F143+2*F144))*J145 -> 0 | J145: 0 | L145: =IF(J145=1,I145,I144) -> 0.1223106047
A146: =A145+Model!$C$48 -> 0.133 | B146: 0.8951775515 | D146: 0.8951775515 | F146: 0.8013428487 | H146: 0.124455526 | I146: 0.1239211026 | J146: 1 | L146: 0.1239211026
A147: =A146+Model!$C$48 -> 0.134 | B147: 0.8938727231 | D147: 0.8938727231 | F147: 0.7990084451 | H147: 0.1252557016 | I147: 0 | J147: 0 | L147: 0.1239211026
A148: =A147+Model!$C$48 -> 0.135 | B148: 0.8925697871 | D148: 0.8925697871 | F148: 0.7966808248 | H148: 0.1260535463 | I148: 0.125522232 | J148: 1 | L148: 0.125522232
A149: =A148+Model!$C$48 -> 0.136 | B149: 0.89126882 | D149: 0.89126882 | F149: 0.7943601094 | H149: 0.1268490668 | I149: 0 | J149: 0 | L149: 0.125522232
A150: =A149+Model!$C$48 -> 0.137 | B150: 0.8899698953 | D150: 0.8899698953 | F150: 0.7920464145 | H150: 0.12764227 | I150: 0.1271140465 | J150: 1 | L150: 0.1271140465
A151: =A150+Model!$C$48 -> 0.138 | B151: 0.8886730839 | D151: 0.8886730839 | F151: 0.7897398501 | H151: 0.1284331631 | I151: 0 | J151: 0 | L151: 0.1271140465
A152: =A151+Model!$C$48 -> 0.139 | B152: 0.8873784539 | D152: 0.8873784539 | F152: 0.7874405204 | H152: 0.1292217533 | I152: 0.1286966017 | J152: 1 | L152: 0.1286966017
A153: =A152+Model!$C$48 -> 0.14 | B153: 0.8860860707 | D153: 0.8860860707 | F153: 0.7851485247 | H153: 0.1300080479 | I153: 0 | J153: 0 | L153: 0.1286966017
A154: =A153+Model!$C$48 -> 0.141 | B154: 0.8847959972 | D154: 0.8847959972 | F154: 0.7828639567 | H154: 0.1307920541 | I154: 0.1302699547 | J154: 1 | L154: 0.1302699547
A155: =A154+Model!$C$48 -> 0.142 | B155: 0.883508294 | D155: 0.883508294 | F155: 0.7805869056 | H155: 0.1315737795 | I155: 0 | J155: 0 | L155: 0.1302699547
A156: =A155+Model!$C$48 -> 0.143 | B156: 0.8822230191 | D156: 0.8822230191 | F156: 0.7783174555 | H156: 0.1323532317 | I156: 0.1318341646 | J156: 1 | L156: 0.1318341646
A157: =A156+Model!$C$48 -> 0.144 | B157: 0.8809402483 | D157: 0.8809402483 | F157: 0.776055721 | H157: 0.1331304183 | I157: 0 | J157: 0 | L157: 0.1318341646
A158: =A157+Model!$C$48 -> 0.145 | B158: 0.8796599962 | D158: 0.8796599962 | F158: 0.773801709 | H158: 0.133905347 | I158: 0.1333892917 | J158: 1 | L158: 0.1333892917
A159: =A158+Model!$C$48 -> 0.146 | B159: 0.8783823332 | D159: 0.8783823332 | F159: 0.7715555233 | H159: 0.1346780256 | I159: 0 | J159: 0 | L159: 0.1333892917
A160: =A159+Model!$C$48 -> 0.147 | B160: 0.8771073085 | D160: 0.8771073085 | F160: 0.7693172305 | H160: 0.135448462 | I160: 0.1349353976 | J160: 1 | L160: 0.1349353976
A161: =A160+Model!$C$48 -> 0.148 | B161: 0.8758349692 | D161: 0.8758349692 | F161: 0.7670868932 | H161: 0.1362166641 | I161: 0 | J161: 0 | L161: 0.1349353976
A162: =A161+Model!$C$48 -> 0.149 | B162: 0.8745653606 | D162: 0.8745653606 | F162: 0.7648645699 | H162: 0.1369826398 | I162: 0.1364725452 | J162: 1 | L162: 0.1364725452
A163: =A162+Model!$C$48 -> 0.15 | B163: 0.873298526 | D163: 0.873298526 | F163: 0.7626503155 | H163: 0.1377463972 | I163: 0 | J163: 0 | L163: 0.1364725452
A164: =A163+Model!$C$48 -> 0.151 | B164: 0.8720345069 | D164: 0.8720345069 | F164: 0.7604441813 | H164: 0.1385079445 | I164: 0.1380007982 | J164: 1 | L164: 0.1380007982
A165: =A164+Model!$C$48 -> 0.152 | B165: 0.870773343 | D165: 0.870773343 | F165: 0.7582462148 | H165: 0.1392672897 | I165: 0 | J165: 0 | L165: 0.1380007982
A166: =A165+Model!$C$48 -> 0.153 | B166: 0.8695150721 | D166: 0.8695150721 | F166: 0.7560564606 | H166: 0.140024441 | I166: 0.1395202212 | J166: 1 | L166: 0.1395202212
A167: =A166+Model!$C$48 -> 0.154 | B167: 0.8682597305 | D167: 0.8682597305 | F167: 0.7538749597 | H167: 0.1407794067 | I167: 0 | J167: 0 | L167: 0.1395202212
A168: =A167+Model!$C$48 -> 0.155 | B168: 0.8670073529 | D168: 0.8670073529 | F168: 0.75170175 | H168: 0.1415321951 | I168: 0.1410308798 | J168: 1 | L168: 0.1410308798
A169: =A168+Model!$C$48 -> 0.156 | B169: 0.8657579721 | D169: 0.8657579721 | F169: 0.7495368663 | H169: 0.1422828144 | I169: 0 | J169: 0 | L169: 0.1410308798
A170: =A169+Model!$C$48 -> 0.157 | B170: 0.8645116435 | D170: 0.8645116435 | F170: 0.7473803818 | H170: 0.143031273 | I170: 0.1425328401 | J170: 1 | L170: 0.1425328401
A171: =A170+Model!$C$48 -> 0.158 | B171: 0.8632683509 | D171: 0.8632683509 | F171: 0.7452322456 | H171: 0.1437775793 | I171: 0 | J171: 0 | L171: 0.1425328401
A172: =A171+Model!$C$48 -> 0.159 | B172: 0.8620281453 | D172: 0.8620281453 | F172: 0.7430925232 | H172: 0.1445217417 | I172: 0.1440261687 | J172: 1 | L172: 0.1440261687
A173: =A172+Model!$C$48 -> 0.16 | B173: 0.8607910538 | D173: 0.8607910538 | F173: 0.7409612383 | H173: 0.1452637686 | I173: 0 | J173: 0 | L173: 0.1440261687
A174: =A173+Model!$C$48 -> 0.161 | B174: 0.8595571024 | D174: 0.8595571024 | F174: 0.7388384123 | H174: 0.1460036684 | I174: 0.1455109329 | J174: 1 | L174: 0.1455109329
A175: =A174+Model!$C$48 -> 0.162 | B175: 0.8583263155 | D175: 0.8583263155 | F175: 0.7367240639 | H175: 0.1467414497 | I175: 0 | J175: 0 | L175: 0.1455109329
A176: =A175+Model!$C$48 -> 0.163 | B176: 0.8570987164 | D176: 0.8570987164 | F176: 0.7346182097 | H176: 0.1474771208 | I176: 0.1469872002 | J176: 1 | L176: 0.1469872002
A177: =A176+Model!$C$48 -> 0.164 | B177: 0.8558743271 | D177: 0.8558743271 | F177: 0.7325208638 | H177: 0.1482106903 | I177: 0 | J177: 0 | L177: 0.1469872002
A178: =A177+Model!$C$48 -> 0.165 | B178: 0.8546531684 | D178: 0.8546531684 | F178: 0.7304320382 | H178: 0.1489421668 | I178: 0.1484550384 | J178: 1 | L178: 0.1484550384
A179: =A178+Model!$C$48 -> 0.166 | B179: 0.85343526 | D179: 0.85343526 | F179: 0.728351743 | H179: 0.1496715587 | I179: 0 | J179: 0 | L179: 0.1484550384
A180: =A179+Model!$C$48 -> 0.167 | B180: 0.8522206205 | D180: 0.8522206205 | F180: 0.7262799861 | H180: 0.1503988745 | I180: 0.1499145156 | J180: 1 | L180: 0.1499145156
A181: =A180+Model!$C$48 -> 0.168 | B181: 0.8510092675 | D181: 0.8510092675 | F181: 0.7242167733 | H181: 0.1511241229 | I181: 0 | J181: 0 | L181: 0.1499145156
A182: =A181+Model!$C$48 -> 0.169 | B182: 0.8498012172 | D182: 0.8498012172 | F182: 0.7221621088 | H182: 0.1518473124 | I182: 0.1513657001 | J182: 1 | L182: 0.1513657001
A183: =A182+Model!$C$48 -> 0.17 | B183: 0.8485964853 | D183: 0.8485964853 | F183: 0.7201159949 | H183: 0.1525684514 | I183: 0 | J183: 0 | L183: 0.1513657001
A184: =A183+Model!$C$48 -> 0.171 | B184: 0.8473951147 | D184: 0.8473951147 | F184: 0.7180784805 | H184: 0.1532875487 | I184: 0.1528086602 | J184: 1 | L184: 0.1528086602
A185: =A184+Model!$C$48 -> 0.172 | B185: 0.8461970633 | D185: 0.8461970633 | F185: 0.7160494699 | H185: 0.1540046126 | I185: 0 | J185: 0 | L185: 0.1528086602
A186: =A185+Model!$C$48 -> 0.173 | B186: 0.8450023708 | D186: 0.8450023708 | F186: 0.7140290067 | H186: 0.1547196519 | I186: 0.1542434645 | J186: 1 | L186: 0.1542434645
A187: =A186+Model!$C$48 -> 0.174 | B187: 0.843811049 | D187: 0.843811049 | F187: 0.7120170864 | H187: 0.1554326749 | I187: 0 | J187: 0 | L187: 0.1542434645
A188: =A187+Model!$C$48 -> 0.175 | B188: 0.8426231088 | D188: 0.8426231088 | F188: 0.7100137035 | H188: 0.1561436903 | I188: 0.1556701812 | J188: 1 | L188: 0.1556701812
A189: =A188+Model!$C$48 -> 0.176 | B189: 0.8414385602 | D189: 0.8414385602 | F189: 0.7080188506 | H189: 0.1568527066 | I189: 0 | J189: 0 | L189: 0.1556701812
A190: =A189+Model!$C$48 -> 0.177 | B190: 0.8402574125 | D190: 0.8402574125 | F190: 0.7060325192 | H190: 0.1575597323 | I190: 0.1570888788 | J190: 1 | L190: 0.1570888788
A191: =A190+Model!$C$48 -> 0.178 | B191: 0.839079674 | D191: 0.839079674 | F191: 0.7040546994 | H191: 0.1582647759 | I191: 0 | J191: 0 | L191: 0.1570888788
A192: =A191+Model!$C$48 -> 0.179 | B192: 0.8379053527 | D192: 0.8379053527 | F192: 0.70208538 | H192: 0.1589678459 | I192: 0.1584996252 | J192: 1 | L192: 0.1584996252
A193: =A192+Model!$C$48 -> 0.18 | B193: 0.8367344553 | D193: 0.8367344553 | F193: 0.7001245487 | H193: 0.1596689509 | I193: 0 | J193: 0 | L193: 0.1584996252
A194: =A193+Model!$C$48 -> 0.181 | B194: 0.8355669883 | D194: 0.8355669883 | F194: 0.6981721919 | H194: 0.1603680993 | I194: 0.1599024888 | J194: 1 | L194: 0.1599024888
A195: =A194+Model!$C$48 -> 0.182 | B195: 0.8344029571 | D195: 0.8344029571 | F195: 0.6962282949 | H195: 0.1610652995 | I195: 0 | J195: 0 | L195: 0.1599024888
A196: =A195+Model!$C$48 -> 0.183 | B196: 0.8332423669 | D196: 0.8332423669 | F196: 0.694292842 | H196: 0.1617605601 | I196: 0.1612975372 | J196: 1 | L196: 0.1612975372
A197: =A196+Model!$C$48 -> 0.184 | B197: 0.8320852538 | D197: 0.8320852538 | F197: 0.6923658697 | H197: 0.1624538894 | I197: 0 | J197: 0 | L197: 0.1612975372
A198: =A197+Model!$C$48 -> 0.185 | B198: 0.8309315591 | D198: 0.8309315591 | F198: 0.6904472559 | H198: 0.163145296 | I198: 0.1626848383 | J198: 1 | L198: 0.1626848383
A199: =A198+Model!$C$48 -> 0.186 | B199: 0.8297813164 | D199: 0.8297813164 | F199: 0.6885370331 | H199: 0.1638347881 | I199: 0 | J199: 0 | L199: 0.1626848383
A200: =A199+Model!$C$48 -> 0.187 | B200: 0.8286345284 | D200: 0.8286345284 | F200: 0.6866351816 | H200: 0.1645223742 | I200: 0.1640644593 | J200: 1 | L200: 0.1640644593
A201: =A200+Model!$C$48 -> 0.188 | B201: 0.8274911969 | D201: 0.8274911969 | F201: 0.6847416809 | H201: 0.1652080627 | I201: 0 | J201: 0 | L201: 0.1640644593
A202: =A201+Model!$C$48 -> 0.189 | B202: 0.8263513234 | D202: 0.8263513234 | F202: 0.6828565096 | H202: 0.1658918618 | I202: 0.1654364673 | J202: 1 | L202: 0.1654364673
A203: =A202+Model!$C$48 -> 0.19 | B203: 0.8252149088 | D203: 0.8252149088 | F203: 0.6809796457 | H203: 0.1665737798 | I203: 0 | J203: 0 | L203: 0.1654364673
A204: =A203+Model!$C$48 -> 0.191 | B204: 0.8240819536 | D204: 0.8240819536 | F204: 0.6791110663 | H204: 0.1672538252 | I204: 0.1668009291 | J204: 1 | L204: 0.1668009291
A205: =A204+Model!$C$48 -> 0.192 | B205: 0.8229524578 | D205: 0.8229524578 | F205: =B205*D205 -> 0.6772507477 | H205: 0.1679320061 | I205: 0 | J205: 0 | L205: 0.1668009291
A206: =A205+Model!$C$48 -> 0.193 | B206: =IF($B$10>0,ERF($B$10/SQRT(A206)),-ERF(-$B$10/SQRT(A206))) -> 0.8218264207 | D206: =ERF($B$11/SQRT(A206)) -> 0.8218264207 | F206: 0.6753986657 | H206: =0.5*(F206+F205)*(A206-A205)+H205 -> 0.1686083308 | I206: 0.168157911 | J206: 1 | L206: 0.168157911
A207: =A206+Model!$C$48 -> 0.194 | B207: 0.8207038414 | D207: 0.8207038414 | F207: 0.6735547953 | H207: 0.1692828075 | I207: 0 | J207: =IF(J206=1,0,1) -> 0 | L207: 0.168157911
A208: =A207+Model!$C$48 -> 0.195 | B208: 0.8195847185 | D208: 0.8195847185 | F208: 0.6717191108 | H208: 0.1699554445 | I208: 0.1695074791 | J208: 1 | L208: 0.1695074791
A209: =A208+Model!$C$48 -> 0.196 | B209: 0.8184690502 | D209: 0.8184690502 | F209: 0.6698915861 | H209: 0.1706262498 | I209: =(I207+((A209-A208)/3)*(4*F207+2*F208))*J209 -> 0 | J209: 0 | L209: =IF(J209=1,I209,I208) -> 0.1695074791
... 805 more rows

Sheet pS4 (hidden)
A10: a | B10: =(Results!$A$10-Model!$G$48)/(SQRT(4*Model!$G$50*Results!A$12)) -> 0.4182517991
A11: b | B11: =(Results!$A$11-Model!$G$49)/(SQRT(4*Model!$G$50*Results!A$12)) -> 0.4182517991
A12: t | B12: erf(a/sqrt(t)) | D12: erf(b/sqrt(t)) | F12: integrand | H12: trapezoidal integral O(h^2) | I12: Simpson integral O(h^4) | J12: kount | L12: Simpson total Sum
A13: 0 | B13: 1 | D13: 1 | F13: =B13*D13 -> 1 | H13: 0 | I13: 0
A14: =Model!$C$48 -> 0.001 | B14: =IF($B$10>0,ERF($B$10/SQRT(A14)),-ERF(-$B$10/SQRT(A14))) -> 1 | D14: =IF($B$11>0,ERF($B$11/SQRT(A14)),-ERF(-$B$11/SQRT(A14))) -> 1 | F14: 1 | H14: =0.5*(F14+F13)*(A14-A13)+H13 -> 0.001 | J14: 1
A15: =A14+Model!$C$48 -> 0.002 | B15: 1 | D15: 1 | F15: 1 | H15: 0.002 | J15: =IF(J14=1,0,1) -> 0
A16: =A15+Model!$C$48 -> 0.003 | B16: 1 | D16: 1 | F16: 1 | H16: 0.003 | I16: =(I13+((A16-A15)/3)*(F13+4*F14+2*F15))*J16 -> 0.002333333333 | J16: 1 | L16: =IF(J16=1,I16,I15) -> 0.002333333333
A17: =A16+Model!$C$48 -> 0.004 | B17: 1 | D17: 1 | F17: 1 | H17: 0.004 | I17: =(I15+((A17-A16)/3)*(4*F15+2*F16))*J17 -> 0 | J17: 0 | L17: =IF(J17=1,I17,I16) -> 0.002333333333
A18: =A17+Model!$C$48 -> 0.005 | B18: 1 | D18: 1 | F18: 1 | H18: 0.005 | I18: 0.004333333333 | J18: 1 | L18: 0.004333333333
A19: =A18+Model!$C$48 -> 0.006 | B19: 1 | D19: 1 | F19: 1 | H19: 0.006 | I19: 0 | J19: 0 | L19: 0.004333333333
A20: =A19+Model!$C$48 -> 0.007 | B20: 1 | D20: 1 | F20: 1 | H20: 0.007 | I20: 0.006333333333 | J20: 1 | L20: 0.006333333333
A21: =A20+Model!$C$48 -> 0.008 | B21: 1 | D21: 1 | F21: 0.9999999999 | H21: 0.008 | I21: 0 | J21: 0 | L21: 0.006333333333
A22: =A21+Model!$C$48 -> 0.009 | B22: 0.9999999995 | D22: 0.9999999995 | F22: 0.9999999991 | H22: 0.008999999999 | I22: 0.008333333333 | J22: 1 | L22: 0.008333333333
A23: =A22+Model!$C$48 -> 0.01 | B23: 0.9999999967 | D23: 0.9999999967 | F23: 0.9999999934 | H23: 0.009999999996 | I23: 0 | J23: 0 | L23: 0.008333333333
A24: =A23+Model!$C$48 -> 0.011 | B24: 0.999999983 | D24: 0.999999983 | F24: 0.9999999659 | H24: 0.01099999998 | I24: 0.01033333333 | J24: 1 | L24: 0.01033333333
A25: =A24+Model!$C$48 -> 0.012 | B25: 0.9999999332 | D25: 0.9999999332 | F25: 0.9999998664 | H25: 0.01199999989 | I25: 0 | J25: 0 | L25: 0.01033333333
A26: =A25+Model!$C$48 -> 0.013 | B26: 0.9999997872 | D26: 0.9999997872 | F26: 0.9999995744 | H26: 0.01299999961 | I26: 0.01233333319 | J26: 1 | L26: 0.01233333319
A27: =A26+Model!$C$48 -> 0.014 | B27: 0.9999994239 | D27: 0.9999994239 | F27: 0.9999988478 | H27: 0.01399999882 | I27: 0 | J27: 0 | L27: 0.01233333319
A28: =A27+Model!$C$48 -> 0.015 | B28: 0.9999986316 | D28: 0.9999986316 | F28: 0.9999972632 | H28: 0.01499999688 | I28: 0.01433333186 | J28: 1 | L28: 0.01433333186
A29: =A28+Model!$C$48 -> 0.016 | B29: 0.9999970776 | D29: 0.9999970776 | F29: 0.9999941551 | H29: 0.01599999259 | I29: 0 | J29: 0 | L29: 0.01433333186
A30: =A29+Model!$C$48 -> 0.017 | B30: 0.9999942826 | D30: 0.9999942826 | F30: 0.9999885651 | H30: 0.01699998395 | I30: 0.01633332431 | J30: 1 | L30: 0.01633332431
A31: =A30+Model!$C$48 -> 0.018 | B31: 0.9999896036 | D31: 0.9999896036 | F31: 0.9999792074 | H31: 0.01799996783 | I31: 0 | J31: 0 | L31: 0.01633332431
A32: =A31+Model!$C$48 -> 0.019 | B32: 0.9999822268 | D32: 0.9999822268 | F32: 0.9999644539 | H32: 0.01899993966 | I32: 0.0183332952 | J32: 1 | L32: 0.0183332952
A33: =A32+Model!$C$48 -> 0.02 | B33: 0.9999711702 | D33: 0.9999711702 | F33: 0.9999423412 | H33: 0.01999989306 | I33: 0 | J33: 0 | L33: 0.0183332952
A34: =A33+Model!$C$48 -> 0.021 | B34: 0.9999552963 | D34: 0.9999552963 | F34: 0.9999105946 | H34: 0.02099981953 | I34: 0.02033320937 | J34: 1 | L34: 0.02033320937
A35: =A34+Model!$C$48 -> 0.022 | B35: 0.9999333321 | D35: 0.9999333321 | F35: 0.9998666686 | H35: 0.02199970816 | I35: 0 | J35: 0 | L35: 0.02033320937
A36: =A35+Model!$C$48 -> 0.023 | B36: 0.9999038939 | D36: 0.9999038939 | F36: 0.9998077971 | H36: 0.02299954539 | I36: 0.02233300127 | J36: 1 | L36: 0.02233300127
A37: =A36+Model!$C$48 -> 0.024 | B37: 0.9998655161 | D37: 0.9998655161 | F37: 0.9997310503 | H37: 0.02399931482 | I37: 0 | J37: 0 | L37: 0.02233300127
A38: =A37+Model!$C$48 -> 0.025 | B38: 0.9998166797 | D38: 0.9998166797 | F38: 0.999633393 | H38: 0.02499899704 | I38: 0.0243325657 | J38: 1 | L38: 0.0243325657
A39: =A38+Model!$C$48 -> 0.026 | B39: 0.9997558419 | D39: 0.9997558419 | F39: 0.9995117433 | H39: 0.02599856961 | I39: 0 | J39: 0 | L39: 0.0243325657
A40: =A39+Model!$C$48 -> 0.027 | B40: 0.9996814624 | D40: 0.9996814624 | F40: 0.9993630264 | H40: 0.02699800699 | I40: 0.02633175139 | J40: 1 | L40: 0.02633175139
A41: =A40+Model!$C$48 -> 0.028 | B41: 0.9995920286 | D41: 0.9995920286 | F41: 0.9991842237 | H41: 0.02799728062 | I41: 0 | J41: 0 | L41: 0.02633175139
A42: =A41+Model!$C$48 -> 0.029 | B42: 0.9994860761 | D42: 0.9994860761 | F42: 0.9989724163 | H42: 0.02899635894 | I42: 0.02833035824 | J42: 1 | L42: 0.02833035824
A43: =A42+Model!$C$48 -> 0.03 | B43: 0.9993622071 | D43: 0.9993622071 | F43: 0.998724821 | H43: 0.02999520756 | I43: 0 | J43: 0 | L43: 0.02833035824
A44: =A43+Model!$C$48 -> 0.031 | B44: 0.999219105 | D44: 0.999219105 | F44: 0.9984388197 | H44: 0.03099378938 | I44: 0.03032813801 | J44: 1 | L44: 0.03032813801
A45: =A44+Model!$C$48 -> 0.032 | B45: 0.9990555452 | D45: 0.9990555452 | F45: 0.9981119824 | H45: 0.03199206478 | I45: 0 | J45: 0 | L45: 0.03032813801
A46: =A45+Model!$C$48 -> 0.033 | B46: 0.998870404 | D46: 0.998870404 | F46: 0.997742084 | H46: 0.03298999181 | I46: 0.03232479776 | J46: 1 | L46: 0.03232479776
A47: =A46+Model!$C$48 -> 0.034 | B47: 0.9986626638 | D47: 0.9986626638 | F47: 0.997327116 | H47: 0.03398752641 | I47: 0 | J47: 0 | L47: 0.03232479776
A48: =A47+Model!$C$48 -> 0.035 | B48: 0.9984314161 | D48: 0.9984314161 | F48: 0.9968652927 | H48: 0.03498462262 | I48: 0.03432000528 | J48: 1 | L48: 0.03432000528
A49: =A48+Model!$C$48 -> 0.036 | B49: 0.9981758629 | D49: 0.9981758629 | F49: 0.9963550533 | H49: 0.03598123279 | I49: 0 | J49: 0 | L49: 0.03432000528
A50: =A49+Model!$C$48 -> 0.037 | B50: 0.9978953159 | D50: 0.9978953159 | F50: 0.9957950615 | H50: 0.03697730785 | I50: 0.03631339571 | J50: 1 | L50: 0.03631339571
A51: =A50+Model!$C$48 -> 0.038 | B51: 0.997589194 | D51: 0.997589194 | F51: 0.9951842001 | H51: 0.03797279748 | I51: 0 | J51: 0 | L51: 0.03631339571
A52: =A51+Model!$C$48 -> 0.039 | B52: 0.9972570209 | D52: 0.9972570209 | F52: 0.9945215656 | H52: 0.03896765036 | I52: 0.03830457859 | J52: 1 | L52: 0.03830457859
A53: =A52+Model!$C$48 -> 0.04 | B53: 0.99689842 | D53: 0.99689842 | F53: 0.9938064597 | H53: 0.03996181437 | I53: 0 | J53: 0 | L53: 0.03830457859
A54: =A53+Model!$C$48 -> 0.041 | B54: 0.9965131103 | D54: 0.9965131103 | F54: 0.993038379 | H54: 0.04095523679 | I54: 0.04029314498 | J54: 1 | L54: 0.04029314498
A55: =A54+Model!$C$48 -> 0.042 | B55: 0.9961009009 | D55: 0.9961009009 | F55: 0.9922170048 | H55: 0.04194786448 | I55: 0 | J55: 0 | L55: 0.04029314498
A56: =A55+Model!$C$48 -> 0.043 | B56: 0.9956616852 | D56: 0.9956616852 | F56: 0.9913421913 | H56: 0.04293964408 | I56: 0.04227867416 | J56: 1 | L56: 0.04227867416
A57: =A56+Model!$C$48 -> 0.044 | B57: 0.9951954352 | D57: 0.9951954352 | F57: 0.9904139542 | H57: 0.04393052215 | I57: 0 | J57: 0 | L57: 0.04227867416
A58: =A57+Model!$C$48 -> 0.045 | B58: 0.9947021958 | D58: 0.9947021958 | F58: 0.9894324583 | H58: 0.04492044536 | I58: 0.04426073972 | J58: 1 | L58: 0.04426073972
A59: =A58+Model!$C$48 -> 0.046 | B59: 0.9941820788 | D59: 0.9941820788 | F59: 0.9883980059 | H59: 0.04590936059 | I59: 0 | J59: 0 | L59: 0.04426073972
A60: =A59+Model!$C$48 -> 0.047 | B60: 0.9936352575 | D60: 0.9936352575 | F60: 0.9873110249 | H60: 0.04689721511 | I60: 0.046238915 | J60: 1 | L60: 0.046238915
A61: =A60+Model!$C$48 -> 0.048 | B61: 0.993061961 | D61: 0.993061961 | F61: 0.9861720583 | H61: 0.04788395665 | I61: 0 | J61: 0 | L61: 0.046238915
A62: =A61+Model!$C$48 -> 0.049 | B62: 0.9924624675 | D62: 0.9924624675 | F62: 0.9849817493 | H62: 0.04886953355 | I62: 0.04821277774 | J62: 1 | L62: 0.04821277774
A63: =A62+Model!$C$48 -> 0.05 | B63: 0.9918371017 | D63: 0.9918371017 | F63: 0.9837408363 | H63: 0.04985389485 | I63: 0 | J63: 0 | L63: 0.04821277774
A64: =A63+Model!$C$48 -> 0.051 | B64: 0.9911862282 | D64: 0.9911862282 | F64: 0.982450139 | H64: 0.05083699033 | I64: 0.05018191396 | J64: 1 | L64: 0.05018191396
A65: =A64+Model!$C$48 -> 0.052 | B65: 0.9905102474 | D65: 0.9905102474 | F65: 0.9811105502 | H65: 0.05181877068 | I65: 0 | J65: 0 | L65: 0.05018191396
A66: =A65+Model!$C$48 -> 0.053 | B66: 0.9898095909 | D66: 0.9898095909 | F66: 0.9797230263 | H66: 0.05279918747 | I66: 0.05214592118 | J66: 1 | L66: 0.05214592118
A67: =A66+Model!$C$48 -> 0.054 | B67: 0.9890847178 | D67: 0.9890847178 | F67: 0.978288579 | H67: 0.05377819327 | I67: 0 | J67: 0 | L67: 0.05214592118
A68: =A67+Model!$C$48 -> 0.055 | B68: 0.9883361108 | D68: 0.9883361108 | F68: 0.9768082678 | H68: 0.05475574169 | I68: 0.05410441093 | J68: 1 | L68: 0.05410441093
A69: =A68+Model!$C$48 -> 0.056 | B69: 0.9875642724 | D69: 0.9875642724 | F69: 0.9752831922 | H69: 0.05573178742 | I69: 0 | J69: 0 | L69: 0.05410441093
A70: =A69+Model!$C$48 -> 0.057 | B70: 0.9867697224 | D70: 0.9867697224 | F70: 0.973714485 | H70: 0.05670628626 | I70: 0.05605701075 | J70: 1 | L70: 0.05605701075
A71: =A70+Model!$C$48 -> 0.058 | B71: 0.9859529941 | D71: 0.9859529941 | F71: 0.9721033066 | H71: 0.05767919516 | I71: 0 | J71: 0 | L71: 0.05605701075
A72: =A71+Model!$C$48 -> 0.059 | B72: 0.9851146336 | D72: 0.9851146336 | F72: 0.9704508414 | H72: 0.05865047223 | I72: 0.0580033656 | J72: 1 | L72: 0.0580033656
A73: =A72+Model!$C$48 -> 0.06 | B73: 0.9842551916 | D73: 0.9842551916 | F73: 0.9687582821 | H73: 0.05962007679 | I73: 0 | J73: 0 | L73: 0.0580033656
A74: =A73+Model!$C$48 -> 0.061 | B74: 0.9833752288 | D74: 0.9833752288 | F74: 0.9670268406 | H74: 0.06058796935 | I74: 0.05994313891 | J74: 1 | L74: 0.05994313891
A75: =A74+Model!$C$48 -> 0.062 | B75: 0.9824753093 | D75: 0.9824753093 | F75: 0.9652577333 | H75: 0.06155411164 | I75: 0 | J75: 0 | L75: 0.05994313891
A76: =A75+Model!$C$48 -> 0.063 | B76: 0.9815559994 | D76: 0.9815559994 | F76: 0.96345218 | H76: 0.0625184666 | I76: 0.06187601319 | J76: 1 | L76: 0.06187601319
A77: =A76+Model!$C$48 -> 0.064 | B77: 0.9806178664 | D77: 0.9806178664 | F77: =B77*D77 -> 0.9616113998 | H77: 0.06348099839 | I77: 0 | J77: 0 | L77: 0.06187601319
A78: =A77+Model!$C$48 -> 0.065 | B78: =IF($B$10>0,ERF($B$10/SQRT(A78)),-ERF(-$B$10/SQRT(A78))) -> 0.9796614765 | D78: =IF($B$11>0,ERF($B$11/SQRT(A78)),-ERF(-$B$11/SQRT(A78))) -> 0.9796614765 | F78: 0.9597366084 | H78: =0.5*(F78+F77)*(A78-A77)+H77 -> 0.06444167239 | I78: 0.06380169036 | J78: 1 | L78: 0.06380169036
A79: =A78+Model!$C$48 -> 0.066 | B79: 0.9786873939 | D79: 0.9786873939 | F79: 0.9578290151 | H79: 0.0654004552 | I79: 0 | J79: =IF(J78=1,0,1) -> 0 | L79: 0.06380169036
A80: =A79+Model!$C$48 -> 0.067 | B80: 0.9776961797 | D80: 0.9776961797 | F80: 0.9558898198 | H80: 0.06635731462 | I80: 0.06571989185 | J80: 1 | L80: 0.06571989185
A81: =A80+Model!$C$48 -> 0.068 | B81: 0.9766883901 | D81: 0.9766883901 | F81: 0.9539202114 | H81: 0.06731221964 | I81: =(I79+((A81-A80)/3)*(4*F79+2*F80))*J81 -> 0 | J81: 0 | L81: =IF(J81=1,I81,I80) -> 0.06571989185
A82: =A81+Model!$C$48 -> 0.069 | B82: 0.9756645763 | D82: 0.9756645763 | F82: 0.9519213654 | H82: 0.06826514043 | I82: 0.06763035842 | J82: 1 | L82: 0.06763035842
A83: =A82+Model!$C$48 -> 0.07 | B83: 0.9746252855 | D83: 0.9746252855 | F83: 0.9498944472 | H83: 0.06921604833 | I83: 0 | J83: 0 | L83: 0.06763035842
A84: =A83+Model!$C$48 -> 0.071 | B84: 0.9735710507 | D84: 0.9735710507 | F84: 0.9478405908 | H84: 0.07016491585 | I84: 0.06953284987 | J84: 1 | L84: 0.06953284987
A85: =A84+Model!$C$48 -> 0.072 | B85: 0.9725024044 | D85: 0.9725024044 | F85: 0.9457609265 | H85: 0.07111171661 | I85: 0 | J85: 0 | L85: 0.06953284987
A86: =A85+Model!$C$48 -> 0.073 | B86: 0.9714198683 | D86: 0.9714198683 | F86: 0.9436565606 | H86: 0.07205642535 | I86: 0.07142714461 | J86: 1 | L86: 0.07142714461
A87: =A86+Model!$C$48 -> 0.074 | B87: 0.9703239559 | D87: 0.9703239559 | F87: 0.9415285794 | H87: 0.07299901792 | I87: 0 | J87: 0 | L87: 0.07142714461
A88: =A87+Model!$C$48 -> 0.075 | B88: 0.9692151713 | D88: 0.9692151713 | F88: 0.9393780483 | H88: 0.07393947124 | I88: 0.07331303908 | J88: 1 | L88: 0.07331303908
A89: =A88+Model!$C$48 -> 0.076 | B89: 0.9680940094 | D89: 0.9680940094 | F89: 0.937206011 | H89: 0.07487776327 | I89: 0 | J89: 0 | L89: 0.07331303908
A90: =A89+Model!$C$48 -> 0.077 | B90: 0.9669609551 | D90: 0.9669609551 | F90: 0.9350134887 | H90: 0.07581387302 | I90: 0.07519034715 | J90: 1 | L90: 0.07519034715
A91: =A90+Model!$C$48 -> 0.078 | B91: 0.9658164838 | D91: 0.9658164838 | F91: 0.9328014804 | H91: 0.0767477805 | I91: 0 | J91: 0 | L91: 0.07519034715
A92: =A91+Model!$C$48 -> 0.079 | B92: 0.9646610605 | D92: 0.9646610605 | F92: 0.9305709617 | H92: 0.07767946672 | I92: 0.07705889945 | J92: 1 | L92: 0.07705889945
A93: =A92+Model!$C$48 -> 0.08 | B93: 0.9634951402 | D93: 0.9634951402 | F93: 0.9283228852 | H93: 0.07860891365 | I93: 0 | J93: 0 | L93: 0.07705889945
A94: =A93+Model!$C$48 -> 0.081 | B94: 0.9623191674 | D94: 0.9623191674 | F94: 0.92605818 | H94: 0.07953610418 | I94: 0.07891854266 | J94: 1 | L94: 0.07891854266
A95: =A94+Model!$C$48 -> 0.082 | B95: 0.9611335813 | D95: 0.9611335813 | F95: 0.9237777611 | H95: 0.08046102215 | I95: 0 | J95: 0 | L95: 0.07891854266
A96: =A95+Model!$C$48 -> 0.083 | B96: 0.9599387968 | D96: 0.9599387968 | F96: 0.9214824935 | H96: 0.08138365228 | I96: 0.08076913874 | J96: 1 | L96: 0.08076913874
A97: =A96+Model!$C$48 -> 0.084 | B97: 0.9587352316 | D97: 0.9587352316 | F97: 0.9191732444 | H97: 0.08230398014 | I97: 0 | J97: 0 | L97: 0.08076913874
A98: =A97+Model!$C$48 -> 0.085 | B98: 0.9575232892 | D98: 0.9575232892 | F98: 0.9168508493 | H98: 0.08322199219 | I98: 0.08261056423 | J98: 1 | L98: 0.08261056423
A99: =A98+Model!$C$48 -> 0.086 | B99: 0.9563033624 | D99: 0.9563033624 | F99: 0.9145161209 | H99: 0.08413767568 | I99: 0 | J99: 0 | L99: 0.08261056423
A100: =A99+Model!$C$48 -> 0.087 | B100: 0.955075834 | D100: 0.955075834 | F100: 0.9121698487 | H100: 0.08505101866 | I100: 0.08444270944 | J100: 1 | L100: 0.08444270944
A101: =A100+Model!$C$48 -> 0.088 | B101: 0.9538410769 | D101: 0.9538410769 | F101: 0.9098127999 | H101: 0.08596200999 | I101: 0 | J101: 0 | L101: 0.08444270944
A102: =A101+Model!$C$48 -> 0.089 | B102: 0.9525994537 | D102: 0.9525994537 | F102: 0.9074457191 | H102: 0.08687063924 | I102: 0.08626547777 | J102: 1 | L102: 0.08626547777
A103: =A102+Model!$C$48 -> 0.09 | B103: 0.9513513173 | D103: 0.9513513173 | F103: 0.905069329 | H103: 0.08777689677 | I103: 0 | J103: 0 | L103: 0.08626547777
A104: =A103+Model!$C$48 -> 0.091 | B104: 0.9500970111 | D104: 0.9500970111 | F104: 0.9026843305 | H104: 0.0886807736 | I104: 0.08807878495 | J104: 1 | L104: 0.08807878495
A105: =A104+Model!$C$48 -> 0.092 | B105: 0.9488368686 | D105: 0.9488368686 | F105: 0.9002914032 | H105: 0.08958226147 | I105: 0 | J105: 0 | L105: 0.08807878495
A106: =A105+Model!$C$48 -> 0.093 | B106: 0.947571214 | D106: 0.947571214 | F106: 0.8978912056 | H106: 0.09048135277 | I106: 0.08988255833 | J106: 1 | L106: 0.08988255833
A107: =A106+Model!$C$48 -> 0.094 | B107: 0.9463003696 | D107: 0.9463003696 | F107: 0.8954843895 | H107: 0.09137804057 | I107: 0 | J107: 0 | L107: 0.08988255833
A108: =A107+Model!$C$48 -> 0.095 | B108: 0.9450246276 | D108: 0.9450246276 | F108: 0.8930715467 | H108: 0.09227231854 | I108: 0.09167673619 | J108: 1 | L108: 0.09167673619
A109: =A108+Model!$C$48 -> 0.096 | B109: 0.9437442915 | D109: 0.9437442915 | F109: 0.8906532878 | H109: 0.09316418095 | I109: 0 | J109: 0 | L109: 0.09167673619
A110: =A109+Model!$C$48 -> 0.097 | B110: 0.9424596497 | D110: 0.9424596497 | F110: 0.8882301913 | H110: 0.09405362269 | I110: 0.09346126711 | J110: 1 | L110: 0.09346126711
A111: =A110+Model!$C$48 -> 0.098 | B111: 0.9411709819 | D111: 0.9411709819 | F111: 0.8858028172 | H111: 0.0949406392 | I111: 0 | J111: 0 | L111: 0.09346126711
A112: =A111+Model!$C$48 -> 0.099 | B112: 0.9398785595 | D112: 0.9398785595 | F112: 0.8833717065 | H112: 0.09582522646 | I112: 0.09523610925 | J112: 1 | L112: 0.09523610925
A113: =A112+Model!$C$48 -> 0.1 | B113: 0.9385826456 | D113: 0.9385826456 | F113: 0.8809373827 | H113: 0.096707381 | I113: 0 | J113: 0 | L113: 0.09523610925
A114: =A113+Model!$C$48 -> 0.101 | B114: 0.9372834956 | D114: 0.9372834956 | F114: 0.8785003512 | H114: 0.09758709987 | I114: 0.09700122978 | J114: 1 | L114: 0.09700122978
A115: =A114+Model!$C$48 -> 0.102 | B115: 0.9359813568 | D115: 0.9359813568 | F115: 0.8760611004 | H115: 0.0984643806 | I115: 0 | J115: 0 | L115: 0.09700122978
A116: =A115+Model!$C$48 -> 0.103 | B116: 0.9346764691 | D116: 0.9346764691 | F116: 0.8736201019 | H116: 0.0993392212 | I116: 0.09875660431 | J116: 1 | L116: 0.09875660431
A117: =A116+Model!$C$48 -> 0.104 | B117: 0.9333690647 | D117: 0.9333690647 | F117: 0.871177811 | H117: 0.1002116202 | I117: 0 | J117: 0 | L117: 0.09875660431
A118: =A117+Model!$C$48 -> 0.105 | B118: 0.9320593688 | D118: 0.9320593688 | F118: 0.8687346671 | H118: 0.1010815764 | I118: 0.1005022163 | J118: 1 | L118: 0.1005022163
A119: =A118+Model!$C$48 -> 0.106 | B119: 0.9307476093 | D119: 0.9307476093 | F119: 0.8662911122 | H119: 0.1019490893 | I119: 0 | J119: 0 | L119: 0.1005022163
A120: =A119+Model!$C$48 -> 0.107 | B120: 0.9294339784 | D120: 0.9294339784 | F120: 0.8638475202 | H120: 0.1028141586 | I120: 0.1022380566 | J120: 1 | L120: 0.1022380566
A121: =A120+Model!$C$48 -> 0.108 | B121: 0.9281186896 | D121: 0.9281186896 | F121: 0.861404302 | H121: 0.1036767845 | I121: 0 | J121: 0 | L121: 0.1022380566
A122: =A121+Model!$C$48 -> 0.109 | B122: 0.9268019408 | D122: 0.9268019408 | F122: 0.8589618375 | H122: 0.1045369676 | I122: 0.1039641228 | J122: 1 | L122: 0.1039641228
A123: =A122+Model!$C$48 -> 0.11 | B123: 0.9254839235 | D123: 0.9254839235 | F123: 0.8565204927 | H123: 0.1053947087 | I123: 0 | J123: 0 | L123: 0.1039641228
A124: =A123+Model!$C$48 -> 0.111 | B124: 0.924164823 | D124: 0.924164823 | F124: 0.8540806201 | H124: 0.1062500093 | I124: 0.105680419 | J124: 1 | L124: 0.105680419
A125: =A124+Model!$C$48 -> 0.112 | B125: 0.9228448186 | D125: 0.9228448186 | F125: 0.8516425592 | H125: 0.1071028709 | I125: 0 | J125: 0 | L125: 0.105680419
A126: =A125+Model!$C$48 -> 0.113 | B126: 0.9215240836 | D126: 0.9215240836 | F126: 0.8492066367 | H126: 0.1079532955 | I126: 0.1073869548 | J126: 1 | L126: 0.1073869548
A127: =A126+Model!$C$48 -> 0.114 | B127: 0.9202027859 | D127: 0.9202027859 | F127: 0.8467731672 | H127: 0.1088012854 | I127: 0 | J127: 0 | L127: 0.1073869548
A128: =A127+Model!$C$48 -> 0.115 | B128: 0.9188810875 | D128: 0.9188810875 | F128: 0.8443424529 | H128: 0.1096468432 | I128: 0.1090837458 | J128: 1 | L128: 0.1090837458
A129: =A128+Model!$C$48 -> 0.116 | B129: 0.9175591452 | D129: 0.9175591452 | F129: 0.8419147849 | H129: 0.1104899718 | I129: 0 | J129: 0 | L129: 0.1090837458
A130: =A129+Model!$C$48 -> 0.117 | B130: 0.9162371106 | D130: 0.9162371106 | F130: 0.8394904428 | H130: 0.1113306744 | I130: 0.1107708122 | J130: 1 | L130: 0.1107708122
A131: =A130+Model!$C$48 -> 0.118 | B131: 0.91491513 | D131: 0.91491513 | F131: 0.8370696951 | H131: 0.1121689545 | I131: 0 | J131: 0 | L131: 0.1107708122
A132: =A131+Model!$C$48 -> 0.119 | B132: 0.9135933584 | D132: 0.9135933584 | F132: 0.8346528246 | H132: 0.1130048158 | I132: 0.1124481793 | J132: 1 | L132: 0.1124481793
A133: =A132+Model!$C$48 -> 0.12 | B133: 0.9122719067 | D133: 0.9122719067 | F133: 0.8322400317 | H133: 0.1138382622 | I133: 0 | J133: 0 | L133: 0.1124481793
A134: =A133+Model!$C$48 -> 0.121 | B134: 0.9109509192 | D134: 0.9109509192 | F134: 0.8298315772 | H134: 0.114669298 | I134: 0.1141158764 | J134: 1 | L134: 0.1141158764
A135: =A134+Model!$C$48 -> 0.122 | B135: 0.9096305235 | D135: 0.9096305235 | F135: 0.8274276893 | H135: 0.1154979276 | I135: 0 | J135: 0 | L135: 0.1141158764
A136: =A135+Model!$C$48 -> 0.123 | B136: 0.9083108427 | D136: 0.9083108427 | F136: 0.825028587 | H136: 0.1163241558 | I136: 0.115773937 | J136: 1 | L136: 0.115773937
A137: =A136+Model!$C$48 -> 0.124 | B137: 0.9069919956 | D137: 0.9069919956 | F137: 0.8226344801 | H137: 0.1171479873 | I137: 0 | J137: 0 | L137: 0.115773937
A138: =A137+Model!$C$48 -> 0.125 | B138: 0.9056740968 | D138: 0.9056740968 | F138: 0.8202455697 | H138: 0.1179694273 | I138: 0.1174223981 | J138: 1 | L138: 0.1174223981
A139: =A138+Model!$C$48 -> 0.126 | B139: 0.9043572571 | D139: 0.9043572571 | F139: 0.8178620484 | H139: 0.1187884811 | I139: 0 | J139: 0 | L139: 0.1174223981
A140: =A139+Model!$C$48 -> 0.127 | B140: 0.903041583 | D140: 0.903041583 | F140: 0.8154841006 | H140: 0.1196051542 | I140: 0.1190613002 | J140: 1 | L140: 0.1190613002
A141: =A140+Model!$C$48 -> 0.128 | B141: 0.9017271776 | D141: 0.9017271776 | F141: =B141*D141 -> 0.8131119029 | H141: 0.1204194522 | I141: 0 | J141: 0 | L141: 0.1190613002
A142: =A141+Model!$C$48 -> 0.129 | B142: =IF($B$10>0,ERF($B$10/SQRT(A142)),-ERF(-$B$10/SQRT(A142))) -> 0.9004141402 | D142: =IF($B$11>0,ERF($B$11/SQRT(A142)),-ERF(-$B$11/SQRT(A142))) -> 0.9004141402 | F142: 0.8107456239 | H142: =0.5*(F142+F141)*(A142-A141)+H141 -> 0.121231381 | I142: 0.1206906869 | J142: 1 | L142: 0.1206906869
A143: =A142+Model!$C$48 -> 0.13 | B143: 0.8991025665 | D143: 0.8991025665 | F143: 0.808385425 | H143: 0.1220409465 | I143: 0 | J143: =IF(J142=1,0,1) -> 0 | L143: 0.1206906869
A144: =A143+Model!$C$48 -> 0.131 | B144: 0.8977925486 | D144: 0.8977925486 | F144: 0.8060314604 | H144: 0.1228481549 | I144: 0.1223106047 | J144: 1 | L144: 0.1223106047
A145: =A144+Model!$C$48 -> 0.132 | B145: 0.8964841929 | D145: 0.8964841929 | F145: 0.8036839082 | H145: 0.1236530126 | I145: =(I143+((A145-A144)/3)*(4*F143+2*F144))*J145 -> 0 | J145: 0 | L145: =IF(J145=1,I145,I144) -> 0.1223106047
A146: =A145+Model!$C$48 -> 0.133 | B146: 0.8951775515 | D146: 0.8951775515 | F146: 0.8013428487 | H146: 0.124455526 | I146: 0.1239211026 | J146: 1 | L146: 0.1239211026
A147: =A146+Model!$C$48 -> 0.134 | B147: 0.8938727231 | D147: 0.8938727231 | F147: 0.7990084451 | H147: 0.1252557016 | I147: 0 | J147: 0 | L147: 0.1239211026
A148: =A147+Model!$C$48 -> 0.135 | B148: 0.8925697871 | D148: 0.8925697871 | F148: 0.7966808248 | H148: 0.1260535463 | I148: 0.125522232 | J148: 1 | L148: 0.125522232
A149: =A148+Model!$C$48 -> 0.136 | B149: 0.89126882 | D149: 0.89126882 | F149: 0.7943601094 | H149: 0.1268490668 | I149: 0 | J149: 0 | L149: 0.125522232
A150: =A149+Model!$C$48 -> 0.137 | B150: 0.8899698953 | D150: 0.8899698953 | F150: 0.7920464145 | H150: 0.12764227 | I150: 0.1271140465 | J150: 1 | L150: 0.1271140465
A151: =A150+Model!$C$48 -> 0.138 | B151: 0.8886730839 | D151: 0.8886730839 | F151: 0.7897398501 | H151: 0.1284331631 | I151: 0 | J151: 0 | L151: 0.1271140465
A152: =A151+Model!$C$48 -> 0.139 | B152: 0.8873784539 | D152: 0.8873784539 | F152: 0.7874405204 | H152: 0.1292217533 | I152: 0.1286966017 | J152: 1 | L152: 0.1286966017
A153: =A152+Model!$C$48 -> 0.14 | B153: 0.8860860707 | D153: 0.8860860707 | F153: 0.7851485247 | H153: 0.1300080479 | I153: 0 | J153: 0 | L153: 0.1286966017
A154: =A153+Model!$C$48 -> 0.141 | B154: 0.8847959972 | D154: 0.8847959972 | F154: 0.7828639567 | H154: 0.1307920541 | I154: 0.1302699547 | J154: 1 | L154: 0.1302699547
A155: =A154+Model!$C$48 -> 0.142 | B155: 0.883508294 | D155: 0.883508294 | F155: 0.7805869056 | H155: 0.1315737795 | I155: 0 | J155: 0 | L155: 0.1302699547
A156: =A155+Model!$C$48 -> 0.143 | B156: 0.8822230191 | D156: 0.8822230191 | F156: 0.7783174555 | H156: 0.1323532317 | I156: 0.1318341646 | J156: 1 | L156: 0.1318341646
A157: =A156+Model!$C$48 -> 0.144 | B157: 0.8809402483 | D157: 0.8809402483 | F157: 0.776055721 | H157: 0.1331304183 | I157: 0 | J157: 0 | L157: 0.1318341646
A158: =A157+Model!$C$48 -> 0.145 | B158: 0.8796599962 | D158: 0.8796599962 | F158: 0.773801709 | H158: 0.133905347 | I158: 0.1333892917 | J158: 1 | L158: 0.1333892917
A159: =A158+Model!$C$48 -> 0.146 | B159: 0.8783823332 | D159: 0.8783823332 | F159: 0.7715555233 | H159: 0.1346780256 | I159: 0 | J159: 0 | L159: 0.1333892917
A160: =A159+Model!$C$48 -> 0.147 | B160: 0.8771073085 | D160: 0.8771073085 | F160: 0.7693172305 | H160: 0.135448462 | I160: 0.1349353976 | J160: 1 | L160: 0.1349353976
A161: =A160+Model!$C$48 -> 0.148 | B161: 0.8758349692 | D161: 0.8758349692 | F161: 0.7670868932 | H161: 0.1362166641 | I161: 0 | J161: 0 | L161: 0.1349353976
A162: =A161+Model!$C$48 -> 0.149 | B162: 0.8745653606 | D162: 0.8745653606 | F162: 0.7648645699 | H162: 0.1369826398 | I162: 0.1364725452 | J162: 1 | L162: 0.1364725452
A163: =A162+Model!$C$48 -> 0.15 | B163: 0.873298526 | D163: 0.873298526 | F163: 0.7626503155 | H163: 0.1377463972 | I163: 0 | J163: 0 | L163: 0.1364725452
A164: =A163+Model!$C$48 -> 0.151 | B164: 0.8720345069 | D164: 0.8720345069 | F164: 0.7604441813 | H164: 0.1385079445 | I164: 0.1380007982 | J164: 1 | L164: 0.1380007982
A165: =A164+Model!$C$48 -> 0.152 | B165: 0.870773343 | D165: 0.870773343 | F165: 0.7582462148 | H165: 0.1392672897 | I165: 0 | J165: 0 | L165: 0.1380007982
A166: =A165+Model!$C$48 -> 0.153 | B166: 0.8695150721 | D166: 0.8695150721 | F166: 0.7560564606 | H166: 0.140024441 | I166: 0.1395202212 | J166: 1 | L166: 0.1395202212
A167: =A166+Model!$C$48 -> 0.154 | B167: 0.8682597305 | D167: 0.8682597305 | F167: 0.7538749597 | H167: 0.1407794067 | I167: 0 | J167: 0 | L167: 0.1395202212
A168: =A167+Model!$C$48 -> 0.155 | B168: 0.8670073529 | D168: 0.8670073529 | F168: 0.75170175 | H168: 0.1415321951 | I168: 0.1410308798 | J168: 1 | L168: 0.1410308798
A169: =A168+Model!$C$48 -> 0.156 | B169: 0.8657579721 | D169: 0.8657579721 | F169: 0.7495368663 | H169: 0.1422828144 | I169: 0 | J169: 0 | L169: 0.1410308798
A170: =A169+Model!$C$48 -> 0.157 | B170: 0.8645116435 | D170: 0.8645116435 | F170: 0.7473803818 | H170: 0.143031273 | I170: 0.1425328401 | J170: 1 | L170: 0.1425328401
A171: =A170+Model!$C$48 -> 0.158 | B171: 0.8632683509 | D171: 0.8632683509 | F171: 0.7452322456 | H171: 0.1437775793 | I171: 0 | J171: 0 | L171: 0.1425328401
A172: =A171+Model!$C$48 -> 0.159 | B172: 0.8620281453 | D172: 0.8620281453 | F172: 0.7430925232 | H172: 0.1445217417 | I172: 0.1440261687 | J172: 1 | L172: 0.1440261687
A173: =A172+Model!$C$48 -> 0.16 | B173: 0.8607910538 | D173: 0.8607910538 | F173: 0.7409612383 | H173: 0.1452637686 | I173: 0 | J173: 0 | L173: 0.1440261687
A174: =A173+Model!$C$48 -> 0.161 | B174: 0.8595571024 | D174: 0.8595571024 | F174: 0.7388384123 | H174: 0.1460036684 | I174: 0.1455109329 | J174: 1 | L174: 0.1455109329
A175: =A174+Model!$C$48 -> 0.162 | B175: 0.8583263155 | D175: 0.8583263155 | F175: 0.7367240639 | H175: 0.1467414497 | I175: 0 | J175: 0 | L175: 0.1455109329
A176: =A175+Model!$C$48 -> 0.163 | B176: 0.8570987164 | D176: 0.8570987164 | F176: 0.7346182097 | H176: 0.1474771208 | I176: 0.1469872002 | J176: 1 | L176: 0.1469872002
A177: =A176+Model!$C$48 -> 0.164 | B177: 0.8558743271 | D177: 0.8558743271 | F177: 0.7325208638 | H177: 0.1482106903 | I177: 0 | J177: 0 | L177: 0.1469872002
A178: =A177+Model!$C$48 -> 0.165 | B178: 0.8546531684 | D178: 0.8546531684 | F178: 0.7304320382 | H178: 0.1489421668 | I178: 0.1484550384 | J178: 1 | L178: 0.1484550384
A179: =A178+Model!$C$48 -> 0.166 | B179: 0.85343526 | D179: 0.85343526 | F179: 0.728351743 | H179: 0.1496715587 | I179: 0 | J179: 0 | L179: 0.1484550384
A180: =A179+Model!$C$48 -> 0.167 | B180: 0.8522206205 | D180: 0.8522206205 | F180: 0.7262799861 | H180: 0.1503988745 | I180: 0.1499145156 | J180: 1 | L180: 0.1499145156
A181: =A180+Model!$C$48 -> 0.168 | B181: 0.8510092675 | D181: 0.8510092675 | F181: 0.7242167733 | H181: 0.1511241229 | I181: 0 | J181: 0 | L181: 0.1499145156
A182: =A181+Model!$C$48 -> 0.169 | B182: 0.8498012172 | D182: 0.8498012172 | F182: 0.7221621088 | H182: 0.1518473124 | I182: 0.1513657001 | J182: 1 | L182: 0.1513657001
A183: =A182+Model!$C$48 -> 0.17 | B183: 0.8485964853 | D183: 0.8485964853 | F183: 0.7201159949 | H183: 0.1525684514 | I183: 0 | J183: 0 | L183: 0.1513657001
A184: =A183+Model!$C$48 -> 0.171 | B184: 0.8473951147 | D184: 0.8473951147 | F184: 0.7180784805 | H184: 0.1532875487 | I184: 0.1528086602 | J184: 1 | L184: 0.1528086602
A185: =A184+Model!$C$48 -> 0.172 | B185: 0.8461970633 | D185: 0.8461970633 | F185: 0.7160494699 | H185: 0.1540046126 | I185: 0 | J185: 0 | L185: 0.1528086602
A186: =A185+Model!$C$48 -> 0.173 | B186: 0.8450023708 | D186: 0.8450023708 | F186: 0.7140290067 | H186: 0.1547196519 | I186: 0.1542434645 | J186: 1 | L186: 0.1542434645
A187: =A186+Model!$C$48 -> 0.174 | B187: 0.843811049 | D187: 0.843811049 | F187: 0.7120170864 | H187: 0.1554326749 | I187: 0 | J187: 0 | L187: 0.1542434645
A188: =A187+Model!$C$48 -> 0.175 | B188: 0.8426231088 | D188: 0.8426231088 | F188: 0.7100137035 | H188: 0.1561436903 | I188: 0.1556701812 | J188: 1 | L188: 0.1556701812
A189: =A188+Model!$C$48 -> 0.176 | B189: 0.8414385602 | D189: 0.8414385602 | F189: 0.7080188506 | H189: 0.1568527066 | I189: 0 | J189: 0 | L189: 0.1556701812
A190: =A189+Model!$C$48 -> 0.177 | B190: 0.8402574125 | D190: 0.8402574125 | F190: 0.7060325192 | H190: 0.1575597323 | I190: 0.1570888788 | J190: 1 | L190: 0.1570888788
A191: =A190+Model!$C$48 -> 0.178 | B191: 0.839079674 | D191: 0.839079674 | F191: 0.7040546994 | H191: 0.1582647759 | I191: 0 | J191: 0 | L191: 0.1570888788
A192: =A191+Model!$C$48 -> 0.179 | B192: 0.8379053527 | D192: 0.8379053527 | F192: 0.70208538 | H192: 0.1589678459 | I192: 0.1584996252 | J192: 1 | L192: 0.1584996252
A193: =A192+Model!$C$48 -> 0.18 | B193: 0.8367344553 | D193: 0.8367344553 | F193: 0.7001245487 | H193: 0.1596689509 | I193: 0 | J193: 0 | L193: 0.1584996252
A194: =A193+Model!$C$48 -> 0.181 | B194: 0.8355669883 | D194: 0.8355669883 | F194: 0.6981721919 | H194: 0.1603680993 | I194: 0.1599024888 | J194: 1 | L194: 0.1599024888
A195: =A194+Model!$C$48 -> 0.182 | B195: 0.8344029571 | D195: 0.8344029571 | F195: 0.6962282949 | H195: 0.1610652995 | I195: 0 | J195: 0 | L195: 0.1599024888
A196: =A195+Model!$C$48 -> 0.183 | B196: 0.8332423669 | D196: 0.8332423669 | F196: 0.694292842 | H196: 0.1617605601 | I196: 0.1612975372 | J196: 1 | L196: 0.1612975372
A197: =A196+Model!$C$48 -> 0.184 | B197: 0.8320852538 | D197: 0.8320852538 | F197: 0.6923658697 | H197: 0.1624538894 | I197: 0 | J197: 0 | L197: 0.1612975372
A198: =A197+Model!$C$48 -> 0.185 | B198: 0.8309315591 | D198: 0.8309315591 | F198: 0.6904472559 | H198: 0.163145296 | I198: 0.1626848383 | J198: 1 | L198: 0.1626848383
A199: =A198+Model!$C$48 -> 0.186 | B199: 0.8297813164 | D199: 0.8297813164 | F199: 0.6885370331 | H199: 0.1638347881 | I199: 0 | J199: 0 | L199: 0.1626848383
A200: =A199+Model!$C$48 -> 0.187 | B200: 0.8286345284 | D200: 0.8286345284 | F200: 0.6866351816 | H200: 0.1645223742 | I200: 0.1640644593 | J200: 1 | L200: 0.1640644593
A201: =A200+Model!$C$48 -> 0.188 | B201: 0.8274911969 | D201: 0.8274911969 | F201: 0.6847416809 | H201: 0.1652080627 | I201: 0 | J201: 0 | L201: 0.1640644593
A202: =A201+Model!$C$48 -> 0.189 | B202: 0.8263513234 | D202: 0.8263513234 | F202: 0.6828565096 | H202: 0.1658918618 | I202: 0.1654364673 | J202: 1 | L202: 0.1654364673
A203: =A202+Model!$C$48 -> 0.19 | B203: 0.8252149088 | D203: 0.8252149088 | F203: 0.6809796457 | H203: 0.1665737798 | I203: 0 | J203: 0 | L203: 0.1654364673
A204: =A203+Model!$C$48 -> 0.191 | B204: 0.8240819536 | D204: 0.8240819536 | F204: 0.6791110663 | H204: 0.1672538252 | I204: 0.1668009291 | J204: 1 | L204: 0.1668009291
A205: =A204+Model!$C$48 -> 0.192 | B205: 0.8229524578 | D205: 0.8229524578 | F205: =B205*D205 -> 0.6772507477 | H205: 0.1679320061 | I205: 0 | J205: 0 | L205: 0.1668009291
A206: =A205+Model!$C$48 -> 0.193 | B206: =IF($B$10>0,ERF($B$10/SQRT(A206)),-ERF(-$B$10/SQRT(A206))) -> 0.8218264207 | D206: =IF($B$11>0,ERF($B$11/SQRT(A206)),-ERF(-$B$11/SQRT(A206))) -> 0.8218264207 | F206: 0.6753986657 | H206: =0.5*(F206+F205)*(A206-A205)+H205 -> 0.1686083308 | I206: 0.168157911 | J206: 1 | L206: 0.168157911
A207: =A206+Model!$C$48 -> 0.194 | B207: 0.8207038414 | D207: 0.8207038414 | F207: 0.6735547953 | H207: 0.1692828075 | I207: 0 | J207: =IF(J206=1,0,1) -> 0 | L207: 0.168157911
A208: =A207+Model!$C$48 -> 0.195 | B208: 0.8195847185 | D208: 0.8195847185 | F208: 0.6717191108 | H208: 0.1699554445 | I208: 0.1695074791 | J208: 1 | L208: 0.1695074791
A209: =A208+Model!$C$48 -> 0.196 | B209: 0.8184690502 | D209: 0.8184690502 | F209: 0.6698915861 | H209: 0.1706262498 | I209: =(I207+((A209-A208)/3)*(4*F207+2*F208))*J209 -> 0 | J209: 0 | L209: =IF(J209=1,I209,I208) -> 0.1695074791
... 805 more rows

Sheet ReadMe
A1: This spreadsheet will calculate the height of a groundwater mound beneath a stormwater infiltration basin. More information can be found in the U.S. Geological Survey Scientific Investigations Report 2010-5102 "Simulation of groundwater mounding beneath hypothetical stormwater infiltration basins".
A3: This spreadsheet solving the Hantush (1967) equation for ground-water mounding beneath an infiltration basin is made available to the general public as a convenience for those wishing to replicate values documented in the USGS Scientific Investigations Report 2010-5102 "Groundwater mounding beneath hypothetical stormwater infiltration basins" or to calculate values based on user-specified site conditions. Any changes made to the spreadsheet (other than values identified as user-specified) after transmission from the USGS could have unintended, undesirable consequences. These consequences could include, but may not be limited to: erroneous output, numerical instabilities, and violations of underlying assumptions that are inherent in results presented in the accompanying USGS published report. The USGS assumes no responsibility for the consequences of any changes made to the spreadsheet. If changes are made to the spreadsheet, the user is responsible for documenting the changes and justifying the results and conclusions.
